Departmental Family,Entity,Date,Expense Type,Expense Area,Supplier,Transaction Number,Amount,Description,Supplier Postcode,
Department for Transport,Department for Transport,01/04/2015,Agency Staff Costs,Group Communications,CAPITA BUSINESS SERVICES LTD,2000000043,2731.75,#,DL1 9HN,
Department for Transport,Department for Transport,01/04/2015,Agency Staff Costs,Group Finance,CAPITA BUSINESS SERVICES LTD,2000000043,2745.06,#,DL1 9HN,
Department for Transport,Department for Transport,01/04/2015,Agency Staff Costs,Integrated Delivery,AlLLEN LANE,2000000046,4843.66,#,SW1Y 6RJ,
Department for Transport,Department for Transport,01/04/2015,Agency Staff Costs,Environment & International Transport Analysis,CAPITA BUSINESS SERVICES LTD,2000000043,7146.48,#,DL1 9HN,
Department for Transport,Department for Transport,01/04/2015,Agency Staff Costs,Rail Commercial & Programme Office,MORGAN HUNT UK LTD,2000000056,3919.44,#,EC4M 7EG,
Department for Transport,Department for Transport,01/04/2015,Agency Staff Costs,Major Projects & Growth,CAPITA BUSINESS SERVICES LTD,2000000043,8056.8,#,DL1 9HN,
Department for Transport,Department for Transport,01/04/2015,Agency Staff Costs,Rail Commercial & Programme Office,CAPITA BUSINESS SERVICES LTD,2000000043,6867.84,#,DL1 9HN,
Department for Transport,Department for Transport,01/04/2015,Agency Staff Costs,Rail Franchising,CAPITA BUSINESS SERVICES LTD,2000000043,51480,#,DL1 9HN,
Department for Transport,Department for Transport,01/04/2015,Agency Staff Costs,Rail Franchising,CAPITA BUSINESS SERVICES LTD,2000000043,2008.14,#,DL1 9HN,
Department for Transport,Department for Transport,01/04/2015,Cap Grt Loc Auth,"Energy, Technology and International",Aberdeen City Council,2000000092,15000,Aberdeen #15000 Public Sector Chargepoints,AB10 1AB,
Department for Transport,Department for Transport,01/04/2015,Cap Grt Loc Auth,"Energy, Technology and International",CITY OF YORK COUNCIL,2000000095,123750,C.o.York #123750 Rapids,Y01 7WH,
Department for Transport,Department for Transport,01/04/2015,Cap Grt Loc Auth,"Energy, Technology and International",EVALU8 TRANSPORT INNOVATIONS LTD,2000000071,229182,Evalu8 (EofE PiP) Q4 FY1314 75% payment,AL10 9AB,
Department for Transport,Department for Transport,01/04/2015,Cap Grt Loc Auth,"Energy, Technology and International",KENT COUNTY COUNCIL,2000000096,138651,201314 Kent CC #138651 Public Sector Chargepoints,ME14 1XQ,
Department for Transport,Department for Transport,01/04/2015,Cap Grt Loc Auth,"Energy, Technology and International",MILTON KEYNES BC,2000000097,35171.5,Milton Keynes PiP Q1 FY1415 35171.50,MK9 3EE,
Department for Transport,Department for Transport,01/04/2015,Cap Grt Loc Auth,"Energy, Technology and International",South East Coast Ambulance,2000000090,45000,201314 SECA NHS #45000 Public Sector Chargepoints,BN7 2XW,
Department for Transport,Department for Transport,01/04/2015,Cap Grt Pri Sec-Cos.,"Policy, Legislation and Funding",Eversheds LLP,2000000082,662500,xxxxxx,CF10 5BT,
Department for Transport,Department for Transport,01/04/2015,Cap Grt Pri Sec-Cos.,"Policy, Legislation and Funding",Eversheds LLP,2000000082,790000,xxxxxx,CF10 5BT,
Department for Transport,Department for Transport,01/04/2015,Cap Grt Pri Sec-Cos.,"Policy, Legislation and Funding",Eversheds LLP,2000000082,330000,xxxxxx,CF10 5BT,
Department for Transport,Department for Transport,01/04/2015,Cap Grt Pri Sec-Cos.,"Policy, Legislation and Funding",Eversheds LLP,2000000082,485211.5,Stonehav/Pearcen BN354,CF10 5BT,
Department for Transport,Department for Transport,01/04/2015,Cars Maintenance,Motoring Services,KENT POLICE,2000000062,947.63,#,ME15 9BZ,
Department for Transport,Department for Transport,01/04/2015,Contract Cleaning,Marine Accident Investigation Branch,PROGRESS CLEANING SERVICES,2000000042,702,#,SO30 2FQ,
Department for Transport,Department for Transport,01/04/2015,CurrGrtOth to NDPBs,Aviation,NATS (En Route) plc,2000000094,38984.96,Final Payment - Allanshill,PO15 7FL,
Department for Transport,Department for Transport,01/04/2015,CurrGrtOth to NDPBs,Aviation,NATS (En Route) plc,2000000094,36794.55,Final Payment - Cromer,PO15 7FL,
Department for Transport,Department for Transport,01/04/2015,CurrGrtOth to NDPBs,Aviation,NATS (En Route) plc,2000000094,398888.51,Final Payment - Gatwick,PO15 7FL,
Department for Transport,Department for Transport,01/04/2015,CurrGrtOth to NDPBs,Aviation,NATS (En Route) plc,2000000094,48542.92,Final Payment - Heathrow,PO15 7FL,
Department for Transport,Department for Transport,01/04/2015,CurrGrtOth to NDPBs,Aviation,NATS (En Route) plc,2000000094,30586.9,Final Payment - Manchester,PO15 7FL,
Department for Transport,Department for Transport,01/04/2015,CurrGrtOth to NDPBs,Aviation,NATS (En Route) plc,2000000094,45706.51,Final Payment - St Annes,PO15 7FL,
Department for Transport,Department for Transport,01/04/2015,CurrGrtOth to NDPBs,Aviation,NATS (En Route) plc,2000000094,85998.41,Final Payment - Stansted,PO15 7FL,
Department for Transport,Department for Transport,01/04/2015,IT Consultancy,Marine Accident Investigation Branch,AVENCA LTD,2000000048,1800,#,SP5 3PJ,
Department for Transport,Department for Transport,01/04/2015,IT Consultancy,Marine Accident Investigation Branch,AVENCA LTD,2000000048,8760,#,SP5 3PJ,
Department for Transport,Department for Transport,01/04/2015,IT Consultancy,Marine Accident Investigation Branch,AVENCA LTD,2000000048,2700,#,SP5 3PJ,
Department for Transport,Department for Transport,01/04/2015,IT Ser Running Costs,Motoring Services,INSIGHT DIRECT (UK) LTD,2000000041,78600.24,#,UB8 1PH,
Department for Transport,Department for Transport,01/04/2015,Minor Developments,"Motoring, Freight & London",SYMOLOGY LTD,2000000066,1273.97,#,LU1 4AJ,
Department for Transport,Department for Transport,01/04/2015,Non Stock Machine Co,Motoring Services,XMA LIMITED GOSC,2000000072,944.93,#,NG11 7EP,
Department for Transport,Department for Transport,01/04/2015,Occup Health Scheme,Group Human Resource,HEALTH MANAGEMENT LTD,2000000054,1656,#,BN8 5NN,
Department for Transport,Department for Transport,01/04/2015,Publicity,Group Communications,ABBOTT MEAD VICKERS BBDO LTD,2000000045,970,#,NW1 5QE,
Department for Transport,Department for Transport,01/04/2015,Publicity,Principal Priv. Secretary & Head of Private Office,CHUBB SYSTEMS LIMITED,2000000050,4895.08,#,BB1 2PR,
Department for Transport,Department for Transport,01/04/2015,Publicity,Group Communications,ABBOTT MEAD VICKERS BBDO LTD,2000000045,9524,#,NW1 5QE,
Department for Transport,Department for Transport,01/04/2015,Publicity,Group Communications,ABBOTT MEAD VICKERS BBDO LTD,2000000045,20000,#,NW1 5QE,
Department for Transport,Department for Transport,01/04/2015,Research,Analysis & Strategy,SAMI Consulting Ltd,2000000083,1560,#,RG14 1DY,
Department for Transport,Department for Transport,01/04/2015,Research,Environment & International Transport Analysis,Civil Aviation Authority,2000000051,2000,#,RH6 0YR,
Department for Transport,Department for Transport,01/04/2015,Research,Local,NATIONAL CENTRE FOR SOCIAL RESEARCH,2000000058,28434.6,#,EC1V 0AX,
Department for Transport,Department for Transport,01/04/2015,Research,Local,NATIONAL CENTRE FOR SOCIAL RESEARCH,2000000058,126620,#,EC1V 0AX,
Department for Transport,Department for Transport,01/04/2015,Research,Aviation,DEPARTMENT FOR ENVIRONMENT,2000000052,1277.44,#,YO1 7PX,
Department for Transport,Department for Transport,01/04/2015,Research,Analysis & Strategy,NATIONAL CENTRE FOR SOCIAL RESEARCH,2000000058,17617,#,EC1V 0AX,
Department for Transport,Department for Transport,01/04/2015,Services prov by OGD,"Motoring, Freight & London",VEHICLE & OPERATOR SERVICES AGENCY,2000000091,5003368,#,SA1 8AN,
Department for Transport,Department for Transport,01/04/2015,Support Services,"Motoring, Freight & London",National Measurement Office,2000000081,135000,#,TW11 0JZ,
Department for Transport,Department for Transport,01/04/2015,Training,Air Accident Investigation Branch,BRITISH AIRWAYS,2000000049,750,#,UB7 0GB,
Department for Transport,Department for Transport,01/04/2015,Training,Local,CAMBRIDGE ECONOMETRICS LTD,2000000063,3000,#,CB1  2HS,
Department for Transport,Department for Transport,01/04/2015,Training,Rail Accident Investigation Branch,WYVERN RAIL PLC,2000000065,595,#,DE4 4FB,
Department for Transport,Department for Transport,01/04/2015,Transport  Consult,Major Projects & Growth,FIRST CLASS PARTNERSHIPS LTD,2000000064,21240,#,YO10 3EB,
Department for Transport,Department for Transport,01/04/2015,Transport  Consult,Transport Security Co-ordination and Response,QinetiQ Processing Centre,2000000061,12000,#,GU14 0LX,
Department for Transport,Department for Transport,01/04/2015,Transport  Consult,Rail Commercial & Programme Office,OVE ARUP & PARTNERS,2000000059,23832.55,#,NE1 3PL,
Department for Transport,Department for Transport,01/04/2015,Transport  Consult,Rail Commercial & Programme Office,PARSONS BRINCKERHOFF LTD,2000000060,46189.83,#,NE4 7YQ,
Department for Transport,Department for Transport,01/04/2015,Transport  Consult,Rail Commercial & Programme Office,Directly Operated Railways Ltd,2000000068,5709.6,#,EC4A 1BL,
Department for Transport,Department for Transport,01/04/2015,Transport  Consult,Rail Commercial & Programme Office,Directly Operated Railways Ltd,2000000068,30000,#,EC4A 1BL,
Department for Transport,Department for Transport,01/04/2015,Transport  Consult,Rail Commercial & Programme Office,ATKINS LTD (TRANSPORT PLANNING),2000000047,2378.29,#,WR5 1TX,
Department for Transport,Department for Transport,01/04/2015,Transport  Consult,Aviation,xxxxxx,2000000079,2176,#,xxxxxx,
Department for Transport,Department for Transport,01/04/2015,Transport  Consult,Aviation,NATS (EN ROUTE) PLC,2000000070,42203.75,#,PO15 7FI,
Department for Transport,Department for Transport,01/04/2015,Transport  Consult,Rail Franchising,Passenger Focus,2000000080,23400,#,M1 2WD,
Department for Transport,Department for Transport,01/04/2015,Travel Expenses UK,Rail Accident Investigation Branch,REDFERN TRAVEL LTD,2000000069,7289.31,Redfern Feb 2015,BD1 3AZ,
Department for Transport,Department for Transport,02/04/2015,Agency Staff Costs,Group Assurance,CAPITA BUSINESS SERVICES LTD,2000000190,1868.22,#,DL1 9HN,
Department for Transport,Department for Transport,02/04/2015,Agency Staff Costs,Integrated Delivery,MICHAEL PAGE INTERNATIONAL,2000000220,3420,#,SL1 3SA,
Department for Transport,Department for Transport,02/04/2015,Agency Staff Costs,Motoring Services,BROOK STREET (UK) LIMITED,2000000209,956.05,#,AL1 4JB,
Department for Transport,Department for Transport,02/04/2015,Agency Staff Costs,Motoring Services,BROOK STREET (UK) LIMITED,2000000209,888,#,AL1 4JB,
Department for Transport,Department for Transport,02/04/2015,Agency Staff Costs,Local,BROOK STREET (UK) LIMITED,2000000209,803.9,#,AL1 4JB,
Department for Transport,Department for Transport,02/04/2015,Agency Staff Costs,Rail Commercial & Programme Office,BROOK STREET (UK) LIMITED,2000000209,874.34,#,AL1 4JB,
Department for Transport,Department for Transport,02/04/2015,Agency Staff Costs,Rail Commercial & Programme Office,CAPITA BUSINESS SERVICES LTD,2000000190,2637.7,#,DL1 9HN,
Department for Transport,Department for Transport,02/04/2015,Agency Staff Costs,Rail Commercial & Programme Office,Badenoch & Clark c/o Lauren Rogers,2000000195,3180,#,B37 7YE,
Department for Transport,Department for Transport,02/04/2015,Agency Staff Costs,Rail Commercial & Programme Office,Badenoch & Clark c/o Lauren Rogers,2000000195,3180,#,B37 7YE,
Department for Transport,Department for Transport,02/04/2015,Agency Staff Costs,Rail Commercial & Programme Office,Badenoch & Clark c/o Lauren Rogers,2000000195,3180,#,B37 7YE,
Department for Transport,Department for Transport,02/04/2015,Agency Staff Costs,Group Finance,Allen Lane,2000000193,2719.38,#,SW1Y 6RJ,
Department for Transport,Department for Transport,02/04/2015,Agency Staff Costs,Group Finance,Allen Lane,2000000193,2719.38,#,SW1Y 6RJ,
Department for Transport,Department for Transport,02/04/2015,Agency Staff Costs,Group Finance,Allen Lane,2000000193,2719.38,#,SW1Y 6RJ,
Department for Transport,Department for Transport,02/04/2015,Agency Staff Costs,Group Finance,Allen Lane,2000000193,2719.38,#,SW1Y 6RJ,
Department for Transport,Department for Transport,02/04/2015,Agency Staff Costs,General Counsel's Office,Badenoch & Clark c/o Lauren Rogers,2000000195,3098.16,#,B37 7YE,
Department for Transport,Department for Transport,02/04/2015,Agency Staff Costs,Integrated Delivery,CAPITA BUSINESS SERVICES LTD,2000000190,8875.55,#,DL1 9HN,
Department for Transport,Department for Transport,02/04/2015,Agency Staff Costs,Network Rail Sponsorship,CAPITA BUSINESS SERVICES LTD,2000000190,2936.52,#,DL1 9HN,
Department for Transport,Department for Transport,02/04/2015,Agents Fees,Strategic Roads & Smart Ticketing,NORTHGATE INFORMATION SOLUTIONS,2000000252,179100,#,HP2 4NW,
Department for Transport,Department for Transport,02/04/2015,Cap Grt Loc Auth,Maritime,Cornwall Council,2000000226,25883.6,Small Ports Recovery Fund,TR1 3AY,
Department for Transport,Department for Transport,02/04/2015,Cap Grt Loc Auth,"Energy, Technology and International",Southampton City Council,2000000245,396450,CVTF SCC #396k (2 payments),SO14 7LY,
Department for Transport,Department for Transport,02/04/2015,Cycle to Work Scheme,Group Human Resource,CYCLESCHEME LTD,2000000197,2833.33,Cyclescheme 2012/13,BA1 1WX,
Department for Transport,Department for Transport,02/04/2015,Computer equipment,Air Accident Investigation Branch,SOFTWARE BOX LTD,2000000186,1080,SBL NON ETHOS SAFECONSOLE X60 1 YR 13/03,YO61 1ET,
Department for Transport,Department for Transport,02/04/2015,CurrGrtOth to NDPBs,Group Finance,CTRL SECTION 1 FINANCE PLC,2000000152,7905879.9,CTRL Section 1 Finance plc Payment April 2015,NW1 1AY,
Department for Transport,Department for Transport,02/04/2015,CurrGrtPriSec-P&NPIS,Local,CORNWALL MOBILITY CENTRE LTD,2000000210,58160,Mobility Centres 2015 -16 Q1 Payments,TR1 3LJ,
Department for Transport,Department for Transport,02/04/2015,CurrGrtPriSec-P&NPIS,Local,DERBY HOSPITALS,2000000211,51040,Mobility Centres 2015 -16 Q1 Payments,DE1 2QY,
Department for Transport,Department for Transport,02/04/2015,CurrGrtPriSec-P&NPIS,Local,DISABLED LIVING CENTRE,2000000212,35680,Mobility Centres 2015 -16 Q1 Payments,BS16 2QQ,
Department for Transport,Department for Transport,02/04/2015,CurrGrtPriSec-P&NPIS,Local,EAST ANGLIAN DRIVEABILITY,2000000214,89440,Mobility Centres 2015 -16 Q1 Payments,IP24 3RL,
Department for Transport,Department for Transport,02/04/2015,CurrGrtPriSec-P&NPIS,"Energy, Technology and International",ENERGY SAVING TRUST,2000000213,262460,"""EST Feb 2014-15 #262,460 (DfT)""",SW1H 9BP,
Department for Transport,Department for Transport,02/04/2015,CurrGrtPriSec-P&NPIS,Local,FORUM OF MOBILITY CENTRES,2000000225,25000,Mobility Centres 2015 -16 Q1 Payments,IP24 3RL,
Department for Transport,Department for Transport,02/04/2015,CurrGrtPriSec-P&NPIS,Local,HERTFORDSHIRE ACTION ON DISABILITY,2000000224,37760,Mobility Centres 2015 -16 Q1 Payments,AL7 4DD,
Department for Transport,Department for Transport,02/04/2015,CurrGrtPriSec-P&NPIS,Local,KENT COMMUNITY HEALTH NHS TRUST,2000000157,69840,Mobility Centres 2015 -16 Q1 Payments,CT1 3NG,
Department for Transport,Department for Transport,02/04/2015,CurrGrtPriSec-P&NPIS,Local,N. West Driving Assessment Service,2000000156,60480,Mobility Centres 2015 -16 Q1 Payments,WA11 9SJ,
Department for Transport,Department for Transport,02/04/2015,CurrGrtPriSec-P&NPIS,Local,NORTHUMBERLAND TYNE & WEAR NHS TRUS,2000000215,43040,Mobility Centres 2015 -16 Q1 Payments,NE3 3XT,
Department for Transport,Department for Transport,02/04/2015,CurrGrtPriSec-P&NPIS,Local,QUEEN ELIZABETHS FOUNDATION,2000000216,82560,Mobility Centres 2015 -16 Q1 Payments,SM5 4NR,
Department for Transport,Department for Transport,02/04/2015,CurrGrtPriSec-P&NPIS,Local,REGIONAL DRIVING ASSESSMENT CENTRE,2000000217,144000,Mobility Centres 2015 -16 Q1 Payments,B8 1AU,
Department for Transport,Department for Transport,02/04/2015,CurrGrtPriSec-P&NPIS,Local,WESSEX DRIVEABILITY,2000000218,54720,Mobility Centres 2015 -16 Q1 Payments,SO17 2LJ,
Department for Transport,Department for Transport,02/04/2015,CurrGrtPriSec-P&NPIS,Local,WILLIAM MERRITT DISABLED LIVING,2000000219,61920,Mobility Centres 2015 -16 Q1 Payments,LS12 3QE,
Department for Transport,Department for Transport,02/04/2015,CurrGrtPriSec-P&NPIS,Local,YOUTH SPORT TRUST,2000000223,49582.5,Youth Sports Trust 1st Payment 2015-16,LE11 3TU,
Department for Transport,Department for Transport,02/04/2015,Data Supply - TD,Motoring Services,LANDMARK INFORMATION GROUP LTD,2000000202,15050.6,#,EX2 7HY,
Department for Transport,Department for Transport,02/04/2015,Eurotunnel Admin Pay,Rail Commercial & Programme Office,SNCF Caisse Generale,2000000150,5567207.16,#,93633,
Department for Transport,Department for Transport,02/04/2015,Eurotunnel Admin Pay,Rail Commercial & Programme Office,SNCF TRESORERIE ENC RHT VFE,2000000151,4951013.93,#,75014,
Department for Transport,Department for Transport,02/04/2015,IT Equip Cap Cost,Motoring Services,ANS Group plc,2000000247,60900.28,#,M15 6SY,
Department for Transport,Department for Transport,02/04/2015,IT Equip Cap Cost,Motoring Services,ANS Group plc,2000000247,59871.8,#,M15 6SY,
Department for Transport,Department for Transport,02/04/2015,IT Equip Cap Cost,Motoring Services,ANS Group plc,2000000247,28548.65,#,M15 6SY,
Department for Transport,Department for Transport,02/04/2015,IT Equip Cap Cost,Motoring Services,ANS Group plc,2000000247,42514.97,#,M15 6SY,
Department for Transport,Department for Transport,02/04/2015,IT Equip Cap Cost,Motoring Services,Probrand Limited,2000000191,5333.86,"10.1"" Tablet PCs",B1 3BP,
Department for Transport,Department for Transport,02/04/2015,IT Equip Cap Cost,Motoring Services,Probrand Limited,2000000191,12,"10.1"" Tablet PCs - Delivery",B1 3BP,
Department for Transport,Department for Transport,02/04/2015,IT Equip Cap Cost,Motoring Services,SOFTWARE BOX LTD,2000000186,5659.8,Dell Wyse T10 Clients,YO61 1ET,
Department for Transport,Department for Transport,02/04/2015,IT Equip Cap Cost,Motoring Services,SOFTWARE BOX LTD,2000000186,288.3,Dell Wyse T10 Keyboards,YO61 1ET,
Department for Transport,Department for Transport,02/04/2015,IT Ser Running Costs,"Energy, Technology and International",TRIAD GROUP PLC,2000000207,900,#,GU7 1XE,
Department for Transport,Department for Transport,02/04/2015,Legal Consultancy,Transport Security Co-ordination and Response,PHELPS DUNBAR LLP,2000000153,4540.59,#,70130,
Department for Transport,Department for Transport,02/04/2015,Management Consultan,Strategic Roads & Smart Ticketing,Rail Settlement Plan,2000000205,300000,#,EC1A 4HD,
Department for Transport,Department for Transport,02/04/2015,Other Professional F,Group Finance,Arvato Ltd,2000000241,224955,#,HU10 6FE,
Department for Transport,Department for Transport,02/04/2015,Protective Clothing,Rail Accident Investigation Branch,BURLINGTON UNIFORMS LTD,2000000187,118.37,6326000006 Tegara Ejendals gloves size6,EN3 7PX,
Department for Transport,Department for Transport,02/04/2015,Protective Clothing,Rail Accident Investigation Branch,BURLINGTON UNIFORMS LTD,2000000187,118.37,6326000008 Tegera Ejendalsgloves size 8,EN3 7PX,
Department for Transport,Department for Transport,02/04/2015,Protective Clothing,Rail Accident Investigation Branch,BURLINGTON UNIFORMS LTD,2000000187,236.74,6326000009 Tegera Ejendals Gloves Size 9,EN3 7PX,
Department for Transport,Department for Transport,02/04/2015,Protective Clothing,Rail Accident Investigation Branch,BURLINGTON UNIFORMS LTD,2000000187,118.37,6326000010 Tegera Ejendals Gloves s10,EN3 7PX,
Department for Transport,Department for Transport,02/04/2015,Protective Clothing,Rail Accident Investigation Branch,BURLINGTON UNIFORMS LTD,2000000187,118.37,6326000011 Tegera Ejendals Gloves Size11,EN3 7PX,
Department for Transport,Department for Transport,02/04/2015,Publications for Res,Group Communications,CREATIVE CHOICE CIC,2000000230,1830,#,SW1H 0DJ,
Department for Transport,Department for Transport,02/04/2015,Publications for Res,Aviation,CREATIVE CHOICE CIC,2000000230,1525,#,SW1H 0DJ,
Department for Transport,Department for Transport,02/04/2015,Publicity,Group Communications,ABBOTT MEAD VICKERS BBDO LTD,2000000192,12362.4,#,NW1 5QE,
Department for Transport,Department for Transport,02/04/2015,Publicity,Group Communications,ABBOTT MEAD VICKERS BBDO LTD,2000000192,990,#,NW1 5QE,
Department for Transport,Department for Transport,02/04/2015,Rates,Marine Accident Investigation Branch,SOUTHAMPTON CITY COUNCIL,2000000221,7839.51,Soton City -1.415 to 30.4.15,SO14 7LY,
Department for Transport,Department for Transport,02/04/2015,Recruitment Fees,"Group Services, Change and Capability",Regus UK Limited,2000000203,1694.7,#,SL1 4DX,
Department for Transport,Department for Transport,02/04/2015,Recruitment Fees,"Group Services, Change and Capability",Regus UK Limited,2000000203,2467.8,#,SL1 4DX,
Department for Transport,Department for Transport,02/04/2015,Recruitment Fees,"Group Services, Change and Capability",Regus UK Limited,2000000203,1443.6,#,SL1 4DX,
Department for Transport,Department for Transport,02/04/2015,Recruitment Fees,"Group Services, Change and Capability",Regus UK Limited,2000000203,2781.9,#,SL1 4DX,
Department for Transport,Department for Transport,02/04/2015,Recruitment Fees,"Group Services, Change and Capability",Regus UK Limited,2000000203,1133.1,#,SL1 4DX,
Department for Transport,Department for Transport,02/04/2015,Recruitment Fees,"Group Services, Change and Capability",Regus UK Limited,2000000203,1906.2,#,SL1 4DX,
Department for Transport,Department for Transport,02/04/2015,Recruitment Fees,"Group Services, Change and Capability",Regus UK Limited,2000000203,1694.7,#,SL1 4DX,
Department for Transport,Department for Transport,02/04/2015,Recruitment Fees,"Group Services, Change and Capability",Talent Q Ltd,2000000244,4800,#,OX9 3AJ,
Department for Transport,Department for Transport,02/04/2015,Research,Aviation,ATKINS LTD (TRANSPORT PLANNING),2000000194,17836.37,#,WR5 1TX,
Department for Transport,Department for Transport,02/04/2015,Research,Aviation,ATKINS LTD (TRANSPORT PLANNING),2000000194,55696.19,#,WR5 1TX,
Department for Transport,Department for Transport,02/04/2015,Research,Aviation,ATKINS LTD (TRANSPORT PLANNING),2000000194,40339.08,#,WR5 1TX,
Department for Transport,Department for Transport,02/04/2015,Research,Transport Security Co-ordination and Response,DEFENCE SCIENCE & TECHNOLOGY,2000000198,837738,#,PO14 9HL,
Department for Transport,Department for Transport,02/04/2015,Research,Rail Strategy & Funding,ATOC Limited,2000000222,3700,#,EC1A 4HD,
Department for Transport,Department for Transport,02/04/2015,Research,Major Projects & Growth,OVE ARUP & PARTNERS,2000000204,17300,#,NE1 3PL,
Department for Transport,Department for Transport,02/04/2015,Security,Rail Accident Investigation Branch,ADT Fire & Security PLC,2000000189,738.3,#,M40 4BH,
Department for Transport,Department for Transport,02/04/2015,Support Services,"Motoring, Freight & London",TREASURY SOLICITOR (CLIENT MONIES),2000000155,138000,#,WC2B 4TS,
Department for Transport,Department for Transport,02/04/2015,Support Services,Aviation,Civil Aviation Authority,2000000196,32900,#,RH6 0YR,
Department for Transport,Department for Transport,02/04/2015,Support Services,Aviation,Civil Aviation Authority,2000000196,43073,#,RH6 0YR,
Department for Transport,Department for Transport,02/04/2015,Support Services,Aviation,Civil Aviation Authority,2000000196,12036,#,RH6 0YR,
Department for Transport,Department for Transport,02/04/2015,Support Services,Aviation,Civil Aviation Authority,2000000196,31700,#,RH6 0YR,
Department for Transport,Department for Transport,02/04/2015,Training,Group Assurance,INSTITUTE OF INTERNAL AUDITORS,2000000200,1460,Training Course ,SW4 7BX,
Department for Transport,Department for Transport,02/04/2015,Transport  Consult,Rail Franchising,ATKINS LTD (TRANSPORT PLANNING),2000000194,36608.59,#,WR5 1TX,
Department for Transport,Department for Transport,02/04/2015,Travel Expenses UK,Air Accident Investigation Branch,REDFERN TRAVEL LTD,2000000229,9761.88,Redfern March 2015,BD1 3AZ,
Department for Transport,Department for Transport,06/04/2015,Cap Grt Loc Auth,Local,CITY OF YORK COUNCIL,2000000248,135622,York BBA - Capital,Y01 7WH,
Department for Transport,Department for Transport,06/04/2015,Cap Grt Loc Auth,Local,Merseytravel,2000000251,177952,Merseytravel BBA - Capital,L69 3HN,
Department for Transport,Department for Transport,06/04/2015,Cap Grt Loc Auth,Local,NOTTINGHAM CITY COUNCIL,2000000249,1451700,Nottingham BBA - Capital,NG1 5NT,
Department for Transport,Department for Transport,06/04/2015,Cap Grt Loc Auth,Local,SOUTH YORKSHIRE PTE,2000000250,2200000,South Yorkshire PTE BBA - Capital,S1 2BQ,
Department for Transport,Department for Transport,06/04/2015,CurrGrt Las in AEF/A,Local,CITY OF YORK COUNCIL,2000000248,102684,York BBA - Resource,Y01 7WH,
Department for Transport,Department for Transport,06/04/2015,CurrGrt Las in AEF/A,Local,Merseytravel,2000000251,444879,Merseytravel BBA - Resource,L69 3HN,
Department for Transport,Department for Transport,06/04/2015,CurrGrt Las in AEF/A,Local,NOTTINGHAM CITY COUNCIL,2000000249,806500,Nottingham BBA - Resource,NG1 5NT,
Department for Transport,Department for Transport,06/04/2015,CurrGrt Las in AEF/A,Local,SOUTH YORKSHIRE PTE,2000000250,1796263,South Yorkshire PTE BBA - Resource,S1 2BQ,
Department for Transport,Department for Transport,07/04/2015,Agency Staff Costs,Local,BROOK STREET (UK) LIMITED,2000000342,642.02,#,AL1 4JB,
Department for Transport,Department for Transport,07/04/2015,Agency Staff Costs,Local,BROOK STREET (UK) LIMITED,2000000342,811.44,#,AL1 4JB,
Department for Transport,Department for Transport,07/04/2015,Agency Staff Costs,Integrated Delivery,MICHEAL PAGE INTERNATIONAL,2000000343,3594,#,SL1 3SA,
Department for Transport,Department for Transport,07/04/2015,Agency Staff Costs,Integrated Delivery,MICHAEL PAGE INTERNATIONAL,2000000343,3210,#,SL1 3SA,
Department for Transport,Department for Transport,07/04/2015,Agency Staff Costs,Integrated Delivery,MICHAEL PAGE INTERNATIONAL,2000000343,3240,#,SL1 3SA,
Department for Transport,Department for Transport,07/04/2015,Agency Staff Costs,Group Finance,Allen Lane,2000000332,2217.46,#,SW1Y 6RJ,
Department for Transport,Department for Transport,07/04/2015,Agency Staff Costs,Rail Franchising,Badenoch & Clark c/o Lauren Rogers,2000000333,2673.6,#,BS7 7YE,
Department for Transport,Department for Transport,07/04/2015,Agency Staff Costs,Rail Franchising,Experis Ltd,2000000337,4470.72,#,EC2M 2RB,
Department for Transport,Department for Transport,07/04/2015,Agency Staff Costs,Rail Franchising,Experis Ltd,2000000337,4470.72,#,EC2M 2RB,
Department for Transport,Department for Transport,07/04/2015,Agency Staff Costs,Rail Commercial & Programme Office,MICHAEL PAGE INTERNATIONAL,2000000343,723.9,#,SL1 3SA,
Department for Transport,Department for Transport,07/04/2015,Contract Cleaning,Marine Accident Investigation Branch,PROGRESS CLEANING SERVICES,2000000331,702,#,SO30 2FQ,
Department for Transport,Department for Transport,07/04/2015,Contract Cleaning,Marine Accident Investigation Branch,PROGRESS CLEANING SERVICES,2000000331,-702,#,SO30 2FQ,
Department for Transport,Department for Transport,07/04/2015,Contract Cleaning,Marine Accident Investigation Branch,PROGRESS CLEANING SERVICES,2000000331,702,#,SO30 2FQ,
Department for Transport,Department for Transport,07/04/2015,Data Supply - TD,Motoring Services,BASEMAP LIMITED,2000000350,2936.8,#,GU2 7YG,
Department for Transport,Department for Transport,07/04/2015,Eurotunnel Admin Pay,Rail Commercial & Programme Office,Eurotunnel,2000000254,4478752.5,Eurotunnel March Payment,CT18 8XX,
Department for Transport,Department for Transport,07/04/2015,Eurotunnel Admin Pay,Rail Commercial & Programme Office,EUROTUNNEL,2000000253,4856442.06,Eurotunnel March Payment,CT18 8XY,
Department for Transport,Department for Transport,07/04/2015,Financial Consultanc,Rail Commercial & Programme Office,ERNST & YOUNG LLP,2000000338,74438.33,#,SE1 2AF,
Department for Transport,Department for Transport,07/04/2015,Financial Consultanc,Rail Franchising,GRANT THORNTON UK LLP,2000000345,7116,#,NN4 7YE,
Department for Transport,Department for Transport,07/04/2015,IT Consultancy,"Group Services, Change and Capability",Worldline IT Services UK Limited,2000000352,15532.57,#,WV10 6UH,
Department for Transport,Department for Transport,07/04/2015,IT Ser Running Costs,Motoring Services,SOFTWARE BOX LTD,2000000340,7488,#,YO61 1ET,
Department for Transport,Department for Transport,07/04/2015,Legal Consultancy,Rail Franchising,Eversheds LLP,2000000348,14882.28,#,EC2V 7WS,
Department for Transport,Department for Transport,07/04/2015,Legal Consultancy,Rail Franchising,Eversheds LLP,2000000348,112343.4,#,EC2V 7WS,
Department for Transport,Department for Transport,07/04/2015,Management Consultan,Integrated Delivery,DEPARTMENT FOR BUSINESS,2000000357,218766,#,NP19 7AA,
Department for Transport,Department for Transport,07/04/2015,Property Maintenance,Rail Accident Investigation Branch,Interserve,2000000349,1086.83,#,B70 1DA,
Department for Transport,Department for Transport,07/04/2015,Publicity,Group Communications,TNS UK LTD,100000243,22740,See credit 260405189,W5 1UA,
Department for Transport,Department for Transport,07/04/2015,Publicity,Group Communications,TNS UK LTD,100000243,-22740,Credit re 260146996,W5 1UA,
Department for Transport,Department for Transport,07/04/2015,Recruitment Fees,Group Human Resource,HM REVENUE & CUSTOMS,2000000358,4296.3,#,BN12 4XH,
Department for Transport,Department for Transport,07/04/2015,Recruitment Fees,Group Human Resource,HM REVENUE & CUSTOMS,2000000358,3995.1,#,BN12 4XH,
Department for Transport,Department for Transport,07/04/2015,Recruitment Fees,Group Human Resource,HM REVENUE & CUSTOMS,2000000358,2903.4,#,BN12 4XH,
Department for Transport,Department for Transport,07/04/2015,Recruitment Fees,Group Human Resource,HM REVENUE & CUSTOMS,2000000358,4351.2,#,BN12 4XH,
Department for Transport,Department for Transport,07/04/2015,Recruitment Fees,Group Human Resource,HM REVENUE & CUSTOMS,2000000358,8720.22,#,BN12 4XH,
Department for Transport,Department for Transport,07/04/2015,Recruitment Fees,Group Human Resource,HM REVENUE & CUSTOMS,2000000358,8258.4,#,BN12 4XH,
Department for Transport,Department for Transport,07/04/2015,Recruitment Fees,Group Human Resource,HM REVENUE & CUSTOMS,2000000358,1992.9,#,BN12 4XH,
Department for Transport,Department for Transport,07/04/2015,Recruitment Fees,Group Human Resource,HM REVENUE & CUSTOMS,2000000358,4387.2,#,BN12 4XH,
Department for Transport,Department for Transport,07/04/2015,Recruitment Fees,Group Human Resource,HM REVENUE & CUSTOMS,2000000358,3166.8,#,BN12 4XH,
Department for Transport,Department for Transport,07/04/2015,Recruitment Fees,"Group Services, Change and Capability",Talent Q Ltd,2000000354,1200,#,OX9 3AJ,
Department for Transport,Department for Transport,07/04/2015,Research,Aviation,Civil Aviation Authority,2000000334,56625,#,RH6 0YR,
Department for Transport,Department for Transport,07/04/2015,Research,Transport Security Co-ordination and Response,DEFENCE SCIENCE & TECHNOLOGY,2000000335,33984,#,PO14 9HL,
Department for Transport,Department for Transport,07/04/2015,Research,Transport Security Co-ordination and Response,DEFENCE SCIENCE & TECHNOLOGY,2000000335,42000,#,PO14 9HL,
Department for Transport,Department for Transport,07/04/2015,Research,Strategic Roads & Smart Ticketing,AECOM INFRASTRUCTURE &,2000000339,12818,#,RG21 7PP,
Department for Transport,Department for Transport,07/04/2015,Services prov by OGD,"Motoring, Freight & London",VEHICLE & OPERATOR SERVICES AGENCY,2000000360,4750710,#,SA1 8AN,
Department for Transport,Department for Transport,07/04/2015,Services prov by OGD,Group Human Resource,CABINET OFFICE,100000244,348919.26,#,CF14 3UW,
Department for Transport,Department for Transport,07/04/2015,Services prov by OGD,Group Human Resource,CABINET OFFICE,100000244,-348919.26,#,CF14 3UW,
Department for Transport,Department for Transport,07/04/2015,Small Software,Group Communications,THE PRESS ASSOCIATION LTD,2000000347,898.75,#,SW1V 1A,
Department for Transport,Department for Transport,07/04/2015,Support Services,Strategic Roads & Smart Ticketing,Highways England Company Ltd,2000000361,682846.5,#,B1 1RN,
Department for Transport,Department for Transport,07/04/2015,Support Services,Group Finance,DD ACCRAILWAY PENS TRUSTEE,2000000344,720.9,#,DL3 6XR,
Department for Transport,Department for Transport,07/04/2015,Support Services,Group Finance,DD ACCRAILWAY PENS TRUSTEE,2000000344,3635.91,#,DL3 6XR,
Department for Transport,Department for Transport,07/04/2015,Support Services,Aviation,MINISTRY OF DEFENCE,2000000346,1056000,#,L2 3YL,
Department for Transport,Department for Transport,07/04/2015,Transport  Consult,Analysis & Strategy,WSP UK Limited,2000000341,6917.36,#,GL20 8SJ,
Department for Transport,Department for Transport,07/04/2015,YR-Dental,Human Resources,National Dental Plan Limited,2000000304,603,3rd Pary Payment March 2015,EC3N 1DY,
Department for Transport,Department for Transport,08/04/2015,Agency Staff Costs,General Counsel's Office,CAPITA BUSINESS SERVICES LTD,2000000391,5749.92,#,DL1 9HN,
Department for Transport,Department for Transport,08/04/2015,Agency Staff Costs,Local,BROOK STREET (UK) LIMITED,2000000410,987.84,#,AL1 4JB,
Department for Transport,Department for Transport,08/04/2015,Agency Staff Costs,Group Finance,CAPITA BUSINESS SERVICES LTD,2000000391,2745.06,#,DL1 9HN,
Department for Transport,Department for Transport,08/04/2015,Agency Staff Costs,Integrated Delivery,Badenoch & Clark c/o Lauren Rogers,2000000393,4032,#,B37 7YE,
Department for Transport,Department for Transport,08/04/2015,Agency Staff Costs,Integrated Delivery,NETWORKERS INTERNATIONAL (UK) PLC,2000000413,3391.26,#,BR1 1HP,
Department for Transport,Department for Transport,08/04/2015,Agency Staff Costs,Local,BROOK STREET (UK) LIMITED,2000000410,803.99,#,AL1 4JB,
Department for Transport,Department for Transport,08/04/2015,Agency Staff Costs,Major Projects & Growth,Badenoch & Clark c/o Lauren Rogers,2000000393,2978.16,#,B37 7YE,
Department for Transport,Department for Transport,08/04/2015,Agency Staff Costs,Major Projects & Growth,Badenoch & Clark c/o Lauren Rogers,2000000393,2978.16,#,B37 7YE,
Department for Transport,Department for Transport,08/04/2015,Agency Staff Costs,Major Projects & Growth,Badenoch & Clark c/o Lauren Rogers,2000000393,2978.16,#,B37 7YE,
Department for Transport,Department for Transport,08/04/2015,Agency Staff Costs,Major Projects & Growth,Badenoch & Clark c/o Lauren Rogers,2000000393,2978.16,#,B37 7YE,
Department for Transport,Department for Transport,08/04/2015,Agency Staff Costs,Major Projects & Growth,Badenoch & Clark c/o Lauren Rogers,2000000393,2978.16,#,B37 7YE,
Department for Transport,Department for Transport,08/04/2015,Agency Staff Costs,Major Projects & Growth,Badenoch & Clark c/o Lauren Rogers,2000000393,2978.16,#,B37 7YE,
Department for Transport,Department for Transport,08/04/2015,Agency Staff Costs,Major Projects & Growth,Badenoch & Clark c/o Lauren Rogers,2000000393,2978.16,#,B37 7YE,
Department for Transport,Department for Transport,08/04/2015,Agency Staff Costs,Major Projects & Growth,Experis Ltd,2000000400,4793.46,#,EC2M 2RB,
Department for Transport,Department for Transport,08/04/2015,Agency Staff Costs,Rail Commercial & Programme Office,CAPITA BUSINESS SERVICES LTD,2000000391,3297.12,#,DL1 9HN,
Department for Transport,Department for Transport,08/04/2015,Agency Staff Costs,Rail Commercial & Programme Office,CAPITA BUSINESS SERVICES LTD,2000000391,2585.94,#,DL1 9HN,
Department for Transport,Department for Transport,08/04/2015,Agency Staff Costs,Rail Commercial & Programme Office,MORGAN HUNT UK LTD,2000000404,3919.44,#,EC4M 7EG,
Department for Transport,Department for Transport,08/04/2015,Agency Staff Costs,Major Projects & Growth,BROOK STREET (UK) LIMITED,2000000410,540.54,#,AL1 4JB,
Department for Transport,Department for Transport,08/04/2015,Agency Staff Costs,Motoring Services,CAPITA BUSINESS SERVICES LTD,2000000391,5545.02,#,DL1 9HN,
Department for Transport,Department for Transport,08/04/2015,Agency Staff Costs,Group Finance,NETWORKERS INTERNATIONAL (UK) PLC,2000000413,861,#,BR1 1HP,
Department for Transport,Department for Transport,08/04/2015,Agency Staff Costs,Rail Franchising,Badenoch & Clark c/o Lauren Rogers,2000000393,4010.4,#,B37 7YE,
Department for Transport,Department for Transport,08/04/2015,Agency Staff Costs,Rail Franchising,Badenoch & Clark c/o Lauren Rogers,2000000393,3342,#,B37 7YE,
Department for Transport,Department for Transport,08/04/2015,Agency Staff Costs,Rail Franchising,Badenoch & Clark c/o Lauren Rogers,2000000393,3342,#,BS7 7YE,
Department for Transport,Department for Transport,08/04/2015,Agency Staff Costs,Rail Franchising,Badenoch & Clark c/o Lauren Rogers,2000000393,3007.8,#,B37 7YE,
Department for Transport,Department for Transport,08/04/2015,Agency Staff Costs,Rail Franchising,Badenoch & Clark c/o Lauren Rogers,2000000393,3342,#,B37 7YE,
Department for Transport,Department for Transport,08/04/2015,Agency Staff Costs,Rail Franchising,Badenoch & Clark c/o Lauren Rogers,2000000393,3342,#,B37 7YE,
Department for Transport,Department for Transport,08/04/2015,Agency Staff Costs,Rail Franchising,Badenoch & Clark c/o Lauren Rogers,2000000393,3342,#,B37 7YE,
Department for Transport,Department for Transport,08/04/2015,Agency Staff Costs,Rail Franchising,Badenoch & Clark c/o Lauren Rogers,2000000393,3342,#,B37 7YE,
Department for Transport,Department for Transport,08/04/2015,Agency Staff Costs,Rail Franchising,Badenoch & Clark c/o Lauren Rogers,2000000393,3342,#,B37 7YE,
Department for Transport,Department for Transport,08/04/2015,Agency Staff Costs,Motoring Services,Badenoch & Clark c/o Lauren Rogers,2000000393,2325.6,#,B37 7YE,
Department for Transport,Department for Transport,08/04/2015,Agency Staff Costs,Motoring Services,Badenoch & Clark c/o Lauren Rogers,2000000393,3876,#,B37 7YE,
Department for Transport,Department for Transport,08/04/2015,Agency Staff Costs,Rail Franchising,Badenoch & Clark c/o Lauren Rogers,2000000393,4010.4,#,B37 7YE,
Department for Transport,Department for Transport,08/04/2015,Agency Staff Costs,Motoring Services,Badenoch & Clark c/o Lauren Rogers,2000000393,3876,#,B37 7YE,
Department for Transport,Department for Transport,08/04/2015,Agency Staff Costs,Motoring Services,Badenoch & Clark c/o Lauren Rogers,2000000393,3876,#,B37 7YE,
Department for Transport,Department for Transport,08/04/2015,Agency Staff Costs,Motoring Services,Badenoch & Clark c/o Lauren Rogers,2000000393,3100.8,#,B37 7YE,
Department for Transport,Department for Transport,08/04/2015,Agency Staff Costs,Motoring Services,Badenoch & Clark c/o Lauren Rogers,2000000393,3876,#,B37 7YE,
Department for Transport,Department for Transport,08/04/2015,Agency Staff Costs,Motoring Services,Badenoch & Clark c/o Lauren Rogers,2000000393,3876,#,B37 7YE,
Department for Transport,Department for Transport,08/04/2015,Agency Staff Costs,Motoring Services,Badenoch & Clark c/o Lauren Rogers,2000000393,3876,#,B37 7YE,
Department for Transport,Department for Transport,08/04/2015,Agency Staff Costs,Motoring Services,Badenoch & Clark c/o Lauren Rogers,2000000393,3876,#,B37 7YE,
Department for Transport,Department for Transport,08/04/2015,Agency Staff Costs,Motoring Services,Badenoch & Clark c/o Lauren Rogers,2000000393,3876,#,B37 7YE,
Department for Transport,Department for Transport,08/04/2015,Agency Staff Costs,Motoring Services,Badenoch & Clark c/o Lauren Rogers,2000000393,3100.8,#,B37 7YE,
Department for Transport,Department for Transport,08/04/2015,Agency Staff Costs,Motoring Services,Badenoch & Clark c/o Lauren Rogers,2000000393,3876,#,B37 7YE,
Department for Transport,Department for Transport,08/04/2015,Agency Staff Costs,Rail Franchising,Badenoch & Clark c/o Lauren Rogers,2000000393,3342,#,B37 7YE,
Department for Transport,Department for Transport,08/04/2015,Agency Staff Costs,Rail Franchising,BROOK STREET (UK) LIMITED,2000000410,667.87,#,AL1 4JB,
Department for Transport,Department for Transport,08/04/2015,Agency Staff Costs,Integrated Delivery,CAPITA BUSINESS SERVICES LTD,2000000391,2680.14,#,DL1 9HN,
Department for Transport,Department for Transport,08/04/2015,Agency Staff Costs,Integrated Delivery,CAPITA BUSINESS SERVICES LTD,2000000391,4874.64,#,DL1 9HN,
Department for Transport,Department for Transport,08/04/2015,Agency Staff Costs,Rail Franchising,Field Fisher Waterhouse LLP,2000000412,21840,#,EC4R 3TT,
Department for Transport,Department for Transport,08/04/2015,Agency Staff Costs,Integrated Delivery,NETWORKERS INTERNATIONAL (UK) PLC,2000000413,959.46,#,BR1 1HP,
Department for Transport,Department for Transport,08/04/2015,Cap Grt Pri Sec-Cos.,"Energy, Technology and International",British Gas Ltd,2000000430,70572.9,British Gas DEC 2014 #70572.90,S60 1BY,
Department for Transport,Department for Transport,08/04/2015,Cap Grt Pri Sec-Cos.,"Energy, Technology and International",Pod Point,2000000426,13129,POD POINT #13129 DEC,E1 1EE,
Department for Transport,Department for Transport,08/04/2015,Cap Grt Pri Sec-Cos.,"Energy, Technology and International",Pod Point,2000000426,5304,POD POINT #5304 Nov,E1 1EE,
Department for Transport,Department for Transport,08/04/2015,Cap Grt Pri Sec-Cos.,"Energy, Technology and International",Pod Point,2000000426,1800,POD POINT #1800 OCT,E1 1EE,
Department for Transport,Department for Transport,08/04/2015,Computer equipment,"Energy, Technology and International",Next Green Car,2000000434,16238.4,#,BS1 6UX,
Department for Transport,Department for Transport,08/04/2015,Financial Consultanc,Rail Franchising,ERNST & YOUNG LLP,2000000401,7415.36,#,SE1 2AF,
Department for Transport,Department for Transport,08/04/2015,Gas,Group Procurement and Property,CORONA ENERGY RETAIL 4 LTD,2000000398,3521.56,Corona - Feb 15 - Mar 15,WD17 1JW,
Department for Transport,Department for Transport,08/04/2015,Investigation Servic,Analysis & Strategy,ATKINS LTD (TRANSPORT PLANNING),2000000392,5316,#,WR5 1TX,
Department for Transport,Department for Transport,08/04/2015,Investigation Servic,Motoring Services,CH&I Associates Ltd,2000000425,514.8,#,SK11 8AA,
Department for Transport,Department for Transport,08/04/2015,Investigation Servic,Motoring Services,CH&I Associates Ltd,2000000425,825.24,#,SK11 8AA,
Department for Transport,Department for Transport,08/04/2015,IT Ser Running Costs,Group Communications,WILLIAMS LEA LIMITED,2000000420,4247.64,#,NR3 1PD,
Department for Transport,Department for Transport,08/04/2015,Legal Consultancy,Aviation,Civil Aviation Authority,2000000397,308504.64,#,RH6 0YR,
Department for Transport,Department for Transport,08/04/2015,Legal Consultancy,"Policy, Legislation and Funding",xxxxxx,2000000422,10692,#,xxxxxx,
Department for Transport,Department for Transport,08/04/2015,Media & Press,Group Communications,"GORKANA GROUP LTD (""GCL"")",2000000417,4852.15,#,EC1Y 8QE,
Department for Transport,Department for Transport,08/04/2015,Mobile Phone charges,Group Finance,T-MOBILE (UK) LTD,2000000408,672.56,T-Mobile - 43361515 - May 2014,AL10 9BW,
Department for Transport,Department for Transport,08/04/2015,Other Professional F,Group Finance,Arvato Ltd,2000000429,1020,#,HU10 6FE,
Department for Transport,Department for Transport,08/04/2015,Printing,Air Accident Investigation Branch,WILLIAMS LEA LIMITED,2000000420,1131.71,#,NR3 1PD,
Department for Transport,Department for Transport,08/04/2015,Printing,Air Accident Investigation Branch,WILLIAMS LEA LIMITED,2000000420,2480.76,#,NR3 1PD,
Department for Transport,Department for Transport,08/04/2015,Printing,Group Communications,WILLIAMS LEA LIMITED,2000000420,1639.22,#,NR3 1PD,
Department for Transport,Department for Transport,08/04/2015,Printing,Group Communications,WILLIAMS LEA LIMITED,2000000420,1030.32,#,NR3 1PD,
Department for Transport,Department for Transport,08/04/2015,Printing,Group Communications,WILLIAMS LEA LIMITED,2000000420,1030.32,#,NR3 1PD,
Department for Transport,Department for Transport,08/04/2015,Printing,Group Communications,WILLIAMS LEA LIMITED,2000000420,1065.96,#,NR3 1PD,
Department for Transport,Department for Transport,08/04/2015,Printing,Group Communications,WILLIAMS LEA LIMITED,2000000420,10616.72,#,NR3 1PD,
Department for Transport,Department for Transport,08/04/2015,Printing,Group Communications,WILLIAMS LEA LIMITED,2000000420,1172.25,#,NR3 1PD,
Department for Transport,Department for Transport,08/04/2015,Printing,Group Communications,WILLIAMS LEA LIMITED,2000000420,813.24,#,NR3 1PD,
Department for Transport,Department for Transport,08/04/2015,Printing,Group Communications,WILLIAMS LEA LIMITED,2000000420,9585,#,NR3 1PD,
Department for Transport,Department for Transport,08/04/2015,Printing,Group Communications,WILLIAMS LEA LIMITED,2000000420,734.94,#,NR3 1PD,
Department for Transport,Department for Transport,08/04/2015,Printing,Rail Accident Investigation Branch,WILLIAMS LEA LIMITED,2000000420,740.88,#,NR3 1PD,
Department for Transport,Department for Transport,08/04/2015,Printing,Maritime,WILLIAMS LEA LIMITED,2000000420,982.8,#,NR3 1PD,
Department for Transport,Department for Transport,08/04/2015,Printing,General Counsel's Office,WILLIAMS LEA LIMITED,2000000420,842.4,#,NR3 1PD,
Department for Transport,Department for Transport,08/04/2015,Printing,Rail Franchising,WILLIAMS LEA LIMITED,2000000420,1736.64,#,NR3 1PD,
Department for Transport,Department for Transport,08/04/2015,Printing,Strategy and Engagement,WILLIAMS LEA LIMITED,2000000420,1202.04,#,NR3 1PD,
Department for Transport,Department for Transport,08/04/2015,Prog&ProjMgmt Consul,Motoring Services,Grange Car Wash,2000000432,1305,#,SE1 3AD,
Department for Transport,Department for Transport,08/04/2015,Publications for Res,Strategy and Engagement,CREATIVE CHOICE CIC,2000000419,11153,#,SW1H 0DJ,
Department for Transport,Department for Transport,08/04/2015,Recruitment Fees,"Group Services, Change and Capability",Regus UK Limited,2000000405,1694.7,#,SL1 4DX,
Department for Transport,Department for Transport,08/04/2015,Recruitment Fees,"Group Services, Change and Capability",Regus UK Limited,2000000405,3042.9,#,SL1 4DX,
Department for Transport,Department for Transport,08/04/2015,Recruitment Fees,"Group Services, Change and Capability",Regus UK Limited,2000000405,1684.8,#,SL1 4DX,
Department for Transport,Department for Transport,08/04/2015,Recruitment Fees,"Group Services, Change and Capability",Regus UK Limited,2000000405,1133.1,#,SL1 4DX,
Department for Transport,Department for Transport,08/04/2015,Research,Local,OFFICE FOR NATIONAL STATISTICS,2000000390,1436,#,NP10 8XG,
Department for Transport,Department for Transport,08/04/2015,Research,Local,NATIONAL CENTRE FOR SOCIAL RESEARCH,2000000406,18000,#,EC1V 0AX,
Department for Transport,Department for Transport,08/04/2015,Security,General Counsel's Office,FCO SERVICES,2000000389,6355.2,#,MK19 7BH,
Department for Transport,Department for Transport,08/04/2015,Security,General Counsel's Office,FCO SERVICES,2000000389,2523.6,#,MK19 7BH,
Department for Transport,Department for Transport,08/04/2015,Storage & Distributi,Group Communications,WILLIAMS LEA LIMITED,2000000420,19557.08,#,NR3 1PD,
Department for Transport,Department for Transport,08/04/2015,Support Services,Aviation,CAA INTERNATIONAL LTD,2000000396,4250,#,RH6 0YR,
Department for Transport,Department for Transport,08/04/2015,Support Services,Aviation,CAA INTERNATIONAL LTD,2000000396,4250,#,RH6 0YR,
Department for Transport,Department for Transport,08/04/2015,Support Services,Major Projects & Growth,HOME OFFICE,2000000416,7483.51,#,NP20 9BB,
Department for Transport,Department for Transport,08/04/2015,Training,Group Human Resource,THE MANCHESTER COLLEGE,2000000414,2850,#,M11 2WH,
Department for Transport,Department for Transport,08/04/2015,Training,General Counsel's Office,QA Ltd,2000000428,500,#,LS12 6BD,
Department for Transport,Department for Transport,08/04/2015,Transport  Consult,"Motoring, Freight & London",OFFICE FOR NATIONAL STATISTICS,2000000390,3590,#,NP10 8XG,
Department for Transport,Department for Transport,08/04/2015,Travel Expenses UK,Marine Accident Investigation Branch,Rainbow Executive Cars Limited,2000000427,613.8,#,SP10 2HP,
Department for Transport,Department for Transport,09/04/2015,Agency Staff Costs,Group Assurance,CAPITA BUSINESS SERVICES LTD,2000000469,1868.22,#,DL1 9HN,
Department for Transport,Department for Transport,09/04/2015,Agency Staff Costs,Group Assurance,CAPITA BUSINESS SERVICES LTD,2000000469,-1868.22,#,DL1 9HN,
Department for Transport,Department for Transport,09/04/2015,Agency Staff Costs,Local,BROOK STREET (UK) LIMITED,2000000481,642.02,#,AL1 4JB,
Department for Transport,Department for Transport,09/04/2015,Agency Staff Costs,Group Communications,CAPITA BUSINESS SERVICES LTD,2000000469,1517.64,#,DL1 9HN,
Department for Transport,Department for Transport,09/04/2015,Agency Staff Costs,Motoring Services,BROOK STREET (UK) LIMITED,2000000481,1149.68,#,AL1 4JB,
Department for Transport,Department for Transport,09/04/2015,Agency Staff Costs,Major Projects & Growth,CAPITA BUSINESS SERVICES LTD,2000000469,3961.14,#,DL1 9HN,
Department for Transport,Department for Transport,09/04/2015,Agency Staff Costs,Group Finance,CAPITA BUSINESS SERVICES LTD,2000000469,2680.14,#,DL1 9HN,
Department for Transport,Department for Transport,09/04/2015,Agency Staff Costs,Rail Franchising,BROOK STREET (UK) LIMITED,2000000481,658.56,#,AL1 4JB,
Department for Transport,Department for Transport,09/04/2015,Agency Staff Costs,Rail Franchising,CAPITA BUSINESS SERVICES LTD,2000000469,2008.14,#,DL1 9HN,
Department for Transport,Department for Transport,09/04/2015,Agency Staff Costs,Rail Franchising,CAPITA BUSINESS SERVICES LTD,2000000469,11429.14,#,DL1 9HN,
Department for Transport,Department for Transport,09/04/2015,Agency Staff Costs,Integrated Delivery,CAPITA BUSINESS SERVICES LTD,2000000469,4833.9,#,DL1 9HN,
Department for Transport,Department for Transport,09/04/2015,Agency Staff Costs,Rail Franchising,CAPITA BUSINESS SERVICES LTD,2000000469,18480,#,DL1 9HN,
Department for Transport,Department for Transport,09/04/2015,Agency Staff Costs,Network Rail Sponsorship,CAPITA BUSINESS SERVICES LTD,2000000469,8832.36,#,DL1 9HN,
Department for Transport,Department for Transport,09/04/2015,Agency Staff Costs,Rail Commercial & Programme Office,CAPITA BUSINESS SERVICES LTD,2000000469,2890.14,#,DL1 9HN,
Department for Transport,Department for Transport,09/04/2015,Agency Staff Costs,Rail Franchising,Capita Resourcing Limited,2000000482,16650,#,EC4A 1EN,
Department for Transport,Department for Transport,09/04/2015,Agency Staff Costs,Rail Commercial & Programme Office,MICHAEL PAGE INTERNATIONAL,100002443,-7830,#,SL1 3SA,
Department for Transport,Department for Transport,09/04/2015,Agency Staff Costs,Rail Commercial & Programme Office,MICHAEL PAGE INTERNATIONAL,100002443,7830,#,SL1 3SA,
Department for Transport,Department for Transport,09/04/2015,Agents Fees,Strategic Roads & Smart Ticketing,NORTHGATE INFORMATION SOLUTIONS,2000000466,217561.48,#,HP2 4NW,
Department for Transport,Department for Transport,09/04/2015,Building Service Cha,Group Procurement and Property,Amey Community Ltd,2000000496,211880.88,#,OX4 4DQ,
Department for Transport,Department for Transport,09/04/2015,Building Service Cha,Group Procurement and Property,Amey Community Ltd,2000000496,211880.88,#,OX4 4DQ,
Department for Transport,Department for Transport,09/04/2015,Building Service Cha,Group Procurement and Property,Amey Community Ltd,2000000496,54300,#,OX4 4DQ,
Department for Transport,Department for Transport,09/04/2015,Building Service Cha,Group Procurement and Property,Amey Community Ltd,2000000496,190963.46,#,OX4 4DQ,
Department for Transport,Department for Transport,09/04/2015,Cap Grt NDPBs & CG,"Energy, Technology and International",South East Coast Ambulance,2000000494,45000,SECA NHS TRUST  Public sector #45k,BN7 2XW,
Department for Transport,Department for Transport,09/04/2015,Cap Grt Pri Sec-Cos.,"Energy, Technology and International",Armstrong Renewables,2000000493,13500,Armstrong Re JAN 2015 #13500,NE37 2SH,
Department for Transport,Department for Transport,09/04/2015,Cap Grt Pri Sec-Cos.,Network Rail Sponsorship,Network Rail Infstrcture (Treasury),2000000444,125000000,#,NW1 2DN,
Department for Transport,Department for Transport,09/04/2015,Computer equipment,Motoring Services,E-Cycle Limited,2000000491,5113.87,#,CF39 9BW,
Department for Transport,Department for Transport,09/04/2015,Courier Charges,Group Procurement and Property,DX NETWORK SERVICES LTD,2000000468,2060.22,#,NN3 6YG,
Department for Transport,Department for Transport,09/04/2015,Electricity,Group Procurement and Property,EDF ENERGY,2000000474,38070.4,EDF - Great Minister House - 01.02.2015 - 28.02.15,DA6 8ET,
Department for Transport,Department for Transport,09/04/2015,HR Consultancy,Group Human Resource,ATOS IT Services UK Ltd,2000000471,589.06,#,WV10 6UH,
Department for Transport,Department for Transport,09/04/2015,IT Equip Cap Cost,Rail Accident Investigation Branch,Clear Visual Communications Ltd,2000000495,18823.2,Video Conference System Farnborough,M6 5FW,
Department for Transport,Department for Transport,09/04/2015,IT Equip Cap Cost,Rail Accident Investigation Branch,Clear Visual Communications Ltd,2000000495,18823.2,#,M6 5FW,
Department for Transport,Department for Transport,09/04/2015,IT Ser Running Costs,Group Communications,ROAD SAFETY ANALYSIS LIMITED,2000000485,2640,THINK! MAST Online Membership 15/16,OX17 1JA,
Department for Transport,Department for Transport,09/04/2015,Legal Consultancy,"Policy, Legislation and Funding",xxxxxx,2000000478,37368,#,xxxxxx,
Department for Transport,Department for Transport,09/04/2015,Legal Consultancy,"Policy, Legislation and Funding",WINCKWORTH SHERWOOD,2000000479,187153.8,#,SE1 9BB,
Department for Transport,Department for Transport,09/04/2015,Legal Consultancy,"Policy, Legislation and Funding",WINCKWORTH SHERWOOD,2000000479,262852.32,#,SE1 9BB,
Department for Transport,Department for Transport,09/04/2015,Non Stock Machine Co,Motoring Services,XMA LIMITED GOSC,2000000489,2212.32,A33K250 Konica Minolta Bizhub C224e /C28,NG11 7EP,
Department for Transport,Department for Transport,09/04/2015,Non Stock Machine Co,Motoring Services,XMA LIMITED GOSC,2000000489,1106.16,A33K350 Konica Minolta Bizhub C224e /C28,NG11 7EP,
Department for Transport,Department for Transport,09/04/2015,Non Stock Machine Co,Motoring Services,XMA LIMITED GOSC,2000000489,1659.24,A33K450 Konica Minolta Bizhub C224e /C28,NG11 7EP,
Department for Transport,Department for Transport,09/04/2015,Photography,Strategy and Engagement,ALAMY LTD,100002442,-529.2,Credit re IY00518489,OX14 4SA,
Department for Transport,Department for Transport,09/04/2015,Photography,Strategy and Engagement,ALAMY LTD,100002442,529.2,See credit CA00036283,OX14 4SA,
Department for Transport,Department for Transport,09/04/2015,Printing,"Energy, Technology and International",WILLIAMS LEA LIMITED,2000000487,1457.46,#,NR3 1PD,
Department for Transport,Department for Transport,09/04/2015,Publications for Res,Aviation,WILLIAMS LEA LIMITED,2000000487,1021.02,#,NR3 1PD,
Department for Transport,Department for Transport,09/04/2015,Publicity,Group Communications,CARAT LTD,2000000472,10387.2,#,WC2B 5PS,
Department for Transport,Department for Transport,09/04/2015,Research,"Motoring, Freight & London",ATKINS LTD (TRANSPORT PLANNING),2000000470,11959.28,#,WR5 1TX,
Department for Transport,Department for Transport,09/04/2015,Research,Local,NATIONAL CENTRE FOR SOCIAL RESEARCH,2000000476,18000,#,EC1V 0AX,
Department for Transport,Department for Transport,09/04/2015,Training,Group Human Resource,Capita Business Services Ltd,2000000467,2682.91,#,B1 3RB,
Department for Transport,Department for Transport,09/04/2015,Training,Group Human Resource,Capita Business Services Ltd,2000000467,550,#,B1 3RB,
Department for Transport,Department for Transport,09/04/2015,Transport  Consult,Aviation,JACOBS UK LTD,2000000475,230958.7,#,G2 7HX,
Department for Transport,Department for Transport,09/04/2015,Transport  Consult,Rail Commercial & Programme Office,PARSONS BRINCKERHOFF LTD,2000000477,16683.77,#,NE4 7YQ,
Department for Transport,Department for Transport,09/04/2015,Travel Expenses UK,Integrated Delivery,RAIL STAFF TRAVEL LTD,2000000483,2667.52,#,WC1N 1BY,
Department for Transport,Department for Transport,09/04/2015,Travel Expenses UK,Marine Accident Investigation Branch,Clyde Travel Management,2000000473,657.22,Clyde -  07.04.2015,G52 4JQ,
Department for Transport,Department for Transport,09/04/2015,Travel Expenses UK,Marine Accident Investigation Branch,Clyde Travel Management,2000000473,653.7,Clyde - 13.04.2015,G52 4JQ,
Department for Transport,Department for Transport,09/04/2015,Travel Expenses UK,Marine Accident Investigation Branch,STAGECOACH SOUTHWESTERN TRAINS LTD,2000000484,823.4,#,SE1 8NZ,
Department for Transport,Department for Transport,13/04/2015,Agency Staff Costs,Local,BROOK STREET (UK) LIMITED,2000000579,583.79,#,AL1 4JB,
Department for Transport,Department for Transport,13/04/2015,Agency Staff Costs,Local,BROOK STREET (UK) LIMITED,2000000579,816.8,#,AL1 4JB,
Department for Transport,Department for Transport,13/04/2015,Agency Staff Costs,Rail Commercial & Programme Office,Badenoch & Clark c/o Lauren Rogers,2000000567,3816,#,B37 7YE,
Department for Transport,Department for Transport,13/04/2015,Agency Staff Costs,Rail Commercial & Programme Office,Capita Resourcing Limited,2000000581,15912,#,EC4A 1EN,
Department for Transport,Department for Transport,13/04/2015,Agency Staff Costs,Rail Strategy & Funding,Experis Ltd,2000000571,5999.4,#,EC2M 2RB,
Department for Transport,Department for Transport,13/04/2015,Agency Staff Costs,Network Rail Sponsorship,CAPITA BUSINESS SERVICES LTD,2000000564,1178.26,#,DL1 9HN,
Department for Transport,Department for Transport,13/04/2015,Agency Staff Costs,Network Rail Sponsorship,CAPITA BUSINESS SERVICES LTD,2000000564,1386.66,#,DL1 9HN,
Department for Transport,Department for Transport,13/04/2015,Agency Staff Costs,Rail Franchising,CAPITA BUSINESS SERVICES LTD,2000000564,17038.3,#,DL1 9HN,
Department for Transport,Department for Transport,13/04/2015,Agency Staff Costs,Rail Commercial & Programme Office,MICHAEL PAGE INTERNATIONAL,2000000580,579.12,#,SL1 3SA,
Department for Transport,Department for Transport,13/04/2015,Building Service Cha,Group Procurement and Property,Amey Community Ltd,2000000597,127131.84,#,OX4 4DQ,
Department for Transport,Department for Transport,13/04/2015,Building Service Cha,Group Procurement and Property,Amey Community Ltd,2000000597,73452,#,OX4 4DQ,
Department for Transport,Department for Transport,13/04/2015,Cap Grt Pri Sec-Cos.,"Policy, Legislation and Funding",Eversheds LLP,2000000591,351475,xxxxxx,CF10 5BT,
Department for Transport,Department for Transport,13/04/2015,Car Tax & Insurance,Motoring Services,Portmore Insurance Brokers Ltd,2000000592,2250,#,SO16 9JX,
Department for Transport,Department for Transport,13/04/2015,Car Tax & Insurance,Motoring Services,Portmore Insurance Brokers Ltd,2000000592,3010.4,#,SO16 9JX,
Department for Transport,Department for Transport,13/04/2015,Car Tax & Insurance,Motoring Services,Portmore Insurance Brokers Ltd,2000000592,610,#,SO16 9JX,
Department for Transport,Department for Transport,13/04/2015,Cars Fuel,Air Accident Investigation Branch,ALLSTAR BUSINESS SOLUTIONS LIMITED,2000000566,1270.96,#,SN5 6PS,
Department for Transport,Department for Transport,13/04/2015,Cars Fuel,Motoring Services,ALLSTAR BUSINESS SOLUTIONS LIMITED,2000000566,12109.45,#,SN5 6PS,
Department for Transport,Department for Transport,13/04/2015,CurrGrt Las in AEF/A,Rail Strategy & Funding,TRANSPORT FOR LONDON,2000000582,2058521.58,TfL LOROL Grant - Dec 14,SW1H 0TL,
Department for Transport,Department for Transport,13/04/2015,CurrGrt Las in AEF/A,Local,STEER DAVIES & GLEAVE LTD,2000000584,6186000,Steer Davies Gleave 1st payment 2015-16,SE1 9PD,
Department for Transport,Department for Transport,13/04/2015,Investigation Servic,Motoring Services,Procordia Ltd,2000000590,741,#,TN39 4SR,
Department for Transport,Department for Transport,13/04/2015,Legal Consultancy,"Motoring, Freight & London",xxxxxx,2000000593,900,#,xxxxxx,
Department for Transport,Department for Transport,13/04/2015,Machinery Rental,Air Accident Investigation Branch,CANON (UK) LTD,2000000570,448.14,#,RH2 8BF,
Department for Transport,Department for Transport,13/04/2015,Photography,Strategy and Engagement,ALAMY LTD,2000000565,588,#,OX14 4SA,
Department for Transport,Department for Transport,13/04/2015,Property Maintenance,Air Accident Investigation Branch,DEFENCE BUSINESS SERVICES,2000000583,148645.3,#,YO10 4AS,
Department for Transport,Department for Transport,13/04/2015,Rates,Group Procurement and Property,DFT ONE TIME VENDOR,2000000596,68742,#,SW1P 4DR,
Department for Transport,Department for Transport,13/04/2015,Recruitment Fees,"Group Services, Change and Capability",Regus UK Limited,2000000573,3389.4,#,SL1 4DX,
Department for Transport,Department for Transport,13/04/2015,Research,Local,WSP UK Limited,2000000578,8908.64,#,GL20 8SJ,
Department for Transport,Department for Transport,13/04/2015,Research,Transport Security Co-ordination and Response,HOME OFFICE SHARED SERVICE CENTRE,100002475,58579.37,#,NP20 9BB,
Department for Transport,Department for Transport,13/04/2015,Research,Transport Security Co-ordination and Response,HOME OFFICE SHARED SERVICE CENTRE,100002475,-58579.37,#,NP20 9BB,
Department for Transport,Department for Transport,13/04/2015,Small Software,Motoring Services,IBM UK LTD,2000000563,17081.49,#,PO6 3AE,
Department for Transport,Department for Transport,13/04/2015,Support Services,Environment & International Transport Analysis,BMT RELIABILITY CONSULTANTS LTD,2000000568,37708.5,#,PO15 5SU,
Department for Transport,Department for Transport,13/04/2015,Support Services,Aviation,NEWCASTLE INTERNATIONAL AIRPORT LTD,2000000574,30378,#,NE13 8BZ,
Department for Transport,Department for Transport,13/04/2015,Transport  Consult,Aviation,JACOBS UK LTD,2000000572,306538.22,#,G2 7HX,
Department for Transport,Department for Transport,14/04/2015,Agency Staff Costs,Air Accident Investigation Branch,BROOK STREET (UK) LIMITED,2000000831,515.88,#,AL1 4JB,
Department for Transport,Department for Transport,14/04/2015,Agency Staff Costs,Integrated Delivery,Allen Lane,2000000807,4036.38,#,SW1Y 6RJ,
Department for Transport,Department for Transport,14/04/2015,Agency Staff Costs,Integrated Delivery,Badenoch & Clark c/o Lauren Rogers,2000000808,3277.5,#,B37 7YE,
Department for Transport,Department for Transport,14/04/2015,Agency Staff Costs,Integrated Delivery,MICHAEL PAGE INTERNATIONAL,2000000832,3594,#,SL1 3SA,
Department for Transport,Department for Transport,14/04/2015,Agency Staff Costs,Integrated Delivery,MICHAEL PAGE INTERNATIONAL,2000000832,2736,#,SL1 3SA,
Department for Transport,Department for Transport,14/04/2015,Agency Staff Costs,Major Projects & Growth,Badenoch & Clark c/o Lauren Rogers,2000000808,2978.16,#,B37 7YE,
Department for Transport,Department for Transport,14/04/2015,Agency Staff Costs,Major Projects & Growth,Experis Ltd,2000000815,6040.02,#,EC2M 2RB,
Department for Transport,Department for Transport,14/04/2015,Agency Staff Costs,Rail Commercial & Programme Office,CAPITA BUSINESS SERVICES LTD,2000000805,4148.58,#,DL1 9HN,
Department for Transport,Department for Transport,14/04/2015,Agency Staff Costs,Rail Commercial & Programme Office,CAPITA BUSINESS SERVICES LTD,2000000805,2068.75,#,DL1 9HN,
Department for Transport,Department for Transport,14/04/2015,Agency Staff Costs,Rail Commercial & Programme Office,Capita Resourcing Limited,2000000833,10493.93,#,EC4A 1EN,
Department for Transport,Department for Transport,14/04/2015,Agency Staff Costs,Rail Commercial & Programme Office,MORGAN HUNT UK LTD,2000000823,3135.55,#,EC4M 7EG,
Department for Transport,Department for Transport,14/04/2015,Agency Staff Costs,Rail Commercial & Programme Office,Experis Ltd,2000000815,3423.9,#,EC2M 2RB,
Department for Transport,Department for Transport,14/04/2015,Agency Staff Costs,Group Finance,CAPITA BUSINESS SERVICES LTD,2000000805,536.03,#,DL1 9HN,
Department for Transport,Department for Transport,14/04/2015,Agency Staff Costs,Group Finance,CAPITA BUSINESS SERVICES LTD,2000000805,1608.08,#,DL1 9HN,
Department for Transport,Department for Transport,14/04/2015,Agency Staff Costs,Group Finance,CAPITA BUSINESS SERVICES LTD,2000000805,3176.54,#,DL1 9HN,
Department for Transport,Department for Transport,14/04/2015,Agency Staff Costs,Rail Franchising,BROOK STREET (UK) LIMITED,2000000831,658.56,#,AL1 4JB,
Department for Transport,Department for Transport,14/04/2015,Agency Staff Costs,Rail Franchising,CAPITA BUSINESS SERVICES LTD,2000000805,26208,#,DL1 9HN,
Department for Transport,Department for Transport,14/04/2015,Agency Staff Costs,Rail Commercial & Programme Office,CAPITA BUSINESS SERVICES LTD,2000000805,2312.11,#,DL1 9HN,
Department for Transport,Department for Transport,14/04/2015,Agency Staff Costs,Rail Commercial & Programme Office,CAPITA BUSINESS SERVICES LTD,2000000805,6577.85,#,DL1 9HN,
Department for Transport,Department for Transport,14/04/2015,Agency Staff Costs,Group Finance,CAPITA BUSINESS SERVICES LTD,2000000805,1968.3,#,DL1 9HN,
Department for Transport,Department for Transport,14/04/2015,Agency Staff Costs,Group Finance,CAPITA BUSINESS SERVICES LTD,2000000805,7662.91,#,DL1 9HN,
Department for Transport,Department for Transport,14/04/2015,Agency Staff Costs,Integrated Delivery,CAPITA BUSINESS SERVICES LTD,2000000805,8986.92,#,DL1 9HN,
Department for Transport,Department for Transport,14/04/2015,Agency Staff Costs,Integrated Delivery,CAPITA BUSINESS SERVICES LTD,2000000805,4510.62,#,DL1 9HN,
Department for Transport,Department for Transport,14/04/2015,Agency Staff Costs,Integrated Delivery,CAPITA BUSINESS SERVICES LTD,2000000805,2160.54,#,DL1 9HN,
Department for Transport,Department for Transport,14/04/2015,Agency Staff Costs,Rail Franchising,Capita Resourcing Limited,2000000833,2775,#,EC4A 1EN,
Department for Transport,Department for Transport,14/04/2015,Agency Staff Costs,Group Finance,Experis Ltd,2000000815,3080.26,#,EC2M 2RB,
Department for Transport,Department for Transport,14/04/2015,Agency Staff Costs,Project Sponsorship,SPRING TECHNOLOGY LTD  ALSO T/A,2000000836,4650,#,B37 7YE,
Department for Transport,Department for Transport,14/04/2015,Agency Staff Costs,Project Sponsorship,SPRING TECHNOLOGY LTD  ALSO T/A,2000000836,4200,#,B37 7YE,
Department for Transport,Department for Transport,14/04/2015,Agency Staff Costs,Project Sponsorship,SPRING TECHNOLOGY LTD  ALSO T/A,2000000836,2520,#,B37 7YE,
Department for Transport,Department for Transport,14/04/2015,Agency Staff Costs,Project Sponsorship,SPRING TECHNOLOGY LTD  ALSO T/A,2000000836,3720,#,B37 7YE,
Department for Transport,Department for Transport,14/04/2015,Agency Staff Costs,HS2 Finance and Commercial,Veredus (trading name for,2000000856,33600,#,DL1 9HN,
Department for Transport,Department for Transport,14/04/2015,Building Service Cha,Group Procurement and Property,Amey Community Ltd,2000000860,20000,#,OX4 4DQ,
Department for Transport,Department for Transport,14/04/2015,Cap Grt Loc Auth,"Energy, Technology and International",EXETER CITY COUNCIL,2000000818,50963.88,201314  #50963.88 Public Sector Chargepoints,EX1 1JW,
Department for Transport,Department for Transport,14/04/2015,Curr Grt Other CG Bo,Major Projects & Growth,TECHNOLOGY STRATEGY BOARD,2000000838,2079575,INVCN001096,SN2 1JF,
Department for Transport,Department for Transport,14/04/2015,CurrGrt Las in AEF/A,Local,Basingstoke & Deane Borough Council,2000000792,26088,Basingstoke and Deane Borough Council,RG21 4AH,
Department for Transport,Department for Transport,14/04/2015,CurrGrt Las in AEF/A,Local,BATH & NE SOMERSET DC,2000000692,234564,Bath & North East Somerset Council,BA1 5AW,
Department for Transport,Department for Transport,14/04/2015,CurrGrt Las in AEF/A,Local,BEDFORD BC,2000000693,195548,Bedford Borough Council,MK40 1SJ,
Department for Transport,Department for Transport,14/04/2015,CurrGrt Las in AEF/A,Local,BLACKBURN WITH DARWEN BC,2000000745,65375,Blackburn with Darwen BC,BB1 7DY,
Department for Transport,Department for Transport,14/04/2015,CurrGrt Las in AEF/A,Local,Blackpool Borough Council,2000000793,41141,Blackpool Borough Council,FY4 2TS,
Department for Transport,Department for Transport,14/04/2015,CurrGrt Las in AEF/A,Local,BRACKNELL FOREST BC,2000000689,99779,Bracknell Forest,RG12 1AQ,
Department for Transport,Department for Transport,14/04/2015,CurrGrt Las in AEF/A,Local,BRADFORD METRO DISTRICT COUNCIL,2000000772,82651,Bradford MBC,BD1 1HX,
Department for Transport,Department for Transport,14/04/2015,CurrGrt Las in AEF/A,Local,BRENT COMMUNITY TRANSPORT,2000000733,59633,London Borough of Brent,HA9 7RG,
Department for Transport,Department for Transport,14/04/2015,CurrGrt Las in AEF/A,Local,Brighton & Hove City Council,2000000694,172990,Brighton and Hove City Council,BN1 1JE,
Department for Transport,Department for Transport,14/04/2015,CurrGrt Las in AEF/A,Local,Bristol City Council,2000000794,448348,Bristol City Council,BS1 5TR,
Department for Transport,Department for Transport,14/04/2015,CurrGrt Las in AEF/A,Local,BUCKINGHAMSHIRE CC (REVENUE),2000000695,464608,Buckinghamshire County Council,HP20 1UD,
Department for Transport,Department for Transport,14/04/2015,CurrGrt Las in AEF/A,Local,BURY MBC,2000000734,18993,Bury MBC,BL9 0DN,
Department for Transport,Department for Transport,14/04/2015,CurrGrt Las in AEF/A,Local,CALDERDALE MBC,2000000735,42698,Calderdale MBC,HX1 4PL,
Department for Transport,Department for Transport,14/04/2015,CurrGrt Las in AEF/A,Local,CAMBRIDGESHIRE COUNTY COUNCIL,2000000696,301818,Cambridgeshire County Council,CB3 0AP,
Department for Transport,Department for Transport,14/04/2015,CurrGrt Las in AEF/A,Local,Central Bedfordshire Council,2000000764,136394,Central Bedfordshire Council,SG17 5TQ,
Department for Transport,Department for Transport,14/04/2015,CurrGrt Las in AEF/A,Local,Centro,2000000756,1792259,CENTRO,B19 3SD,
Department for Transport,Department for Transport,14/04/2015,CurrGrt Las in AEF/A,Local,CHESHIRE EAST BOROUGH COUNCIL,2000000762,347865,Cheshire East,CW11 1HZ,
Department for Transport,Department for Transport,14/04/2015,CurrGrt Las in AEF/A,Local,Cheshire West & Chester Council,2000000763,314318,Cheshire West and Chester,CH1 1SE,
Department for Transport,Department for Transport,14/04/2015,CurrGrt Las in AEF/A,Local,CITY OF SALFORD COM & SOC SERV,2000000741,21478,Salford City Council,M50 1SW,
Department for Transport,Department for Transport,14/04/2015,CurrGrt Las in AEF/A,Local,City of Stoke on Trent,2000000783,29618,Stoke-on-Trent City Council,ST4 1HH,
Department for Transport,Department for Transport,14/04/2015,CurrGrt Las in AEF/A,Local,CITY OF YORK COUNCIL,2000000697,150416,City of York Council,Y01 7WH,
Department for Transport,Department for Transport,14/04/2015,CurrGrt Las in AEF/A,Local,CORNWALL COUNTY COUNCIL,2000000744,773409,Cornwall County Council,TR1 3AY,
Department for Transport,Department for Transport,14/04/2015,CurrGrt Las in AEF/A,Local,CUMBRIA COUNTY COUNCIL,2000000775,480314,Cumbria County Council,CA3 8NA,
Department for Transport,Department for Transport,14/04/2015,CurrGrt Las in AEF/A,Local,DARLINGTON BC,2000000698,36354,Darlington Borough Council,TS19 1JA,
Department for Transport,Department for Transport,14/04/2015,CurrGrt Las in AEF/A,Local,Derby City Council,2000000795,36542,Derby City Council,DE1 2FE,
Department for Transport,Department for Transport,14/04/2015,CurrGrt Las in AEF/A,Local,DERBYSHIRE COUNTY COUNCIL,2000000699,896586,Derbyshire County Council,DE4 3AH,
Department for Transport,Department for Transport,14/04/2015,CurrGrt Las in AEF/A,Local,DEVON COUNTY COUNCIL,2000000700,1145982,Devon County Council,EX2 4QJ,
Department for Transport,Department for Transport,14/04/2015,CurrGrt Las in AEF/A,Local,DORSET COUNTY COUNCIL,2000000701,447391,Dorset County Council,DT1 1XJ,
Department for Transport,Department for Transport,14/04/2015,CurrGrt Las in AEF/A,Local,Durham County Council,2000000796,347169,Durham County Council,DH1 5UL,
Department for Transport,Department for Transport,14/04/2015,CurrGrt Las in AEF/A,Local,EAST RIDING OF YORKSHIRE COUNCIL,2000000702,513710,East Riding of Yorkshire Council,HU17 9BA,
Department for Transport,Department for Transport,14/04/2015,CurrGrt Las in AEF/A,Local,EAST SUSSEX COUNTY COUNCIL,2000000751,442709,East Sussex County Council,BN7 1UE,
Department for Transport,Department for Transport,14/04/2015,CurrGrt Las in AEF/A,Local,Eastleigh Borough Council,2000000797,5785,Eastleigh Borough Council,SO50 9YN,
Department for Transport,Department for Transport,14/04/2015,CurrGrt Las in AEF/A,Local,Essex County Council,2000000798,1185991,Essex County Council,CM1 1LX,
Department for Transport,Department for Transport,14/04/2015,CurrGrt Las in AEF/A,Local,GATESHEAD MBC,2000000736,13419,Gateshead MBC,NE8 1HH,
Department for Transport,Department for Transport,14/04/2015,CurrGrt Las in AEF/A,Local,GLOUCESTERSHIRE COUNTY COUNCIL,2000000691,458365,Gloucestershire County Council,GL1 2TJ,
Department for Transport,Department for Transport,14/04/2015,CurrGrt Las in AEF/A,Local,HALTON BC,2000000703,89574,Halton Borough Council,WA8 6NB,
Department for Transport,Department for Transport,14/04/2015,CurrGrt Las in AEF/A,Local,HAMPSHIRE COUNTY COUNCIL (SSD),2000000737,1068177,Hampshire County Council,SO23 8UQ,
Department for Transport,Department for Transport,14/04/2015,CurrGrt Las in AEF/A,Local,HARTLEPOOL BOROUGH COUNCIL,2000000765,2954,Hartlepool Borough Council,TS24 7BT,
Department for Transport,Department for Transport,14/04/2015,CurrGrt Las in AEF/A,Local,Herefordshire Council,2000000801,218580,Herefordshire County Council,HR4 0XH,
Department for Transport,Department for Transport,14/04/2015,CurrGrt Las in AEF/A,Local,Hertfordshire County Council,2000000784,1211630,Hertfordshire County Council,SG13 8DN,
Department for Transport,Department for Transport,14/04/2015,CurrGrt Las in AEF/A,Local,ISLE OF WIGHT COUNCIL,2000000704,22346,Isle of Wight Council,PO30 1UD,
Department for Transport,Department for Transport,14/04/2015,CurrGrt Las in AEF/A,Local,Kettering Borough Council,2000000785,5074,Kettering Borough Council,NN15 7QX,
Department for Transport,Department for Transport,14/04/2015,CurrGrt Las in AEF/A,Local,KINGSTON UPON HULL CITY COUNCIL,2000000705,134398,Kingston upon Hull City Council,HU1 2AB,
Department for Transport,Department for Transport,14/04/2015,CurrGrt Las in AEF/A,Local,KNOWSLEY MBC,2000000706,3300,Knowsley Metropolitan Borough Council,L32 1TX,
Department for Transport,Department for Transport,14/04/2015,CurrGrt Las in AEF/A,Local,LANCASHIRE COUNTY COUNCIL,2000000707,1866269,Lancashire County Council,PR1 0LD,
Department for Transport,Department for Transport,14/04/2015,CurrGrt Las in AEF/A,Local,LEEDS CITY COUNCIL,2000000738,177534,Leeds City Council,LS2 8JR,
Department for Transport,Department for Transport,14/04/2015,CurrGrt Las in AEF/A,Local,Leicester City Council,2000000708,100287,Leicester City Council,LE1 1FZ,
Department for Transport,Department for Transport,14/04/2015,CurrGrt Las in AEF/A,Local,LEICESTERSHIRE COUNTY COUNCIL,2000000746,534721,Leicestershire County Council,LE3 8RB,
Department for Transport,Department for Transport,14/04/2015,CurrGrt Las in AEF/A,Local,Lincolnshire County Council,2000000786,535302,Lincolnshire County Council,LN1 1DN,
Department for Transport,Department for Transport,14/04/2015,CurrGrt Las in AEF/A,Local,LIVERPOOL CITY COUNCIL,2000000758,46946,Liverpool City Council,L13 3HS,
Department for Transport,Department for Transport,14/04/2015,CurrGrt Las in AEF/A,Local,LONDON BOROUGH OF,2000000761,13989,London Borough of Barking and Dagenham,RM10 7HE,
Department for Transport,Department for Transport,14/04/2015,CurrGrt Las in AEF/A,Local,LONDON BOROUGH OF CAMDEN,2000000769,31827,London Borough of Camden,N1C 4BE,
Department for Transport,Department for Transport,14/04/2015,CurrGrt Las in AEF/A,Local,London Borough of Enfield,2000000774,18897,London Borough of Enfield,EN3 4QN,
Department for Transport,Department for Transport,14/04/2015,CurrGrt Las in AEF/A,Local,LONDON BOROUGH OF HARROW,2000000768,69341,London Borough of Harrow,HA1 2XF,
Department for Transport,Department for Transport,14/04/2015,CurrGrt Las in AEF/A,Local,London Borough of Hillingdon,2000000776,21666,London Borough of Hillingdon,UB8 1UW,
Department for Transport,Department for Transport,14/04/2015,CurrGrt Las in AEF/A,Local,LONDON BOROUGH OF HOUNSLOW,2000000773,24896,London Borough of Hounslow,TW3 1SQ,
Department for Transport,Department for Transport,14/04/2015,CurrGrt Las in AEF/A,Local,London Borough of Islington,2000000800,3412,London Borough of Islington,N1 1XR,
Department for Transport,Department for Transport,14/04/2015,CurrGrt Las in AEF/A,Local,LONDON BOROUGH OF NEWHAM,2000000770,42170,London Borough of Newham,E6 4BX,
Department for Transport,Department for Transport,14/04/2015,CurrGrt Las in AEF/A,Local,LONDON BOROUGH REDBRIDGE,2000000739,44802,London Borough of Redbridge,IG1 1NN,
Department for Transport,Department for Transport,14/04/2015,CurrGrt Las in AEF/A,Local,LUTON BOROUGH COUNCIL,2000000709,74446,Luton Borough Council,LU1 2BQ,
Department for Transport,Department for Transport,14/04/2015,CurrGrt Las in AEF/A,Local,Maidstone Borough Council,2000000782,39766,Maidstone Borough Council,ME15 6JQ,
Department for Transport,Department for Transport,14/04/2015,CurrGrt Las in AEF/A,Local,MEDWAY COUNCIL,2000000750,172154,Medway Council,ME4 4TR,
Department for Transport,Department for Transport,14/04/2015,CurrGrt Las in AEF/A,Local,Merseytravel,2000000799,1516408,Merseyside Travel PTE,L69 3HN,
Department for Transport,Department for Transport,14/04/2015,CurrGrt Las in AEF/A,Local,MIDDLESBROUGH BC,2000000690,42328,Middlesbrough Borough Council,TS1 2QQ,
Department for Transport,Department for Transport,14/04/2015,CurrGrt Las in AEF/A,Local,MILTON KEYNES BC,2000000710,464756,Milton Keynes Council,MK9 3EE,
Department for Transport,Department for Transport,14/04/2015,CurrGrt Las in AEF/A,Local,Newcastle City Council,2000000754,19676,Newcastle City Council,NE1 8PA,
Department for Transport,Department for Transport,14/04/2015,CurrGrt Las in AEF/A,Local,NEXUS,2000000711,890798,Nexus,NE1 4AX,
Department for Transport,Department for Transport,14/04/2015,CurrGrt Las in AEF/A,Local,NORFOLK COUNTY COUNCIL,2000000721,1056189,Norfolk County Council,NR1 2UG,
Department for Transport,Department for Transport,14/04/2015,CurrGrt Las in AEF/A,Local,North Lincolnshire Council,2000000787,212282,North Lincolnshire Council,DN20 8XY,
Department for Transport,Department for Transport,14/04/2015,CurrGrt Las in AEF/A,Local,North Somerset Council,2000000712,68153,North Somerset Council,BS23 1UJ,
Department for Transport,Department for Transport,14/04/2015,CurrGrt Las in AEF/A,Local,NORTH YORKSHIRE CC,2000000713,1039698,North Yorkshire County Council,DL7 8AL,
Department for Transport,Department for Transport,14/04/2015,CurrGrt Las in AEF/A,Local,NORTHAMPTONSHIRE CC,2000000714,215183,Northamptonshire County Council,NN4 7DB,
Department for Transport,Department for Transport,14/04/2015,CurrGrt Las in AEF/A,Local,Nottingham City Council,2000000760,197557,Nottingham City Council,NG2 3NG,
Department for Transport,Department for Transport,14/04/2015,CurrGrt Las in AEF/A,Local,NOTTINGHAMSHIRE CC,2000000715,1002539,Nottinghamshire County Council,NG2 7LA,
Department for Transport,Department for Transport,14/04/2015,CurrGrt Las in AEF/A,Local,OXFORDSHIRE CC,2000000716,794733,Oxfordshire County Council,OX1 1TH,
Department for Transport,Department for Transport,14/04/2015,CurrGrt Las in AEF/A,Local,PETERBOROUGH CITY COUNCIL,2000000717,107212,Peterborough City Council,PE1 1FF,
Department for Transport,Department for Transport,14/04/2015,CurrGrt Las in AEF/A,Local,PLYMOUTH CITY COUNCIL,2000000718,85008,Plymouth City Council,PL1 2AA,
Department for Transport,Department for Transport,14/04/2015,CurrGrt Las in AEF/A,Local,POOLE BC,2000000719,177533,Poole Borough Council,BH15 2RZ,
Department for Transport,Department for Transport,14/04/2015,CurrGrt Las in AEF/A,Local,PORTSMOUTH CITY COUNCIL,2000000740,84784,Portsmouth City Council,PO1 2BG,
Department for Transport,Department for Transport,14/04/2015,CurrGrt Las in AEF/A,Local,Reading Borough Council,2000000720,74192,Reading Borough Council,RG1 2LU,
Department for Transport,Department for Transport,14/04/2015,CurrGrt Las in AEF/A,Local,REDCAR & CLEVELAND BC,2000000747,60876,Redcar and Cleveland Borough Council,TS6 9AR,
Department for Transport,Department for Transport,14/04/2015,CurrGrt Las in AEF/A,Local,ROTHERHAM METROPOLITAN BOROUGH,2000000771,20959,Rotherham MBC,S66 8QL,
Department for Transport,Department for Transport,14/04/2015,CurrGrt Las in AEF/A,Local,RUTLAND COUNTY COUNCIL,2000000722,68708,Rutland County Council,LE15 6HP,
Department for Transport,Department for Transport,14/04/2015,CurrGrt Las in AEF/A,Local,SHEFFIELD CITY COUNTY COUNCIL,2000000753,106858,Sheffield City Council,S9 3GZ,
Department for Transport,Department for Transport,14/04/2015,CurrGrt Las in AEF/A,Local,SHROPSHIRE COUNTY COUNCIL,2000000723,512447,Shropshire County Council,SY2 6ND,
Department for Transport,Department for Transport,14/04/2015,CurrGrt Las in AEF/A,Local,Slough Borough Council,2000000788,43138,Slough Borough Council,SL1 3UQ,
Department for Transport,Department for Transport,14/04/2015,CurrGrt Las in AEF/A,Local,Somerset County Council,2000000789,453947,Somerset County Council,TA1 4DY,
Department for Transport,Department for Transport,14/04/2015,CurrGrt Las in AEF/A,Local,South Gloucestershire Council,2000000790,464709,South Gloucestershire Council,BS35 1HF,
Department for Transport,Department for Transport,14/04/2015,CurrGrt Las in AEF/A,Local,SOUTH YORKSHIRE PTE,2000000757,1127171,South Yorkshire Passenger Transport Executive,S1 2BQ,
Department for Transport,Department for Transport,14/04/2015,CurrGrt Las in AEF/A,Local,SOUTHAMPTON CITY COUNCIL,2000000752,75112,Southampton City Council,SO14 7LY,
Department for Transport,Department for Transport,14/04/2015,CurrGrt Las in AEF/A,Local,ST HELENS COUNCIL SOCIAL SERVICES,2000000742,23398,St Helens MBC,WA10 1DY,
Department for Transport,Department for Transport,14/04/2015,CurrGrt Las in AEF/A,Local,Staffordshire County Council,2000000791,699869,Staffordshire County Council,ST16 2LP,
Department for Transport,Department for Transport,14/04/2015,CurrGrt Las in AEF/A,Local,STOCKTON ON TEES BC,2000000724,88923,Stockton-on-Tees Borough Council,TS23 2YS,
Department for Transport,Department for Transport,14/04/2015,CurrGrt Las in AEF/A,Local,Suffolk County Council (Bus Grants),2000000777,614935,Suffolk County Council,IP1 2BX,
Department for Transport,Department for Transport,14/04/2015,CurrGrt Las in AEF/A,Local,SURREY COUNTY COUNCIL,2000000725,1125405,Surrey County Council,KT1 2DN,
Department for Transport,Department for Transport,14/04/2015,CurrGrt Las in AEF/A,Local,SWINDON BC,2000000726,176205,Swindon Borough Council,SN1 2JH,
Department for Transport,Department for Transport,14/04/2015,CurrGrt Las in AEF/A,Local,TAMESIDE METROPOLITAN,2000000767,12129,Tameside MBC,SK15 1ST,
Department for Transport,Department for Transport,14/04/2015,CurrGrt Las in AEF/A,Local,THURROCK DC,2000000727,45263,Thurrock Council,RM17 6LT,
Department for Transport,Department for Transport,14/04/2015,CurrGrt Las in AEF/A,Local,Torbay Borough Council,2000000778,24190,Torbay Borough Council,TQ1 3DR,
Department for Transport,Department for Transport,14/04/2015,CurrGrt Las in AEF/A,Local,Transport for Greater Manchester,2000000779,2953691,Transport for Greater Manchester,M1 3BG,
Department for Transport,Department for Transport,14/04/2015,CurrGrt Las in AEF/A,Local,W YORKS PTA,2000000728,2063592,Metro,LS1 1QS,
Department for Transport,Department for Transport,14/04/2015,CurrGrt Las in AEF/A,Local,Wakefield Council,2000000766,37753,Wakefield MDC,WF1 9AJ,
Department for Transport,Department for Transport,14/04/2015,CurrGrt Las in AEF/A,Local,WARRINGTON BC,2000000729,40214,Warrington Borough Council,WA1 1BN,
Department for Transport,Department for Transport,14/04/2015,CurrGrt Las in AEF/A,Local,Warwickshire County Council,2000000748,669113,Warwickshire County Council,CV34 4RH,
Department for Transport,Department for Transport,14/04/2015,CurrGrt Las in AEF/A,Local,WEST BERKSHIRE DC,2000000730,137099,West Berkshire District Council,RG14 2AF,
Department for Transport,Department for Transport,14/04/2015,CurrGrt Las in AEF/A,Local,West Sussex County Council,2000000780,436145,West Sussex County Council,PO19 1RQ,
Department for Transport,Department for Transport,14/04/2015,CurrGrt Las in AEF/A,Local,WIGAN COUNCIL,2000000759,31455,Wigan Council,WN1 1AZ,
Department for Transport,Department for Transport,14/04/2015,CurrGrt Las in AEF/A,Local,Winchester City Council,2000000781,45356,Winchester City Council,SO23 9LJ,
Department for Transport,Department for Transport,14/04/2015,CurrGrt Las in AEF/A,Local,WINDSOR & MAIDENHEAD,2000000731,76146,Royal Borough of Windsor and Maidenhead,SL6 1RF,
Department for Transport,Department for Transport,14/04/2015,CurrGrt Las in AEF/A,Local,Wirral Council,2000000755,14536,Wirral Borough Council,CH41 6BU,
Department for Transport,Department for Transport,14/04/2015,CurrGrt Las in AEF/A,Local,WOKINGHAM DC,2000000732,111461,Wokingham District Council,RG40 1JW,
Department for Transport,Department for Transport,14/04/2015,CurrGrt Las in AEF/A,Local,WORCESTERSHIRE COUNTY COUNCIL,2000000749,495151,Worcestershire County Council,WR5 2NP,
Department for Transport,Department for Transport,14/04/2015,Financial Consultanc,Group Procurement and Property,BRAVOSOLUTION UK LTD,2000000809,12000,#,EC2M 7AD,
Department for Transport,Department for Transport,14/04/2015,Financial Consultanc,Rail Strategy & Funding,Five Arrows Leasing Group LTD,2000000855,3600,#,HA5 5LX,
Department for Transport,Department for Transport,14/04/2015,Financial Consultanc,Rail Strategy & Funding,Five Arrows Leasing Group LTD,2000000855,600,#,HA5 5LX,
Department for Transport,Department for Transport,14/04/2015,Financial Consultanc,Rail Franchising,ERNST & YOUNG LLP,2000000816,6551.2,#,SE1 2AF,
Department for Transport,Department for Transport,14/04/2015,HR Consultancy,Group Human Resource,BENEFEX LIMITED,2000000839,22670.9,#,SO15 2JU,
Department for Transport,Department for Transport,14/04/2015,IT Equip Cap Cost,Motoring Services,ANS Group plc,2000000859,192798.71,#,M15 6SY,
Department for Transport,Department for Transport,14/04/2015,IT Equip Cap Cost,Motoring Services,ANS Group plc,2000000859,116351.84,#,M15 6SY,
Department for Transport,Department for Transport,14/04/2015,IT Equip Cap Cost,Marine Accident Investigation Branch,Digital Message Limited,2000000851,17624.05,#,TW20 8RB,
Department for Transport,Department for Transport,14/04/2015,IT Ser Running Costs,Group Communications,RACKSPACE LTD,2000000825,1048.41,#,UB3 4AZ,
Department for Transport,Department for Transport,14/04/2015,Legal Consultancy,Network Rail Sponsorship,SIMMONS & SIMMONS,2000000829,13571.4,#,EC2Y 9SS,
Department for Transport,Department for Transport,14/04/2015,Maintenance Other,"Motoring, Freight & London",TDC SYSTEMS LIMITED,2000000830,480,#,BS24 9BP,
Department for Transport,Department for Transport,14/04/2015,Maintenance Other,"Motoring, Freight & London",TDC SYSTEMS LIMITED,2000000830,515,#,BS24 9BP,
Department for Transport,Department for Transport,14/04/2015,Maintenance Other,"Motoring, Freight & London",TDC SYSTEMS LIMITED,2000000830,515,#,BS24 9BP,
Department for Transport,Department for Transport,14/04/2015,Maintenance Other,"Motoring, Freight & London",TDC SYSTEMS LIMITED,2000000830,853.5,#,BS24 9BP,
Department for Transport,Department for Transport,14/04/2015,Maintenance Other,"Motoring, Freight & London",TDC SYSTEMS LIMITED,2000000830,9949.65,#,BS24 9BP,
Department for Transport,Department for Transport,14/04/2015,Maintenance Other,"Motoring, Freight & London",TDC SYSTEMS LIMITED,2000000830,1675,#,BS24 9BP,
Department for Transport,Department for Transport,14/04/2015,Maintenance Other,Motoring Services,ARVAL,2000000806,1442.51,#,SN5 6PE,
Department for Transport,Department for Transport,14/04/2015,Non Stock Machine Co,Motoring Services,XMA LIMITED GOSC,2000000850,645.38,#,NG11 7EP,
Department for Transport,Department for Transport,14/04/2015,Property Maintenance,Rail Accident Investigation Branch,Interserve,2000000845,1022.37,#,B70 1DA,
Department for Transport,Department for Transport,14/04/2015,Publications for Res,Group Communications,CREATIVE CHOICE CIC,100002552,2963,GMH image and signage refresh proposal,SW1H 0DJ,
Department for Transport,Department for Transport,14/04/2015,Publications for Res,Group Communications,CREATIVE CHOICE CIC,100002552,-2963,Credit for Invoice 5106015165,SW1H 0DJ,
Department for Transport,Department for Transport,14/04/2015,Publications for Res,"Energy, Technology and International",CREATIVE CHOICE CIC,100002552,435,Driverless Cars Infographic_Tweets,SW1H 0DJ,
Department for Transport,Department for Transport,14/04/2015,Publications for Res,"Energy, Technology and International",CREATIVE CHOICE CIC,100002552,-435,Credit for Invoice 5106015161,SW1H 0DJ,
Department for Transport,Department for Transport,14/04/2015,Publicity,Principal Priv. Secretary & Head of Private Office,CHUBB SYSTEMS LIMITED,2000000811,1245,#,BB1 2PR,
Department for Transport,Department for Transport,14/04/2015,Publicity,"Energy, Technology and International",CARAT LTD,2000000810,18924.98,#,WC2B 5PS,
Department for Transport,Department for Transport,14/04/2015,Rates,Rail Accident Investigation Branch,DERBY CITY COUNCIL (NNDR),2000000813,2928,Derby City - April 15 - April 16,DE1 2XG,
Department for Transport,Department for Transport,14/04/2015,Recruitment Fees,Group Human Resource,Cadence Partners Ltd,2000000858,5183.04,#,EC2N 2AT,
Department for Transport,Department for Transport,14/04/2015,Recruitment Fees,Group Human Resource,Rockpools Global Res & Cons Ltd,2000000826,4141.74,#,CV1 2TT,
Department for Transport,Department for Transport,14/04/2015,Recruitment Fees,Group Human Resource,Rockpools Global Res & Cons Ltd,2000000826,7020,#,CV1 2TT,
Department for Transport,Department for Transport,14/04/2015,Recruitment Fees,Group Human Resource,HM REVENUE & CUSTOMS,2000000802,3787.08,#,BN12 4XH,
Department for Transport,Department for Transport,14/04/2015,Research,Transport Security Co-ordination and Response,DEFENCE SCIENCE & TECHNOLOGY,2000000814,-81965.8,#,PO14 9HL,
Department for Transport,Department for Transport,14/04/2015,Research,Transport Security Co-ordination and Response,DEFENCE SCIENCE & TECHNOLOGY,2000000814,81965.8,#,PO14 9HL,
Department for Transport,Department for Transport,14/04/2015,Research,Transport Security Co-ordination and Response,DEFENCE SCIENCE & TECHNOLOGY,2000000814,24000,#,PO14 9HL,
Department for Transport,Department for Transport,14/04/2015,Research,Transport Security Co-ordination and Response,HOME OFFICE SHARED SERVICE CENTRE,100002547,12771.29,#,NP20 9BB,
Department for Transport,Department for Transport,14/04/2015,Research,Transport Security Co-ordination and Response,HOME OFFICE SHARED SERVICE CENTRE,100002547,-12771.29,#,NP20 9BB,
Department for Transport,Department for Transport,14/04/2015,Research,Strategy and Engagement,Independent Transport Commission,2000000840,7500,#,EC1M 6EJ,
Department for Transport,Department for Transport,14/04/2015,Services prov by OGD,Group Procurement and Property,London & Continental Railways Ltd,2000000841,292800,JULY 2014 TO SEPT 2014,WC2B 4AN,
Department for Transport,Department for Transport,14/04/2015,Small Software,Group Communications,THE PRESS ASSOCIATION LTD,2000000834,916.55,#,SW1V 1A,
Department for Transport,Department for Transport,14/04/2015,Subscriptions to Pro,Environment & International Transport Analysis,IHS (GLOBAL) LTD,2000000822,20502,#,RG12 8FB,
Department for Transport,Department for Transport,14/04/2015,Subscriptions to Pro,Analysis & Strategy,IMPERIAL COLLEGE,2000000820,19000,#,SW7 2AZ,
Department for Transport,Department for Transport,14/04/2015,Support Services,Aviation,EXETER & DEVON AIRPORT LIMITED,2000000817,30378,#,EX5 2BD,
Department for Transport,Department for Transport,14/04/2015,Support Services,Aviation,HUMBERSIDE INT AIRPORT LTD,2000000835,30378,#,DN39 6YH,
Department for Transport,Department for Transport,14/04/2015,Support Services,Aviation,MINISTRY OF DEFENCE,100002551,-1056000,CREDIT FOR INVOICE 7391336,L2 3YL,
Department for Transport,Department for Transport,14/04/2015,Support Services,Aviation,MINISTRY OF DEFENCE,100002551,1056000,SPECTRUM ADMINISTERED INCENTIVE PRICING,L2 3YL,
Department for Transport,Department for Transport,14/04/2015,Training,Group Human Resource,SCT CONSULTANTS LTD,2000000846,4000,#,W8 5RL,
Department for Transport,Department for Transport,14/04/2015,Training,Group Human Resource,Capita Business Services Ltd,2000000804,21000,#,B1 3RB,
Department for Transport,Department for Transport,14/04/2015,Training,Group Human Resource,Capita Business Services Ltd,2000000804,3756,#,B1 3RB,
Department for Transport,Department for Transport,14/04/2015,Training,Group Human Resource,Capita Business Services Ltd,2000000804,3871.11,#,B1 3RB,
Department for Transport,Department for Transport,14/04/2015,Training,Group Human Resource,Capita Business Services Ltd,2000000804,766,#,B1 3RB,
Department for Transport,Department for Transport,14/04/2015,Training,Group Human Resource,Capita Business Services Ltd,2000000804,5521.92,#,B1 3RB,
Department for Transport,Department for Transport,14/04/2015,Training,Group Human Resource,Capita Business Services Ltd,2000000804,599.8,#,B1 3RB,
Department for Transport,Department for Transport,14/04/2015,Transport  Consult,Rail Strategy & Funding,AECOM INFRASTRUCTURE &,2000000828,540.8,#,RG21 7PP,
Department for Transport,Department for Transport,14/04/2015,Transport  Consult,Strategy and Engagement,KPMG,2000000821,307030.8,#,WD17 1DE,
Department for Transport,Department for Transport,14/04/2015,Travel Expenses UK,Marine Accident Investigation Branch,Clyde Travel Management,2000000812,1037.82,Clyde - 01.04.2015,G52 4JQ,
Department for Transport,Department for Transport,15/04/2015,Agency Staff Costs,Air Accident Investigation Branch,BROOK STREET (UK) LIMITED,2000001009,656.23,#,AL1 4JB,
Department for Transport,Department for Transport,15/04/2015,Agency Staff Costs,Air Accident Investigation Branch,BROOK STREET (UK) LIMITED,2000001009,656.23,#,AL1 4JB,
Department for Transport,Department for Transport,15/04/2015,Agency Staff Costs,Group Human Resource,CAPITA BUSINESS SERVICES LTD,2000000999,3931.32,#,DL1 9HN,
Department for Transport,Department for Transport,15/04/2015,Agency Staff Costs,Group Finance,CAPITA BUSINESS SERVICES LTD,2000000999,2196.05,#,DL1 9HN,
Department for Transport,Department for Transport,15/04/2015,Agency Staff Costs,Major Projects & Growth,Badenoch & Clark c/o Lauren Rogers,2000001001,1786.9,#,B37 7YE,
Department for Transport,Department for Transport,15/04/2015,Agency Staff Costs,Rail Commercial & Programme Office,CAPITA BUSINESS SERVICES LTD,2000000999,2637.7,#,DL1 9HN,
Department for Transport,Department for Transport,15/04/2015,Agency Staff Costs,Integrated Delivery,CAPITA BUSINESS SERVICES LTD,2000000999,3608.5,#,DL1 9HN,
Department for Transport,Department for Transport,15/04/2015,Agency Staff Costs,Rail Commercial & Programme Office,CAPITA BUSINESS SERVICES LTD,2000000999,2650.14,#,DL1 9HN,
Department for Transport,Department for Transport,15/04/2015,Agency Staff Costs,Network Rail Sponsorship,CAPITA BUSINESS SERVICES LTD,2000000999,2468.99,#,DL1 9HN,
Department for Transport,Department for Transport,15/04/2015,Agency Staff Costs,Network Rail Sponsorship,CAPITA BUSINESS SERVICES LTD,2000000999,1178.26,#,DL1 9HN,
Department for Transport,Department for Transport,15/04/2015,Agency Staff Costs,Rail Franchising,CAPITA BUSINESS SERVICES LTD,2000000999,1606.51,#,DL1 9HN,
Department for Transport,Department for Transport,15/04/2015,Agency Staff Costs,Rail Franchising,CAPITA BUSINESS SERVICES LTD,2000000999,7777.06,#,DL1 9HN,
Department for Transport,Department for Transport,15/04/2015,Agency Staff Costs,Rail Franchising,CAPITA BUSINESS SERVICES LTD,2000000999,5280,#,DL1 9HN,
Department for Transport,Department for Transport,15/04/2015,Agency Staff Costs,Integrated Delivery,NETWORKERS INTERNATIONAL (UK) PLC,2000001013,671.63,#,BR1 1HP,
Department for Transport,Department for Transport,15/04/2015,Cap Grt Loc Auth,Local,GREATER MANCHESTER,2000001016,5000000,Payment to GM Transport Fund,M60 2JR,
Department for Transport,Department for Transport,15/04/2015,Cap Grt Loc Auth,Local,BRISTOL CITY COUNCIL,2000001033,193575,West of England BBA - Capital,BS99 7BL,
Department for Transport,Department for Transport,15/04/2015,Cap Grt Loc Auth,Local,BRISTOL CITY COUNCIL,2000001033,1007250,2014-15 LSTF Capital Payment Q3,BS99 7BL,
Department for Transport,Department for Transport,15/04/2015,Cap Grt Pri Sec-Cos.,"Policy, Legislation and Funding",Eversheds LLP,2000001023,613792.85,xxxxxx,CF10 5BT,
Department for Transport,Department for Transport,15/04/2015,Cap Grt Pri Sec-Cos.,"Policy, Legislation and Funding",Eversheds LLP,2000001023,2000,xxxxxx,CF10 5BT,
Department for Transport,Department for Transport,15/04/2015,Cap Grt Pri Sec-Cos.,"Energy, Technology and International",Phoenix Renewables Ltd,2000001028,1800,Phoenix FEB 2015 #1800,LS28 5LY,
Department for Transport,Department for Transport,15/04/2015,Cap Grt Pri Sec-Cos.,"Energy, Technology and International",Puragen,2000001025,900,Puragen Feb 2015 #900,DT1 3AR,
Department for Transport,Department for Transport,15/04/2015,Car Hire and Leasing,Air Accident Investigation Branch,Alphabet (GB) Ltd,2000001031,3284.62,#,RG27 9UF,
Department for Transport,Department for Transport,15/04/2015,Car Hire and Leasing,Air Accident Investigation Branch,Alphabet (GB) Ltd,2000001031,3284.62,#,RG27 9UF,
Department for Transport,Department for Transport,15/04/2015,Car Hire and Leasing,Air Accident Investigation Branch,Alphabet (GB) Ltd,2000001031,3444.09,#,RG27 9UF,
Department for Transport,Department for Transport,15/04/2015,Car Hire and Leasing,Air Accident Investigation Branch,Alphabet (GB) Ltd,2000001031,3284.62,#,RG27 9UF,
Department for Transport,Department for Transport,15/04/2015,Car Hire and Leasing,Air Accident Investigation Branch,Alphabet (GB) Ltd,2000001031,3284.62,#,RG27 9UF,
Department for Transport,Department for Transport,15/04/2015,CurrGrt Las in AEF/A,Local,Canterbury City Council,2000001037,187011,Canterbury City Council,CT1 1YW,
Department for Transport,Department for Transport,15/04/2015,CurrGrt Las in AEF/A,Local,COVENTRY CITY COUNCIL,2000001036,58686,Coventry City Council,CV3 4AR,
Department for Transport,Department for Transport,15/04/2015,CurrGrt Las in AEF/A,Local,EPSOM & EWELL BC,2000001035,6630,Epsom and Ewell Borough Council,KT19 0LU,
Department for Transport,Department for Transport,15/04/2015,CurrGrt Las in AEF/A,Local,BRISTOL CITY COUNCIL,2000001033,151688,West of England BBA - Resource,BS99 7BL,
Department for Transport,Department for Transport,15/04/2015,CurrGrt Las in AEF/A,Local,BRISTOL CITY COUNCIL,2000001033,1316250,2014-15 LSTF Revenue Payments Q3,BS99 7BL,
Department for Transport,Department for Transport,15/04/2015,CurrGrt Las in AEF/A,Local,Cheshire West & Chester Council,2000001014,9480,Highways Maintenance Efficiency Programme Q4,CH1 1SE,
Department for Transport,Department for Transport,15/04/2015,Eurocontrol Contr,Aviation,EUROCONTROL,2000000998,9045769.4,Quarterly Contributions,1130,
Department for Transport,Department for Transport,15/04/2015,IT Consultancy,Rail Strategy & Funding,Lockheed Martin Business,2000001024,4050,#,PA4 9LH,
Department for Transport,Department for Transport,15/04/2015,IT Consultancy,Rail Strategy & Funding,Lockheed Martin Business,2000001024,900,#,PA4 9LH,
Department for Transport,Department for Transport,15/04/2015,IT Ser Running Costs,Motoring Services,ATOS IT Services UK Ltd,100002598,-16885.63,#,WV10 6UH,
Department for Transport,Department for Transport,15/04/2015,IT Ser Running Costs,Motoring Services,ATOS IT Services UK Ltd,100002598,16885.63,#,WV10 6UH,
Department for Transport,Department for Transport,15/04/2015,IT Ser Running Costs,Marine Accident Investigation Branch,Bytes Security Partnerships Ltd,100002601,-3433,#,RG41 5QS,
Department for Transport,Department for Transport,15/04/2015,IT Ser Running Costs,Marine Accident Investigation Branch,Bytes Security Partnerships Ltd,100002601,3433,#,RG41 5QS,
Department for Transport,Department for Transport,15/04/2015,Legal Consultancy,Group Procurement and Property,BLAKE LAPTHORN,2000001015,2585.64,#,SO53 3LG,
Department for Transport,Department for Transport,15/04/2015,Legal Consultancy,Group Procurement and Property,Blake Morgan LLP,2000001026,1089,#,PO6 4ST,
Department for Transport,Department for Transport,15/04/2015,Prog&ProjMgmt Consul,"Policy, Legislation and Funding",MACE Limited,2000001032,7190.4,#,EC2M 6X,
Department for Transport,Department for Transport,15/04/2015,Prog&ProjMgmt Consul,Project Sponsorship,PARSONS BRINCKERHOFF LTD,2000001006,15920.51,#,NE4 7YQ,
Department for Transport,Department for Transport,15/04/2015,Prog&ProjMgmt Consul,Project Sponsorship,PARSONS BRINCKERHOFF LTD,2000001006,510.12,#,NE4 7YQ,
Department for Transport,Department for Transport,15/04/2015,Prog&ProjMgmt Consul,Project Sponsorship,PARSONS BRINCKERHOFF LTD,2000001006,11760.74,#,NE4 7YQ,
Department for Transport,Department for Transport,15/04/2015,Prog&ProjMgmt Consul,Project Sponsorship,PARSONS BRINCKERHOFF LTD,2000001006,501.58,#,NE4 7YQ,
Department for Transport,Department for Transport,15/04/2015,Publicity,"Energy, Technology and International",CARAT LTD,100002599,-6024.31,#,WC2B 5PS,
Department for Transport,Department for Transport,15/04/2015,Publicity,"Energy, Technology and International",CARAT LTD,100002599,6024.31,#,WC2B 5PS,
Department for Transport,Department for Transport,15/04/2015,Recruitment Fees,"Group Services, Change and Capability",Criterion Partnership Limited,2000001027,1036.8,#,BN3 1AS,
Department for Transport,Department for Transport,15/04/2015,Research,"Motoring, Freight & London",WSP UK Limited,100002600,-6765.9,#,GL20 8SJ,
Department for Transport,Department for Transport,15/04/2015,Research,"Motoring, Freight & London",WSP UK Limited,100002600,6765.9,#,GL20 8SJ,
Department for Transport,Department for Transport,15/04/2015,Research,"Energy, Technology and International",OVE ARUP & PARTNERS,2000001005,115281.96,#,NE1 3PL,
Department for Transport,Department for Transport,15/04/2015,Research,Major Projects & Growth,ATKINS LTD (TRANSPORT PLANNING),100002597,-45322,#,WR5 1TX,
Department for Transport,Department for Transport,15/04/2015,Research,Major Projects & Growth,ATKINS LTD (TRANSPORT PLANNING),100002597,-40823.4,#,WR5 1TX,
Department for Transport,Department for Transport,15/04/2015,Research,Major Projects & Growth,ATKINS LTD (TRANSPORT PLANNING),100002597,45322,#,WR5 1TX,
Department for Transport,Department for Transport,15/04/2015,Research,Major Projects & Growth,ATKINS LTD (TRANSPORT PLANNING),100002597,40823.4,#,WR5 1TX,
Department for Transport,Department for Transport,15/04/2015,Subsidies Private Se,Local,1ST BUS STOP MINIBUS,2000000951,3256.77,1st BUS STOP MINIBUS,DA13 9EW,
Department for Transport,Department for Transport,15/04/2015,Subsidies Private Se,Local,ABELLIO WEST LONDON LTD,2000000936,54950.14,ABELLIO WEST LONDON LTD,SE5 0TF,
Department for Transport,Department for Transport,15/04/2015,Subsidies Private Se,Local,AINTREE COACHES (INTERNATIONAL) LTD,2000000961,1474.05,AINTREE COACHES (INTERNATIONAL) LTD,CH66 1NH,
Department for Transport,Department for Transport,15/04/2015,Subsidies Private Se,Local,ALANSWAY COACHES LTD,2000000864,14083.19,ALANSWAY COACHES LTD T/A COUNTRY BUS,TQ12 6UT,
Department for Transport,Department for Transport,15/04/2015,Subsidies Private Se,Local,AXE VALLEY MINI TRAVEL,2000000865,7497.62,AXE VALLEY MINI TRAVEL,EX12 2NA,
Department for Transport,Department for Transport,15/04/2015,Subsidies Private Se,Local,BARRATTS COACHES LTD,2000000866,4542.97,BARRATTS COACHES LTD,CW5 6LT,
Department for Transport,Department for Transport,15/04/2015,Subsidies Private Se,Local,BENNETTS COACHES LTD,2000000867,12184.1,BENNETTS COACHES LTD,GL4 4LP,
Department for Transport,Department for Transport,15/04/2015,Subsidies Private Se,Local,BLACKPOOL TRANSPORT SERVICES LTD,2000000868,261585.11,BLACKPOOL TRANSPORT SERVICES LTD,FY1 5DD,
Department for Transport,Department for Transport,15/04/2015,Subsidies Private Se,Local,BLUEWORKS PRIVATE HIRE,2000000869,4255.86,BLUEWORKS PRIVATE HIRE,LA12 8PX,
Department for Transport,Department for Transport,15/04/2015,Subsidies Private Se,Local,BOURNEMOUTH TRANSPORT LTD,2000000870,249729.68,BOURNEMOUTH TRANSPORT LTD,BH8 0BQ,
Department for Transport,Department for Transport,15/04/2015,Subsidies Private Se,Local,BRIAN JONES COACHES,2000000952,2498.72,BRIAN JONES COACHES,DA12 2RS,
Department for Transport,Department for Transport,15/04/2015,Subsidies Private Se,Local,Britannia Bus Ltd t/a Meridian,2000000969,15261.07,Britannia Bus Ltd t/a Meridian,NN5 7UW,
Department for Transport,Department for Transport,15/04/2015,Subsidies Private Se,Local,Carmel Coaches Bristol,2000000968,912.84,Carmel Coaches Bristol,BS48 1JN,
Department for Transport,Department for Transport,15/04/2015,Subsidies Private Se,Local,CAROSA LTD,2000000871,3084.85,CAROSA LTD t/a FARLEIGH COACHES,ME3 9LB,
Department for Transport,Department for Transport,15/04/2015,Subsidies Private Se,Local,Carousel Buses Ltd,2000000872,51589.89,Carousel Buses Ltd,OX4 6GA,
Department for Transport,Department for Transport,15/04/2015,Subsidies Private Se,Local,CLEARWAY OF CATSHILL,2000000873,1080.36,CLEARWAY OF CATSHILL,B61 0JL,
Department for Transport,Department for Transport,15/04/2015,Subsidies Private Se,Local,Coastal Coaches Of Warton,2000000947,7014.46,COASTAL COACHES OF WARTON,PR4 1AH,
Department for Transport,Department for Transport,15/04/2015,Subsidies Private Se,Local,CROSSVILLE MOTOR SERVICES LIMITED,2000000958,17577.71,Crosville Motor Services Ltd,BS24 9AD,
Department for Transport,Department for Transport,15/04/2015,Subsidies Private Se,Local,Darren Mayes T/A M Travel,2000000899,34088.83,DARREN MAYES T/A M TRAVEL,WF10 4SB,
Department for Transport,Department for Transport,15/04/2015,Subsidies Private Se,Local,DARTLINE COACHES,2000000875,5137.85,DARTLINE COACHES,EX5 1AF,
Department for Transport,Department for Transport,15/04/2015,Subsidies Private Se,Local,DUDLEY'S COACHES LTD,2000000876,4928.11,DUDLEY'S COACHES LTD,WR7 4LS,
Department for Transport,Department for Transport,15/04/2015,Subsidies Private Se,Local,E STOTT & SONS LTD,2000000877,11055.69,E.STOTT & SONS LTD,HD3 4PG,
Department for Transport,Department for Transport,15/04/2015,Subsidies Private Se,Local,EMBLINGS COACHES LTD,2000000878,2465.83,EMBLINGS COACHES LTD,PE13 4ED,
Department for Transport,Department for Transport,15/04/2015,Subsidies Private Se,Local,ERIC W BOWERS COACHES LTD,2000000879,67307.74,BOWERS COACHES LTD,LE4 9HU,
Department for Transport,Department for Transport,15/04/2015,Subsidies Private Se,Local,EXPRESS LINES LTD,2000000881,1598.24,Expresslines Ltd,MK42 0HB,
Department for Transport,Department for Transport,15/04/2015,Subsidies Private Se,Local,FELIX TAXIS,2000000882,1294.16,Felix Taxis,CO10 9AD,
Department for Transport,Department for Transport,15/04/2015,Subsidies Private Se,Local,FILERS TRAVEL LTD,2000000883,4452.44,FILER'S TRAVEL LTD,EX34 8LB,
Department for Transport,Department for Transport,15/04/2015,Subsidies Private Se,Local,FOURWAYS COACHES,2000000946,2626.46,Fourways Coaches,CM1 3QL,
Department for Transport,Department for Transport,15/04/2015,Subsidies Private Se,Local,G E SCRAGG AND SONS LIMITED,2000000884,4130.22,G E Scragg & Son's Ltd,ST2 9BD,
Department for Transport,Department for Transport,15/04/2015,Subsidies Private Se,Local,Gardbus,2000000953,3188.95,Gardbus,BH10 4BF,
Department for Transport,Department for Transport,15/04/2015,Subsidies Private Se,Local,GO-COACHHIRE LTD,2000000949,8724.09,GO-COACH HIRE LIMITED,TN14 5EL,
Department for Transport,Department for Transport,15/04/2015,Subsidies Private Se,Local,GRANT PALMER LIMITED,2000000887,24189.35,Grant Palmer Limited,MK45 5BP,
Department for Transport,Department for Transport,15/04/2015,Subsidies Private Se,Local,GRIFFIN COACHES T/A RELIANCE TRAVEL,2000000886,13942.08,Griffin Coaches T/A Reliance Travel,DA12 2PS,
Department for Transport,Department for Transport,15/04/2015,Subsidies Private Se,Local,HALESWORTH AREA COMMUNITY TRANSPORT,2000000888,600.53,HALESWORTH AREA COMMUNITY BUS,IP19 8BZ,
Department for Transport,Department for Transport,15/04/2015,Subsidies Private Se,Local,HANSONS (WORDSLEY) LTD,2000000889,32635.75,HANSONS (WORDSLEY) LTD,DY9 8RD,
Department for Transport,Department for Transport,15/04/2015,Subsidies Private Se,Local,HOLLAND COACHES,2000000890,828.35,HOLLANDS COACHES,DY11 7RA,
Department for Transport,Department for Transport,15/04/2015,Subsidies Private Se,Local,Holmeswood Coaches Limited,2000000891,5956.52,HOLMESWOOD COACHES LTD,L40 1UB,
Department for Transport,Department for Transport,15/04/2015,Subsidies Private Se,Local,HR RICHMOND LTD TA EPSOMCOACHES,2000000892,6902.12,Epsom Coaches,KT19 9AF,
Department for Transport,Department for Transport,15/04/2015,Subsidies Private Se,Local,xxxxxx,2000000963,3697.54,xxxxxx,xxxxxx,
Department for Transport,Department for Transport,15/04/2015,Subsidies Private Se,Local,J R DENT COACHES,2000000893,588.12,J R DENT (COACHES),LN7 6ET,
Department for Transport,Department for Transport,15/04/2015,Subsidies Private Se,Local,JOHN FISHWICK & SONS,2000000894,33861.07,JOHN FISHWICK & SONS,PR25 3LE,
Department for Transport,Department for Transport,15/04/2015,Subsidies Private Se,Local,KIRKBY LONSDALE COACH HIRE LTD,2000000896,3413.72,KIRKBY LONSDALE COACH HIRE LTD,LA5 9EU,
Department for Transport,Department for Transport,15/04/2015,Subsidies Private Se,Local,LITTLE JIMS,2000000897,1118.09,Little Jim's,HP4 2BQ,
Department for Transport,Department for Transport,15/04/2015,Subsidies Private Se,Local,LUGG VALLEY TRAVEL LTD,2000000898,4427.71,LUGG VALLEY TRAVEL,HR6 8PX,
Department for Transport,Department for Transport,15/04/2015,Subsidies Private Se,Local,M J CURLEY T/A,2000000962,1509.94,Coach of Langtoft / Langtoft Private Hire,PE6 9LS,
Department for Transport,Department for Transport,15/04/2015,Subsidies Private Se,Local,MARETTS,2000000900,1511.9,Maretts Chariots,NR11 8RA,
Department for Transport,Department for Transport,15/04/2015,Subsidies Private Se,Local,MARSHALLS COACHES LLP,2000000901,8212.5,MARSHALLS COACHES LLP,LU7 4YP,
Department for Transport,Department for Transport,15/04/2015,Subsidies Private Se,Local,MEREDITHS COACHES LIMITED,2000000903,1456.12,Merediths Coaches Ltd,SY14 8DE,
Department for Transport,Department for Transport,15/04/2015,Subsidies Private Se,Local,Mike de Courcey Travel Ltd,2000000904,41532.12,MIKE DE COURCEY TRAVEL LTD,CV3 4FG,
Department for Transport,Department for Transport,15/04/2015,Subsidies Private Se,Local,MULLEYS MOTORWAYS LTD,2000000948,16035.78,Mulleys Motorways Ltd,IP31 2JB,
Department for Transport,Department for Transport,15/04/2015,Subsidies Private Se,Local,NIP ON TRANSPORT SERVICE,2000000907,10983.22,Nip-On Transport Service,WA9 4AF,
Department for Transport,Department for Transport,15/04/2015,Subsidies Private Se,Local,NIPPY BUS LTD,2000000908,9953.68,NIPPY BUS LTD,TA12 6HB,
Department for Transport,Department for Transport,15/04/2015,Subsidies Private Se,Local,NN Cresswell Coach Hire Ltd,2000000905,2536.54,N N Cresswell Coach Hire Ltd,WR11 4RA,
Department for Transport,Department for Transport,15/04/2015,Subsidies Private Se,Local,Nottingham Coaches Ltd,2000000970,3655.39,Nottingham Coaches Ltd,NG9 8GX,
Department for Transport,Department for Transport,15/04/2015,Subsidies Private Se,Local,Oakwood Travel Services Ltd,2000000960,20561.72,CATCH22BUS LTD,FY4 4QU,
Department for Transport,Department for Transport,15/04/2015,Subsidies Private Se,Local,PAUL S WINSON (COACHES) LTD,2000000910,8586.58,PAUL S WINSON COACHES LTD,LE11 5XR,
Department for Transport,Department for Transport,15/04/2015,Subsidies Private Se,Local,PRESTON BUS LIMITED,2000000911,99063.11,Preston Bus Limited,PR1 6NY,
Department for Transport,Department for Transport,15/04/2015,Subsidies Private Se,Local,PROCTERS COACHES,2000000912,10401.95,PROCTERS OF BEDALE,DL7 9UJ,
Department for Transport,Department for Transport,15/04/2015,Subsidies Private Se,Local,PULHAM & SON (COACHES) LTD,2000000913,9240.2,PULHAM & SONS LTD,GL542EN,
Department for Transport,Department for Transport,15/04/2015,Subsidies Private Se,Local,R&S Waterson,2000000966,4132.44,R&S Waterson Coaches,WF9 1AZ,
Department for Transport,Department for Transport,15/04/2015,Subsidies Private Se,Local,RED KITE COMMERCIAL SERVICES,2000000915,4378.68,RED KITE COMMERICAL SERVICES,LU7 9PU,
Department for Transport,Department for Transport,15/04/2015,Subsidies Private Se,Local,REGS COACHES LTD,2000000916,2493.58,Reg's Coaches Ltd,AL6 9TY,
Department for Transport,Department for Transport,15/04/2015,Subsidies Private Se,Local,ROJAY SERVICES T/A WIGAN COACHWAYS,2000000957,6802.82,Rojay Services T/A Wigan Coachways,WN6 7TP,
Department for Transport,Department for Transport,15/04/2015,Subsidies Private Se,Local,ROLLING SOLUTIONS LTD,2000000950,31391.61,ROLLING SOLUTIONS T/A D&G BUS,ST14 7JD,
Department for Transport,Department for Transport,15/04/2015,Subsidies Private Se,Local,Rosevidney Travel,2000000964,1309.63,Rosevidney Travel,TR20 9AZ,
Department for Transport,Department for Transport,15/04/2015,Subsidies Private Se,Local,ROSSENDALE TRANSPORT LIMITED,2000000919,119783.32,Rossendale Transport Ltd,BB4 4RS,
Department for Transport,Department for Transport,15/04/2015,Subsidies Private Se,Local,Routemaster Buses Ltd,2000000955,3471.83,Routemaster Buses Ltd,CW5 6AL,
Department for Transport,Department for Transport,15/04/2015,Subsidies Private Se,Local,SAFEGUARD COACHES LTD,2000000920,9848.38,Safeguard Coaches Ltd,GU2 7TH,
Department for Transport,Department for Transport,15/04/2015,Subsidies Private Se,Local,SARGEANT BROS,2000000921,837.22,SARGEANT BROS,HR5 3AL,
Department for Transport,Department for Transport,15/04/2015,Subsidies Private Se,Local,SILVERLINE LANDFLIGHT LTD,2000000923,984.78,SILVERLINE LANDFLIGHT LTD,B91 2JY,
Department for Transport,Department for Transport,15/04/2015,Subsidies Private Se,Local,SMITH MOTORS LEDBURY LTD,2000000924,515.54,Smiths Motors (Ledbury) Ltd,HR8 1BA,
Department for Transport,Department for Transport,15/04/2015,Subsidies Private Se,Local,SOUTHDOWN PSV LTD,2000000925,26781.61,Southdown PSV Ltd,RH10 3EN,
Department for Transport,Department for Transport,15/04/2015,Subsidies Private Se,Local,Spirit Buses Ltd,2000000967,2552.58,Spirit Buses Ltd,NE65 7RZ,
Department for Transport,Department for Transport,15/04/2015,Subsidies Private Se,Local,STAGECOACH OXFORD,2000000926,427882.87,STAGECOACH IN OXFORD,SK3 0DU,
Department for Transport,Department for Transport,15/04/2015,Subsidies Private Se,Local,SULLIVAN BUSES,2000000927,20902.33,Sullivan Bus & Coach T/A Sullivan Buses,EN6 3NE,
Department for Transport,Department for Transport,15/04/2015,Subsidies Private Se,Local,SUMMERCOURT TRAVEL LTD,2000000928,8839.65,SUMMERCOURT TRAVEL,TR8 5DR,
Department for Transport,Department for Transport,15/04/2015,Subsidies Private Se,Local,SW COACHES LTD,2000000929,24920.57,SOUTH WEST COACHES LTD,BA9 9EB,
Department for Transport,Department for Transport,15/04/2015,Subsidies Private Se,Local,Swallow Coach Company Ltd,2000000965,27397.72,Swallow Coach Company Limited,RM13 8BT,
Department for Transport,Department for Transport,15/04/2015,Subsidies Private Se,Local,SWANBROOK TRANSPORT LTD,2000000930,5360.66,Swanbrook Transport Ltd,GL51 0TE,
Department for Transport,Department for Transport,15/04/2015,Subsidies Private Se,Local,SWEYNE COACHES & CO,2000000931,1334.19,Sweyne Coaches,DN14 8EL,
Department for Transport,Department for Transport,15/04/2015,Subsidies Private Se,Local,Thames Travel (Wallingford),2000000934,80523.79,THAMES TRAVEL (WALLINGFORD) LTD,OX4 6GA,
Department for Transport,Department for Transport,15/04/2015,Subsidies Private Se,Local,THAMESDOWN TRANSPORT LTD,2000000935,139524.33,THAMESDOWN TRANSPORT LTD,SN2 2DJ,
Department for Transport,Department for Transport,15/04/2015,Subsidies Private Se,Local,THE KINGS FERRY TRAVEL GROUP,2000000895,65894.15,THE KING'S FERRY LTD,ME8 6HW,
Department for Transport,Department for Transport,15/04/2015,Subsidies Private Se,Local,University Bus Ltd,2000000937,150392.56,Universitybus,AL10 9BS,
Department for Transport,Department for Transport,15/04/2015,Subsidies Private Se,Local,UNO BUSES LTD,2000000945,25714.84,Uno Buses Ltd,AL10 9BS,
Department for Transport,Department for Transport,15/04/2015,Subsidies Private Se,Local,WESTWARD TRAVEL,2000000940,4089.13,Westward Travel,GL12 8RT,
Department for Transport,Department for Transport,15/04/2015,Subsidies Private Se,Local,WIGHT COMMUNITY ACCESS LTD,2000000959,623.83,Wight Community Access Ltd,PO39 0AX,
Department for Transport,Department for Transport,15/04/2015,Subsidies Private Se,Local,Yarranton Bros Ltd,2000000943,2602.31,YARRANTON BROS LTD,WR15 8JL,
Department for Transport,Department for Transport,15/04/2015,Subsidies Private Se,Local,YEOMANS CANYON TRAVEL,2000000944,7634.68,YEOMANS CANYON TRAVEL,HR4 9PU,
Department for Transport,Department for Transport,15/04/2015,Support Services,Group Finance,EXEL UK LIMITED (STAFF TRAVEL),2000001012,195483,#,RG12 1AN,
Department for Transport,Department for Transport,15/04/2015,Support Services,Group Finance,EXEL UK LIMITED (STAFF TRAVEL),2000001012,66791.08,#,RG12 1AN,
Department for Transport,Department for Transport,15/04/2015,Support Services,Group Procurement and Property,Thompsons Solicitors,2000001021,133118.2,Industrial Injury Claim,HA1 3AP,
Department for Transport,Department for Transport,15/04/2015,Support Services,Group Procurement and Property,Thompsons Solicitors (Scotland),2000001022,52543.61,Industrial Injury Claim,EH2 4EQ,
Department for Transport,Department for Transport,15/04/2015,Training,Air Accident Investigation Branch,QA Ltd,2000001020,997.5,#,LS12 6BD,
Department for Transport,Department for Transport,15/04/2015,Transport  Consult,Aviation,xxxxxx,2000001030,3500,#,xxxxxx,
Department for Transport,Department for Transport,15/04/2015,Transport  Consult,Aviation,FRAZER-NASH CONSULTANCY LTD,2000001019,1617,#,RH4 1HJ,
Department for Transport,Department for Transport,16/04/2015,Agency Staff Costs,Environment & International Transport Analysis,CAPITA BUSINESS SERVICES LTD,2000001070,7146.48,#,DL1 9HN,
Department for Transport,Department for Transport,16/04/2015,Agency Staff Costs,Major Projects & Growth,Badenoch & Clark c/o Lauren Rogers,2000001075,2978.16,#,B37 7YE,
Department for Transport,Department for Transport,16/04/2015,Agency Staff Costs,Rail Strategy & Funding,Experis Ltd,2000001078,5999.4,#,EC2M 2RB,
Department for Transport,Department for Transport,16/04/2015,Agency Staff Costs,Rail Strategy & Funding,Experis Ltd,2000001078,2999.7,#,EC2M 2RB,
Department for Transport,Department for Transport,16/04/2015,Agency Staff Costs,Group Finance,CAPITA BUSINESS SERVICES LTD,2000001070,4822.74,#,DL1 9HN,
Department for Transport,Department for Transport,16/04/2015,Agency Staff Costs,Rail Franchising,CAPITA BUSINESS SERVICES LTD,2000001070,3826.14,#,DL1 9HN,
Department for Transport,Department for Transport,16/04/2015,Agency Staff Costs,Rail Franchising,CAPITA BUSINESS SERVICES LTD,2000001070,9117.02,#,DL1 9HN,
Department for Transport,Department for Transport,16/04/2015,Agency Staff Costs,Integrated Delivery,CAPITA BUSINESS SERVICES LTD,2000001070,4874.64,#,DL1 9HN,
Department for Transport,Department for Transport,16/04/2015,Agency Staff Costs,Network Rail Sponsorship,CAPITA BUSINESS SERVICES LTD,2000001070,2936.52,#,DL1 9HN,
Department for Transport,Department for Transport,16/04/2015,Agency Staff Costs,Rail Franchising,Experis Ltd,2000001078,8902.08,#,EC2M 2RB,
Department for Transport,Department for Transport,16/04/2015,Agency Staff Costs,Group Finance,Experis Ltd,2000001078,2310.19,#,EC2M 2RB,
Department for Transport,Department for Transport,16/04/2015,Agency Staff Costs,Rail Franchising,Experis Ltd,2000001078,5526.72,#,EC2M 2RB,
Department for Transport,Department for Transport,16/04/2015,Agents Fees,Strategic Roads & Smart Ticketing,NORTHGATE INFORMATION SOLUTIONS,2000001108,322077.91,#,HP2 4NW,
Department for Transport,Department for Transport,16/04/2015,Agents Fees,Group Assurance,DEPARTMENT FOR BUSINESS,2000001067,678000,#,NP19 7AA,
Department for Transport,Department for Transport,16/04/2015,Building Service Cha,Marine Accident Investigation Branch,Old Mutual Wealth,2000001091,79986.97,Charges 12/14-03/15 & 06-13,SO14 7AY,
Department for Transport,Department for Transport,16/04/2015,Cap Grt Pri Sec-Cos.,"Energy, Technology and International",EV Charging Solutions Ltd,2000001105,39600,EV Charging Solutions Ltd FEB 2015 #39600,NG14 7ES,
Department for Transport,Department for Transport,16/04/2015,CurrGrt Las in AEF/A,Local,NOTTINGHAMSHIRE CC,2000001086,38547,Highways Maintenance Efficiency Programme Q4,NG2 7LA,
Department for Transport,Department for Transport,16/04/2015,Financial Consultanc,Rail Franchising,ERNST & YOUNG LLP,2000001079,2918.08,#,SE1 2AF,
Department for Transport,Department for Transport,16/04/2015,Gas,Rail Accident Investigation Branch,CORONA ENERGY RETAIL 4 LTD,2000001076,724.12,#,WD17 1JW,
Department for Transport,Department for Transport,16/04/2015,Grt Aid to NDPBs,DG's Office,High Speed Two (HS2) Ltd,2000001090,5000000,HS2 Apr 2015 2nd Tranche,E14 5AB,
Department for Transport,Department for Transport,16/04/2015,IT Consultancy,Marine Accident Investigation Branch,AVENCA LTD,2000001074,1515,#,SP5 3PJ,
Department for Transport,Department for Transport,16/04/2015,IT Equip Cap Cost,Marine Accident Investigation Branch,Digital Message Limited,2000001101,180.18,AV Eqpt - HDMI extender,TW20 8RB,
Department for Transport,Department for Transport,16/04/2015,IT Equip Cap Cost,Marine Accident Investigation Branch,Digital Message Limited,2000001101,409.3,#,TW20 8RB,
Department for Transport,Department for Transport,16/04/2015,L&B Excl Dwellings,Maritime,FAITHFUL & GOULD LTD,2000001107,7104,#,CF24 0AD,
Department for Transport,Department for Transport,16/04/2015,L&B Excl Dwellings,Maritime,FAITHFUL & GOULD LTD,2000001107,4806.6,#,CF24 0AD,
Department for Transport,Department for Transport,16/04/2015,L&B Excl Dwellings,Maritime,FAITHFUL & GOULD LTD,2000001107,-7104,#,CF24 0AD,
Department for Transport,Department for Transport,16/04/2015,L&B Excl Dwellings,Maritime,FAITHFUL & GOULD LTD,2000001107,1822.5,#,CF24 0AD,
Department for Transport,Department for Transport,16/04/2015,L&B Excl Dwellings,Maritime,FAITHFUL & GOULD LTD,2000001107,782.38,#,CF24 0AD,
Department for Transport,Department for Transport,16/04/2015,Legal Consultancy,Major Projects & Growth,Eversheds LLP,2000001093,27330,#,EC2V 7WS,
Department for Transport,Department for Transport,16/04/2015,Legal Consultancy,Rail Commercial & Programme Office,Eversheds LLP,2000001093,207578.4,#,EC2V 7WS,
Department for Transport,Department for Transport,16/04/2015,Maintenance Other,"Motoring, Freight & London",TDC SYSTEMS LIMITED,2000001085,2770,#,BS24 9BP,
Department for Transport,Department for Transport,16/04/2015,Maintenance Other,"Motoring, Freight & London",TDC SYSTEMS LIMITED,2000001085,1675,#,BS24 9BP,
Department for Transport,Department for Transport,16/04/2015,Maintenance Other,"Motoring, Freight & London",TDC SYSTEMS LIMITED,2000001085,-1675,#,BS24 9BP,
Department for Transport,Department for Transport,16/04/2015,Other Professional F,Major Projects & Growth,Agility Trains West Limited,2000001106,148800,#,EC2R 7DA,
Department for Transport,Department for Transport,16/04/2015,Other Professional F,Major Projects & Growth,Agility Trains West Limited,2000001106,19800,#,EC2R 7DA,
Department for Transport,Department for Transport,16/04/2015,Periodicals & Subs,Marine Accident Investigation Branch,INFORMA UK LTD,2000001080,2214,#,W1T 3JH,
Department for Transport,Department for Transport,16/04/2015,Printing,Group Communications,WILLIAMS LEA LIMITED,2000001096,1658.99,#,NR3 1PD,
Department for Transport,Department for Transport,16/04/2015,Printing,Group Communications,WILLIAMS LEA LIMITED,2000001096,2401.92,#,NR3 1PD,
Department for Transport,Department for Transport,16/04/2015,Prog&ProjMgmt Consul,Project Sponsorship,PARSONS BRINCKERHOFF LTD,2000001082,44860.1,#,NE4 7YQ,
Department for Transport,Department for Transport,16/04/2015,Prog&ProjMgmt Consul,Project Sponsorship,PARSONS BRINCKERHOFF LTD,2000001082,6021.89,#,NE4 7YQ,
Department for Transport,Department for Transport,16/04/2015,Prog&ProjMgmt Consul,Project Sponsorship,PARSONS BRINCKERHOFF LTD,2000001082,10811.23,#,NE4 7YQ,
Department for Transport,Department for Transport,16/04/2015,Prog&ProjMgmt Consul,Project Sponsorship,PARSONS BRINCKERHOFF LTD,2000001082,125909.9,#,NE4 7YQ,
Department for Transport,Department for Transport,16/04/2015,Prog&ProjMgmt Consul,Project Sponsorship,PARSONS BRINCKERHOFF LTD,2000001082,41824.64,#,NE4 7YQ,
Department for Transport,Department for Transport,16/04/2015,Prog&ProjMgmt Consul,Project Sponsorship,PARSONS BRINCKERHOFF LTD,2000001082,14238.24,#,NE4 7YQ,
Department for Transport,Department for Transport,16/04/2015,Prog&ProjMgmt Consul,Project Sponsorship,PARSONS BRINCKERHOFF LTD,2000001082,18333.96,#,NE4 7YQ,
Department for Transport,Department for Transport,16/04/2015,Property Consultancy,Maritime,FAITHFUL & GOULD LTD,2000001069,5920,#,CF24 0AD,
Department for Transport,Department for Transport,16/04/2015,Rates,Marine Accident Investigation Branch,SOUTHAMPTON CITY COUNCIL,2000001089,95642,Soton City Business Rates 2015/16,SO14 7LY,
Department for Transport,Department for Transport,16/04/2015,Rates,Rail Accident Investigation Branch,RUSHMOOR BOROUGH COUNCIL,2000001087,30319.5,Rushmoor BC - April 15 - March 16,GU14 7JU,
Department for Transport,Department for Transport,16/04/2015,Rates,Rail Accident Investigation Branch,DERBY CITY COUNCIL (NNDR),2000001077,41412,Derby City - April 15 - April 16,DE1 2XG,
Department for Transport,Department for Transport,16/04/2015,Research,Major Projects & Growth,PARSONS BRINCKERHOFF LTD,2000001082,73713.92,#,NE4 7YQ,
Department for Transport,Department for Transport,16/04/2015,Research,Rail Strategy & Funding,PARSONS BRINCKERHOFF LTD,2000001082,12300.61,#,NE4 7YQ,
Department for Transport,Department for Transport,16/04/2015,Research,Environment & International Transport Analysis,ATKINS LTD (TRANSPORT PLANNING),2000001072,23000,#,WR5 1TX,
Department for Transport,Department for Transport,16/04/2015,Stationery (Non-stk),Rail Franchising,Banner Business Services Ltd,2000001100,10.56,1230487 Banner A4 L/Arch File 70Mm Spine,NR3 1QU,
Department for Transport,Department for Transport,16/04/2015,Stationery (Non-stk),Rail Franchising,Banner Business Services Ltd,2000001100,23.76,1230521 Bright Id Wallets A4 Assorted X5,NR3 1QU,
Department for Transport,Department for Transport,16/04/2015,Stationery (Non-stk),Rail Franchising,Banner Business Services Ltd,2000001100,152.64,5000504 Graffico A4 Polypropylene Notebo,NR3 1QU,
Department for Transport,Department for Transport,16/04/2015,Stationery (Non-stk),Rail Franchising,Banner Business Services Ltd,2000001100,83.52,5000505 Graffico A5 Polypropylene Notebo,NR3 1QU,
Department for Transport,Department for Transport,16/04/2015,Stationery (Non-stk),Rail Franchising,Banner Business Services Ltd,2000001100,10.37,8300006 Himark Highlighter Yellow X10,NR3 1QU,
Department for Transport,Department for Transport,16/04/2015,Stationery (Non-stk),Rail Franchising,Banner Business Services Ltd,2000001100,7.78,8300007 Himark Highlighter Pink X10,NR3 1QU,
Department for Transport,Department for Transport,16/04/2015,Stationery (Non-stk),Rail Franchising,Banner Business Services Ltd,2000001100,7.78,8300008 Himark Highlighter Blue X10,NR3 1QU,
Department for Transport,Department for Transport,16/04/2015,Stationery (Non-stk),Rail Franchising,Banner Business Services Ltd,2000001100,7.78,8300010 Himark Highlighter Green X10,NR3 1QU,
Department for Transport,Department for Transport,16/04/2015,Stationery (Non-stk),Rail Franchising,Banner Business Services Ltd,2000001100,33.26,9090009 A4 Refill Pad Headbound Punched,NR3 1QU,
Department for Transport,Department for Transport,16/04/2015,Stationery (Non-stk),Rail Franchising,Banner Business Services Ltd,2000001100,8.06,9090024 Banner Brilliant Page Marker 38,NR3 1QU,
Department for Transport,Department for Transport,16/04/2015,Stationery (Non-stk),Rail Franchising,Banner Business Services Ltd,2000001100,9.72,9100037 Recycled Reporters Spiral Notebo,NR3 1QU,
Department for Transport,Department for Transport,16/04/2015,Stationery (Non-stk),Rail Franchising,Banner Business Services Ltd,2000001100,6,9240005 Banner Fine Ballpoint Pen Black,NR3 1QU,
Department for Transport,Department for Transport,16/04/2015,Stationery (Non-stk),Rail Franchising,Banner Business Services Ltd,2000001100,6.43,9240006 Banner Fine Ballpoint Pen Blue X,NR3 1QU,
Department for Transport,Department for Transport,16/04/2015,Stationery (Non-stk),Rail Franchising,Banner Business Services Ltd,2000001100,6.43,9240007 Banner Fine Ballpoint Pen Red X5,NR3 1QU,
Department for Transport,Department for Transport,16/04/2015,Stationery (Non-stk),Rail Franchising,Banner Business Services Ltd,2000001100,21.84,9240027 Banner Rubber Grip Gel Ink Pen B,NR3 1QU,
Department for Transport,Department for Transport,16/04/2015,Stationery (Non-stk),Rail Franchising,Banner Business Services Ltd,2000001100,21.84,9240028 Banner Rubber Grip Gel Ink Pen B,NR3 1QU,
Department for Transport,Department for Transport,16/04/2015,Stationery (Non-stk),Rail Franchising,Banner Business Services Ltd,2000001100,21.84,9240029 Banner Rubber Grip Gel Ink Pen R,NR3 1QU,
Department for Transport,Department for Transport,16/04/2015,Stationery (Non-stk),Rail Franchising,Banner Business Services Ltd,2000001100,2.45,9250002 Banner Eraser Tip Pencil HB X12,NR3 1QU,
Department for Transport,Department for Transport,16/04/2015,Stationery (Non-stk),Rail Franchising,Banner Business Services Ltd,2000001100,13.82,9250025 Banner Automatic Pencil 0.7Mm HB,NR3 1QU,
Department for Transport,Department for Transport,16/04/2015,Stationery (Non-stk),Rail Franchising,Banner Business Services Ltd,2000001100,4.8,9280001 Banner Large Plain Paperclip X10,NR3 1QU,
Department for Transport,Department for Transport,16/04/2015,Stationery (Non-stk),Rail Franchising,Banner Business Services Ltd,2000001100,2.59,9285001 Rapesco Foldback Clip 19mm X10,NR3 1QU,
Department for Transport,Department for Transport,16/04/2015,Stationery (Non-stk),Rail Franchising,Banner Business Services Ltd,2000001100,4.97,9285002 Rapesco Foldback Clip 32mm X10,NR3 1QU,
Department for Transport,Department for Transport,16/04/2015,Stationery (Non-stk),Rail Franchising,Banner Business Services Ltd,2000001100,1.22,9300003 Clear Plastic Ruler 300mm,NR3 1QU,
Department for Transport,Department for Transport,16/04/2015,Stationery (Non-stk),Rail Franchising,Banner Business Services Ltd,2000001100,3.26,9310109 Easy Tear Adhesive Tape 24mmx66M,NR3 1QU,
Department for Transport,Department for Transport,16/04/2015,Stationery (Non-stk),Rail Franchising,Banner Business Services Ltd,2000001100,1.54,9320055 Key Ring Assorted Colours X25,NR3 1QU,
Department for Transport,Department for Transport,16/04/2015,Stationery (Non-stk),Rail Franchising,Banner Business Services Ltd,2000001100,1.44,9372005 Banner Adhesive Putty 70g,NR3 1QU,
Department for Transport,Department for Transport,16/04/2015,Stationery (Non-stk),Rail Franchising,Banner Business Services Ltd,2000001100,10.2,9383024 Banner Plain Manilla 12 Part A4,NR3 1QU,
Department for Transport,Department for Transport,16/04/2015,Stationery (Non-stk),Rail Franchising,Banner Business Services Ltd,2000001100,4.32,9410005 A4 Plastic Pockets Multi Punched,NR3 1QU,
Department for Transport,Department for Transport,16/04/2015,Stationery (Non-stk),Rail Franchising,Banner Business Services Ltd,2000001100,13.58,9410403 Banner A4 Mediumweight Cut Flush,NR3 1QU,
Department for Transport,Department for Transport,16/04/2015,Support Services,Group Procurement and Property,Crawford & Co Adjusters (UK) Ltd,2000001103,752499.67,#,B2 2PF,
Department for Transport,Department for Transport,16/04/2015,Support Services,"Energy, Technology and International",DRIVER & VEHICLE LICENSING AGENCY,2000001068,708.01,#,SA6 7JL,
Department for Transport,Department for Transport,16/04/2015,Support Services,Group Procurement and Property,Thompsons Solicitors,2000001104,65055,#,HA1 3AP,
Department for Transport,Department for Transport,16/04/2015,Telecom Equipment,Motoring Services,Azzuri Communications Ltd,2000001094,15309.6,Azzurri - Maintenance - 23.03.2015 - 22.03.2016,BB11 5FH,
Department for Transport,Department for Transport,16/04/2015,Telecom Equipment,Motoring Services,Azzuri Communications Ltd,2000001094,14067,Azzurri - Software Assurance - 23.03.15 - 22.03.15,BB11 5FH,
Department for Transport,Department for Transport,16/04/2015,Training,"Energy, Technology and International",xxxxxx,2000001095,657,#,xxxxxx,
Department for Transport,Department for Transport,16/04/2015,Training,"Motoring, Freight & London",THE EMMANUEL CENTRE,2000001088,3440,#,SW1P 3DW,
Department for Transport,Department for Transport,16/04/2015,Transport  Consult,Rail Commercial & Programme Office,PARSONS BRINCKERHOFF LTD,2000001082,28002.44,#,NE4 7YQ,
Department for Transport,Department for Transport,16/04/2015,Transport  Consult,Rail Commercial & Programme Office,PARSONS BRINCKERHOFF LTD,2000001082,8632.58,#,NE4 7YQ,
Department for Transport,Department for Transport,16/04/2015,Transport  Consult,Major Projects & Growth,PARSONS BRINCKERHOFF LTD,2000001082,7659.96,#,NE4 7YQ,
Department for Transport,Department for Transport,16/04/2015,Transport  Consult,Major Projects & Growth,PARSONS BRINCKERHOFF LTD,2000001082,5041.76,#,NE4 7YQ,
Department for Transport,Department for Transport,16/04/2015,Transport  Consult,Rail Franchising,ERNST & YOUNG LLP,2000001079,18467.84,#,SE1 2AF,
Department for Transport,Department for Transport,16/04/2015,Transport  Consult,Rail Commercial & Programme Office,PARSONS BRINCKERHOFF LTD,2000001082,13925.47,#,NE4 7YQ,
Department for Transport,Department for Transport,16/04/2015,Transport  Consult,Rail Commercial & Programme Office,PARSONS BRINCKERHOFF LTD,2000001082,23454.94,#,NE4 7YQ,
Department for Transport,Department for Transport,16/04/2015,Transport  Consult,Rail Commercial & Programme Office,PARSONS BRINCKERHOFF LTD,2000001082,1248.54,#,NE4 7YQ,
Department for Transport,Department for Transport,16/04/2015,Transport  Consult,Rail Commercial & Programme Office,PARSONS BRINCKERHOFF LTD,2000001082,8479.52,#,NE4 7YQ,
Department for Transport,Department for Transport,16/04/2015,Travel Expenses UK,Rail Accident Investigation Branch,A1 RUSHMOOR RADIO TAXIS LTD,2000001099,1116.9,#,GU11 1SJ,
Department for Transport,Department for Transport,17/04/2015,Agency Staff Costs,Local,BROOK STREET (UK) LIMITED,2000001181,520.56,#,AL1 4JB,
Department for Transport,Department for Transport,17/04/2015,Agency Staff Costs,Local,BROOK STREET (UK) LIMITED,2000001181,611.52,#,AL1 4JB,
Department for Transport,Department for Transport,17/04/2015,Agency Staff Costs,Local,CAPITA BUSINESS SERVICES LTD,2000001171,11370,#,DL1 9HN,
Department for Transport,Department for Transport,17/04/2015,Agency Staff Costs,Integrated Delivery,MICHAEL PAGE INTERNATIONAL,2000001186,3210,#,SL1 3SA,
Department for Transport,Department for Transport,17/04/2015,Agency Staff Costs,Integrated Delivery,MICHAEL PAGE INTERNATIONAL,2000001186,2736,#,SL1 3SA,
Department for Transport,Department for Transport,17/04/2015,Agency Staff Costs,Integrated Delivery,MICHAEL PAGE INTERNATIONAL,2000001186,2568,#,SL1 3SA,
Department for Transport,Department for Transport,17/04/2015,Agency Staff Costs,Integrated Delivery,MICHAEL PAGE INTERNATIONAL,2000001186,3594,#,SL1 3SA,
Department for Transport,Department for Transport,17/04/2015,Agency Staff Costs,Major Projects & Growth,Badenoch & Clark c/o Lauren Rogers,2000001174,2382.53,#,B37 7YE,
Department for Transport,Department for Transport,17/04/2015,Agency Staff Costs,Rail Franchising,Badenoch & Clark c/o Lauren Rogers,2000001174,3249.6,#,B37 7YE,
Department for Transport,Department for Transport,17/04/2015,Agency Staff Costs,Rail Franchising,Badenoch & Clark c/o Lauren Rogers,2000001174,4062,#,B37 7YE,
Department for Transport,Department for Transport,17/04/2015,Agency Staff Costs,Rail Franchising,Badenoch & Clark c/o Lauren Rogers,2000001174,4062,#,B37 7YE,
Department for Transport,Department for Transport,17/04/2015,Agency Staff Costs,Rail Franchising,Badenoch & Clark c/o Lauren Rogers,2000001174,2965.43,#,B37 7YE,
Department for Transport,Department for Transport,17/04/2015,Agency Staff Costs,Rail Franchising,Badenoch & Clark c/o Lauren Rogers,2000001174,4942.38,#,B37 7YE,
Department for Transport,Department for Transport,17/04/2015,Agency Staff Costs,Rail Franchising,Badenoch & Clark c/o Lauren Rogers,2000001174,3953.9,#,B37 7YE,
Department for Transport,Department for Transport,17/04/2015,Agency Staff Costs,Rail Franchising,Badenoch & Clark c/o Lauren Rogers,2000001174,4942.38,#,B37 7YE,
Department for Transport,Department for Transport,17/04/2015,Agency Staff Costs,Rail Franchising,Badenoch & Clark c/o Lauren Rogers,2000001174,4942.38,#,B37 7YE,
Department for Transport,Department for Transport,17/04/2015,Agency Staff Costs,Rail Franchising,Badenoch & Clark c/o Lauren Rogers,2000001174,3953.9,#,B37 7YE,
Department for Transport,Department for Transport,17/04/2015,Agency Staff Costs,Rail Franchising,Badenoch & Clark c/o Lauren Rogers,2000001174,3953.9,#,B37 7YE,
Department for Transport,Department for Transport,17/04/2015,Agency Staff Costs,Rail Franchising,Badenoch & Clark c/o Lauren Rogers,2000001174,2965.43,#,B37 7YE,
Department for Transport,Department for Transport,17/04/2015,Agency Staff Costs,Rail Franchising,Badenoch & Clark c/o Lauren Rogers,2000001174,4062,#,B37 7YE,
Department for Transport,Department for Transport,17/04/2015,Agency Staff Costs,Rail Franchising,Badenoch & Clark c/o Lauren Rogers,2000001174,4062,#,B37 7YE,
Department for Transport,Department for Transport,17/04/2015,Agency Staff Costs,Rail Franchising,Badenoch & Clark c/o Lauren Rogers,2000001174,3249.6,#,B37 7YE,
Department for Transport,Department for Transport,17/04/2015,Agency Staff Costs,Rail Franchising,Badenoch & Clark c/o Lauren Rogers,2000001174,3249.6,#,B37 7YE,
Department for Transport,Department for Transport,17/04/2015,Agency Staff Costs,Rail Franchising,Badenoch & Clark c/o Lauren Rogers,2000001174,3249.6,#,B37 7YE,
Department for Transport,Department for Transport,17/04/2015,Agency Staff Costs,Integrated Delivery,Badenoch & Clark c/o Lauren Rogers,2000001174,4231.02,#,B37 7YE,
Department for Transport,Department for Transport,17/04/2015,Agency Staff Costs,Integrated Delivery,Badenoch & Clark c/o Lauren Rogers,2000001174,3384.82,#,B37 7YE,
Department for Transport,Department for Transport,17/04/2015,Agency Staff Costs,Integrated Delivery,Badenoch & Clark c/o Lauren Rogers,2000001174,4231.02,#,B37 7YE,
Department for Transport,Department for Transport,17/04/2015,Agency Staff Costs,Integrated Delivery,Badenoch & Clark c/o Lauren Rogers,2000001174,3384.82,#,B37 7YE,
Department for Transport,Department for Transport,17/04/2015,Agency Staff Costs,Integrated Delivery,CAPITA BUSINESS SERVICES LTD,2000001171,15600,#,DL1 9HN,
Department for Transport,Department for Transport,17/04/2015,Agency Staff Costs,Integrated Delivery,CAPITA BUSINESS SERVICES LTD,2000001171,7800,#,DL1 9HN,
Department for Transport,Department for Transport,17/04/2015,Agency Staff Costs,Integrated Delivery,CAPITA BUSINESS SERVICES LTD,2000001171,20280,#,DL1 9HN,
Department for Transport,Department for Transport,17/04/2015,Agency Staff Costs,Integrated Delivery,CAPITA BUSINESS SERVICES LTD,2000001171,-7800,#,DL1 9HN,
Department for Transport,Department for Transport,17/04/2015,Agency Staff Costs,Integrated Delivery,CAPITA BUSINESS SERVICES LTD,2000001171,4510.62,#,DL1 9HN,
Department for Transport,Department for Transport,17/04/2015,Agency Staff Costs,Project Sponsorship,Experis Ltd,2000001178,3903.25,#,EC2M 2RB,
Department for Transport,Department for Transport,17/04/2015,Agency Staff Costs,Project Sponsorship,Experis Ltd,2000001178,4666.2,#,EC2M 2RB,
Department for Transport,Department for Transport,17/04/2015,Agency Staff Costs,Rail Commercial & Programme Office,MICHAEL PAGE INTERNATIONAL,2000001186,579.12,#,SL1 3SA,
Department for Transport,Department for Transport,17/04/2015,Agency Staff Costs,Project Sponsorship,SPRING TECHNOLOGY LTD  ALSO T/A,2000001189,4200,#,B37 7YE,
Department for Transport,Department for Transport,17/04/2015,Building Service Cha,Marine Accident Investigation Branch,Old Mutual Wealth,2000001190,184882.03,Rent/Svs chrg/Ins 1/7-24/12/14,SO14 7AY,
Department for Transport,Department for Transport,17/04/2015,Cap Grt Pri Sec-Cos.,"Energy, Technology and International",Alternative Energy Solutions Ltd,2000001206,900,ALTERNATIVE ENERGY Feb #900,OX13 6PW,
Department for Transport,Department for Transport,17/04/2015,Cap Grt Pri Sec-Cos.,"Energy, Technology and International",Baird Electrical,2000001204,13499.62,Baird Electrical Ltd  Feb 2015 #13499.62,BT42 1EL,
Department for Transport,Department for Transport,17/04/2015,Cap Grt Pri Sec-Cos.,"Energy, Technology and International",Cawoods Electricians,2000001201,1800,Cawood Feb 2015 #1800,PE6 9NF,
Department for Transport,Department for Transport,17/04/2015,Cap Grt Pri Sec-Cos.,"Energy, Technology and International",Chargemaster,2000001197,18900,Chargemaster NOV 2014 #18900,LU1 3LU,
Department for Transport,Department for Transport,17/04/2015,Cap Grt Pri Sec-Cos.,"Energy, Technology and International",Chargemaster,2000001197,39600,Chargemaster DEC 2014 #39600,LU1 3LU,
Department for Transport,Department for Transport,17/04/2015,Cap Grt Pri Sec-Cos.,"Energy, Technology and International",Chargemaster,2000001197,252900,Chargemaster Jan 2015 #252900,LU1 3LU,
Department for Transport,Department for Transport,17/04/2015,Cap Grt Pri Sec-Cos.,"Energy, Technology and International",Malones Group,2000001205,1800,Malones Group Feb 2015 #1800,NE11 0BQ,
Department for Transport,Department for Transport,17/04/2015,Cap Grt Pri Sec-Cos.,"Energy, Technology and International",nuWorld Energy Ltd,2000001200,4500,nuWorld Energy Feb 2015 #4500,S11 8NX,
Department for Transport,Department for Transport,17/04/2015,Cap Grt Pri Sec-Cos.,"Energy, Technology and International",Phoenix Renewables Ltd,2000001207,9000,Phoenix Mar 2015 #9000,LS28 5LY,
Department for Transport,Department for Transport,17/04/2015,Cap Grt Pri Sec-Cos.,"Energy, Technology and International",Phoenix Renewables Ltd,2000001207,2700,Phoenix Feb 2015 #2700,LS28 5LY,
Department for Transport,Department for Transport,17/04/2015,Cap Grt Pri Sec-Cos.,"Energy, Technology and International",Rolec Services Limited,2000001196,3600,ROLEC OCT 2014 #3600,PE20 1Q,
Department for Transport,Department for Transport,17/04/2015,Cap Grt Pri Sec-Cos.,"Energy, Technology and International",Rolec Services Limited,2000001196,900,ROLEC Feb 2015 #900,PE20 1Q,
Department for Transport,Department for Transport,17/04/2015,Cap Grt Pri Sec-Cos.,"Energy, Technology and International",Rolec Services Limited,2000001196,27900,ROLEC JAN 2015 #27900,PE20 1Q,
Department for Transport,Department for Transport,17/04/2015,Cap Grt Pri Sec-Cos.,"Energy, Technology and International",Schneider Electric,2000001198,15300,SCHNEIDER ELEC FEB 2015 #15300,W1W 6XX,
Department for Transport,Department for Transport,17/04/2015,Cap Grt Pri Sec-Cos.,"Energy, Technology and International",Schneider Electric,2000001198,3600,SCHNEIDER ELEC Dec 2014 #3600,W1W 6XX,
Department for Transport,Department for Transport,17/04/2015,Cap Grt Pri Sec-Cos.,"Energy, Technology and International",Schneider Electric,2000001198,13500,SCHNEIDER ELEC Jan 2015 #13500,W1W 6XX,
Department for Transport,Department for Transport,17/04/2015,Cap Grt Pri Sec-Cos.,"Energy, Technology and International",Starfish Installations Ltd,2000001209,706.58,Starfish Feb 2015 #706.58 EVHS,NR13 5FH,
Department for Transport,Department for Transport,17/04/2015,CurrGrtPriSec-P&NPIS,"Motoring, Freight & London",RICARDO - AEA LIMITED,2000001194,44000,NCEC Q4,OX11 0PQ,
Department for Transport,Department for Transport,17/04/2015,Electricity,Group Procurement and Property,EDF ENERGY,2000001177,42562.78,EDF - Great Minister House - 01.03.15 - 31.03.15,DA6 8ET,
Department for Transport,Department for Transport,17/04/2015,Gas,Group Procurement and Property,CORONA ENERGY RETAIL 4 LTD,2000001176,2686.14,Corona - 01.04.2015,WD17 1JW,
Department for Transport,Department for Transport,17/04/2015,IT Consultancy,Group Procurement and Property,Greenstone+ Ltd,2000001208,4675,#,W1B 4BR,
Department for Transport,Department for Transport,17/04/2015,IT Ser Running Costs,Group Communications,Intelogy Limited,2000001203,1554,#,TW16 7DY,
Department for Transport,Department for Transport,17/04/2015,Maintenance Other,"Motoring, Freight & London",TDC SYSTEMS LIMITED,2000001179,1520,#,BS24 9BP,
Department for Transport,Department for Transport,17/04/2015,Mobile Phone charges,Group Finance,VODAFONE LTD,2000001183,13030.03,Vodafone - Various mobiles April/May 15,RG14 5FF,
Department for Transport,Department for Transport,17/04/2015,Other Professional F,Maritime,Cofely Workplace Ltd,2000001210,6832.87,#,NE12 2EH,
Department for Transport,Department for Transport,17/04/2015,Purchasing Card Char,RTL DG's Office,BARCLAYS BANK PLC,2000001175,30134.61,Barclays - [DFT/RT&L] - [April 2015],NN4 7SG,
Department for Transport,Department for Transport,17/04/2015,Purchasing Card Char,ISE - DG's Office,BARCLAYS BANK PLC,2000001175,37242.18,Barclays - [DFT/ISE] - [April 2015],NN4 7SG,
Department for Transport,Department for Transport,17/04/2015,Purchasing Card Char,ISE - DG's Office,BARCLAYS BANK PLC,2000001175,29116.65,Barclays - [DFT/ISE] - [April 2015],NN4 7SG,
Department for Transport,Department for Transport,17/04/2015,Purchasing Card Char,Group Finance,BARCLAYS BANK PLC,2000001175,72440.44,Barclays - [DFT/R&S] - [April 2015],NN4 7SG,
Department for Transport,Department for Transport,17/04/2015,Subsidies Private Se,"Motoring, Freight & London",xxxxxx,2000001185,662430,Freight Grant Payment,xxxxxx,
Department for Transport,Department for Transport,17/04/2015,Subsidies Private Se,"Motoring, Freight & London",xxxxxx,2000001192,2114.37,Freight Grant Payment,xxxxxx,
Department for Transport,Department for Transport,17/04/2015,Subsidies Private Se,"Motoring, Freight & London",xxxxxx,2000001192,2939.49,Freight Grant Payment,xxxxxx,
Department for Transport,Department for Transport,17/04/2015,Subsidies Private Se,"Motoring, Freight & London",xxxxxx,2000001192,3040.72,Freight Grant Payment,xxxxxx,
Department for Transport,Department for Transport,17/04/2015,Subsidies Private Se,Maritime,ROSPA ENTERPRISES LTD,2000001011,15000,RoSPA National Water Safety Forum Grant,B15 1RP,
Department for Transport,Department for Transport,17/04/2015,Subsidies Private Se,Maritime,MOUNTAIN RESCUE ENGLAND,2000001097,9301.74,Mountain Rescue England & Wales,NP20 4NF,
Department for Transport,Department for Transport,17/04/2015,Support Services,"Motoring, Freight & London",Environmental Scientifics Group,2000001172,4910.4,#,OX9 3SZ,
Department for Transport,Department for Transport,17/04/2015,Support Services,Programme Office,DEPARTMENT OF ENERGY&CLIMATE CHANGE,2000001191,3698.01,#,SW1A 2HD,
Department for Transport,Department for Transport,17/04/2015,Support Services,Aviation,THE EMMANUEL CENTRE,2000001187,1950,#,SW1P 3DW,
Department for Transport,Department for Transport,17/04/2015,Training,"Group Services, Change and Capability",THE RAILWAY CONSULTANCY LTD,2000001188,1300,#,SE19 2LT,
Department for Transport,Department for Transport,17/04/2015,Transport  Consult,Rail Commercial & Programme Office,TRANSPORT RESEARCH LABORATORY,2000001180,24068.72,#,RG40 3GA,
Department for Transport,Department for Transport,17/04/2015,Transport  Consult,Rail Commercial & Programme Office,TRANSPORT RESEARCH LABORATORY,2000001180,15769.66,#,RG40 3GA,
Department for Transport,Department for Transport,17/04/2015,Transport  Consult,Rail Commercial & Programme Office,TRANSPORT RESEARCH LABORATORY,2000001180,30407.83,#,RG40 3GA,
Department for Transport,Department for Transport,17/04/2015,Travel Expenses UK,Group Finance,REDFERN TRAVEL LTD,2000001193,131687.76,Redfern - March 15,BD1 3AZ,
Department for Transport,Department for Transport,20/04/2015,Agency Staff Costs,Group Human Resource,CAPITA BUSINESS SERVICES LTD,2000001245,1572.53,#,DL1 9HN,
Department for Transport,Department for Transport,20/04/2015,Agency Staff Costs,Group Human Resource,NETWORKERS INTERNATIONAL (UK) PLC,2000001261,1013.52,#,BR1 1HP,
Department for Transport,Department for Transport,20/04/2015,Agency Staff Costs,Integrated Delivery,NETWORKERS INTERNATIONAL (UK) PLC,2000001261,2713.01,#,BR1 1HP,
Department for Transport,Department for Transport,20/04/2015,Agency Staff Costs,Major Projects & Growth,Experis Ltd,2000001250,4832.02,#,EC2M 2RB,
Department for Transport,Department for Transport,20/04/2015,Agency Staff Costs,Major Projects & Growth,Experis Ltd,2000001250,4793.46,#,EC2M 2RB,
Department for Transport,Department for Transport,20/04/2015,Agency Staff Costs,Major Projects & Growth,Experis Ltd,2000001250,3834.77,#,EC2M 2RB,
Department for Transport,Department for Transport,20/04/2015,Agency Staff Costs,Rail Commercial & Programme Office,CAPITA BUSINESS SERVICES LTD,2000001245,2637.7,#,DL1 9HN,
Department for Transport,Department for Transport,20/04/2015,Agency Staff Costs,Rail Commercial & Programme Office,CAPITA BUSINESS SERVICES LTD,2000001245,1810.16,#,DL1 9HN,
Department for Transport,Department for Transport,20/04/2015,Agency Staff Costs,Major Projects & Growth,BROOK STREET (UK) LIMITED,2000001257,750.19,#,AL1 4JB,
Department for Transport,Department for Transport,20/04/2015,Agency Staff Costs,Major Projects & Growth,CAPITA BUSINESS SERVICES LTD,2000001245,3168.91,#,DL1 9HN,
Department for Transport,Department for Transport,20/04/2015,Agency Staff Costs,Major Projects & Growth,CAPITA BUSINESS SERVICES LTD,2000001245,3168.91,#,DL1 9HN,
Department for Transport,Department for Transport,20/04/2015,Agency Staff Costs,Motoring Services,CAPITA BUSINESS SERVICES LTD,2000001245,3327.01,#,DL1 9HN,
Department for Transport,Department for Transport,20/04/2015,Agency Staff Costs,Group Finance,CAPITA BUSINESS SERVICES LTD,2000001245,1588.27,#,DL1 9HN,
Department for Transport,Department for Transport,20/04/2015,Agency Staff Costs,Group Finance,NETWORKERS INTERNATIONAL (UK) PLC,2000001261,688.8,#,BR1 1HP,
Department for Transport,Department for Transport,20/04/2015,Agency Staff Costs,Rail Franchising,Badenoch & Clark c/o Lauren Rogers,2000001246,4062,#,B37 7YE,
Department for Transport,Department for Transport,20/04/2015,Agency Staff Costs,Rail Franchising,Badenoch & Clark c/o Lauren Rogers,2000001246,4062,#,B37 7YE,
Department for Transport,Department for Transport,20/04/2015,Agency Staff Costs,Rail Commercial & Programme Office,CAPITA BUSINESS SERVICES LTD,2000001245,2923.49,#,DL1 9HN,
Department for Transport,Department for Transport,20/04/2015,Agency Staff Costs,Rail Commercial & Programme Office,CAPITA BUSINESS SERVICES LTD,2000001245,4240.22,#,DL1 9HN,
Department for Transport,Department for Transport,20/04/2015,Agency Staff Costs,Integrated Delivery,CAPITA BUSINESS SERVICES LTD,2000001245,3899.71,#,DL1 9HN,
Department for Transport,Department for Transport,20/04/2015,Agency Staff Costs,Integrated Delivery,CAPITA BUSINESS SERVICES LTD,2000001245,1783.7,#,DL1 9HN,
Department for Transport,Department for Transport,20/04/2015,Agency Staff Costs,Rail Franchising,CAPITA BUSINESS SERVICES LTD,2000001245,20279.11,#,DL1 9HN,
Department for Transport,Department for Transport,20/04/2015,Agency Staff Costs,Integrated Delivery,CAPITA BUSINESS SERVICES LTD,2000001245,1728.43,#,DL1 9HN,
Department for Transport,Department for Transport,20/04/2015,Agency Staff Costs,Integrated Delivery,CAPITA BUSINESS SERVICES LTD,2000001245,7134.82,#,DL1 9HN,
Department for Transport,Department for Transport,20/04/2015,Agency Staff Costs,Integrated Delivery,CAPITA BUSINESS SERVICES LTD,2000001245,7799.42,#,DL1 9HN,
Department for Transport,Department for Transport,20/04/2015,Agency Staff Costs,Network Rail Sponsorship,CAPITA BUSINESS SERVICES LTD,2000001245,582.77,#,DL1 9HN,
Department for Transport,Department for Transport,20/04/2015,Agency Staff Costs,Group Finance,CAPITA BUSINESS SERVICES LTD,2000001245,4378.8,#,DL1 9HN,
Department for Transport,Department for Transport,20/04/2015,Agency Staff Costs,Rail Franchising,CAPITA BUSINESS SERVICES LTD,2000001245,6377.28,#,DL1 9HN,
Department for Transport,Department for Transport,20/04/2015,Agency Staff Costs,Rail Franchising,CAPITA BUSINESS SERVICES LTD,2000001245,1606.51,#,DL1 9HN,
Department for Transport,Department for Transport,20/04/2015,Agency Staff Costs,Rail Franchising,CAPITA BUSINESS SERVICES LTD,2000001245,9790.31,#,DL1 9HN,
Department for Transport,Department for Transport,20/04/2015,Agency Staff Costs,Integrated Delivery,CAPITA BUSINESS SERVICES LTD,2000001245,2144.11,#,DL1 9HN,
Department for Transport,Department for Transport,20/04/2015,Agency Staff Costs,Network Rail Sponsorship,CAPITA BUSINESS SERVICES LTD,2000001245,1097.33,#,DL1 9HN,
Department for Transport,Department for Transport,20/04/2015,Agency Staff Costs,Rail Franchising,Capita Resourcing Limited,2000001260,17520,#,EC4A 1EN,
Department for Transport,Department for Transport,20/04/2015,Agency Staff Costs,Rail Franchising,Experis Ltd,2000001250,7121.66,#,EC2M 2RB,
Department for Transport,Department for Transport,20/04/2015,Agency Staff Costs,Project Sponsorship,Experis Ltd,2000001250,9332.4,#,EC2M 2RB,
Department for Transport,Department for Transport,20/04/2015,Agency Staff Costs,Project Sponsorship,Experis Ltd,2000001250,3732.96,#,EC2M 2RB,
Department for Transport,Department for Transport,20/04/2015,Agency Staff Costs,Rail Franchising,Experis Ltd,2000001250,7153.15,#,EC2M 2RB,
Department for Transport,Department for Transport,20/04/2015,Agency Staff Costs,Rail Franchising,Experis Ltd,2000001250,4421.38,#,EC2M 2RB,
Department for Transport,Department for Transport,20/04/2015,Agency Staff Costs,Project Sponsorship,SPRING TECHNOLOGY LTD  ALSO T/A,2000001262,3720,#,B37 7YE,
Department for Transport,Department for Transport,20/04/2015,Cap Grt Loc Auth,Local,GREATER MANCHESTER,2000001264,20125000,Stockport Town Centre Access Scheme,M60 2JR,
Department for Transport,Department for Transport,20/04/2015,Cap Grt Loc Auth,Local,Hertfordshire County Council,2000001244,24000000,Croxley Rail Link - Capital Grant 2014/15,SG13 8DN,
Department for Transport,Department for Transport,20/04/2015,Cap Grt Pri Sec-Cos.,"Energy, Technology and International",British Gas Ltd,2000001268,22871.8,British Gas Dec 2014 #22871.80,S60 1BY,
Department for Transport,Department for Transport,20/04/2015,Cap Grt Pri Sec-Cos.,Network Rail Sponsorship,Network Rail Infstrcture (Treasury),2000001227,160500000,#,NW1 2DN,
Department for Transport,Department for Transport,20/04/2015,Car Hire and Leasing,Group Finance,ENTERPRISE RENT-A-CAR,2000001266,7048.46,Enterprise car hire March 2015,TW20 8RX,
Department for Transport,Department for Transport,20/04/2015,Data Supply - TD,Motoring Services,BASEMAP LIMITED,2000001267,1608,#,GU2 7YG,
Department for Transport,Department for Transport,20/04/2015,Investigation Servic,Motoring Services,Procordia Ltd,2000001269,5343,#,TN39 4SR,
Department for Transport,Department for Transport,20/04/2015,IT Ser Running Costs,Group Communications,Kainos Software Ltd,2000001252,1134,#,BT7 1NT,
Department for Transport,Department for Transport,20/04/2015,IT Ser Running Costs,Motoring Services,ANS Group plc,2000001271,254942.46,#,M15 6SY,
Department for Transport,Department for Transport,20/04/2015,Legal Consultancy,Rail Strategy & Funding,Blake Morgan LLP,2000001270,4995,#,PO6 4ST,
Department for Transport,Department for Transport,20/04/2015,Mobile Phone charges,ISE - DG's Office,VODAFONE LTD,2000001258,8619.46,Vodafone - Various mobiles April/May 15,RG14 5FF,
Department for Transport,Department for Transport,20/04/2015,Prog&ProjMgmt Consul,Aviation,Civil Aviation Authority,2000001248,10000,#,RH6 0YR,
Department for Transport,Department for Transport,20/04/2015,Purchasing Card Char,RTL DG's Office,BARCLAYS BANK PLC,2000001247,2433.19,Barclaycard April 15 Statement DfT/RT&L,NN4 7SG,
Department for Transport,Department for Transport,20/04/2015,Purchasing Card Char,Group Finance,BARCLAYS BANK PLC,2000001247,1992.44,Barclays - [DFT/R&S] - [April 2015],NN4 7SG,
Department for Transport,Department for Transport,20/04/2015,Support Services,Group Assurance,HOME OFFICE,2000001251,6112.62,xxxxxx,NP20 9BB,
Department for Transport,Department for Transport,20/04/2015,Support Services,Aviation,Civil Aviation Authority,2000001248,6709.75,#,RH6 0YR,
Department for Transport,Department for Transport,20/04/2015,Support Services,Aviation,CORNWALL AIRPORT LTD,2000001263,30378,#,TR8 4RQ,
Department for Transport,Department for Transport,20/04/2015,Training,Aviation,xxxxxx,2000001265,626.5,#,xxxxxx,
Department for Transport,Department for Transport,20/04/2015,Training,Motoring Services,ROSPA ENTERPRISES LTD,2000001259,1300,#,B15 1RP,
Department for Transport,Department for Transport,20/04/2015,Transport  Consult,Local,OVE ARUP & PARTNERS,2000001253,8092.28,#,NE1 3PL,
Department for Transport,Department for Transport,20/04/2015,Transport  Consult,Rail Franchising,Pricewaterhouse Coopers LLP,2000001254,33122.4,#,SE1 2RD,
Department for Transport,Department for Transport,20/04/2015,Travel Expenses UK,Marine Accident Investigation Branch,Clyde Travel Management,2000001249,2001.12,Clyde - 11.04.2015,G52 4JQ,
Department for Transport,Department for Transport,20/04/2015,Travel Expenses UK,Marine Accident Investigation Branch,Clyde Travel Management,2000001249,710.16,Clyde -  11.04.2015,G52 4JQ,
Department for Transport,Department for Transport,20/04/2015,Travel Expenses UK,Marine Accident Investigation Branch,Clyde Travel Management,2000001249,1780.16,Clyde - 10.04.2015,G52 4JQ,
Department for Transport,Department for Transport,20/04/2015,Water,Rail Accident Investigation Branch,Severn Trent Water,2000001256,713.11,#,DH1 1RR,
Department for Transport,Department for Transport,21/04/2015,Agency Staff Costs,Group Finance,CAPITA BUSINESS SERVICES LTD,2000001318,2196.05,#,DL1 9HN,
Department for Transport,Department for Transport,21/04/2015,Agency Staff Costs,Rail Commercial & Programme Office,MORGAN HUNT UK LTD,2000001328,3135.55,#,EC4M 7EG,
Department for Transport,Department for Transport,21/04/2015,Agency Staff Costs,Group Finance,Allen Lane,2000001322,1971.07,#,SW1Y 6RJ,
Department for Transport,Department for Transport,21/04/2015,Agency Staff Costs,Group Finance,Allen Lane,2000001322,2217.46,#,SW1Y 6RJ,
Department for Transport,Department for Transport,21/04/2015,Agency Staff Costs,Group Finance,CAPITA BUSINESS SERVICES LTD,2000001318,3329.64,#,DL1 9HN,
Department for Transport,Department for Transport,21/04/2015,Agency Staff Costs,Group Finance,CAPITA BUSINESS SERVICES LTD,2000001318,2063.1,#,DL1 9HN,
Department for Transport,Department for Transport,21/04/2015,Agency Staff Costs,Group Finance,CAPITA BUSINESS SERVICES LTD,2000001318,2063.1,#,DL1 9HN,
Department for Transport,Department for Transport,21/04/2015,Agency Staff Costs,Group Finance,CAPITA BUSINESS SERVICES LTD,2000001318,3329.64,#,DL1 9HN,
Department for Transport,Department for Transport,21/04/2015,Agency Staff Costs,Group Finance,CAPITA BUSINESS SERVICES LTD,2000001318,2663.71,#,DL1 9HN,
Department for Transport,Department for Transport,21/04/2015,Agency Staff Costs,Group Finance,CAPITA BUSINESS SERVICES LTD,2000001318,5083.51,#,DL1 9HN,
Department for Transport,Department for Transport,21/04/2015,Agency Staff Costs,Group Finance,CAPITA BUSINESS SERVICES LTD,2000001318,2040.24,#,DL1 9HN,
Department for Transport,Department for Transport,21/04/2015,Agency Staff Costs,Group Finance,CAPITA BUSINESS SERVICES LTD,2000001318,5300.28,#,DL1 9HN,
Department for Transport,Department for Transport,21/04/2015,Agency Staff Costs,Group Finance,CAPITA BUSINESS SERVICES LTD,2000001318,3264.38,#,DL1 9HN,
Department for Transport,Department for Transport,21/04/2015,Agency Staff Costs,Group Finance,CAPITA BUSINESS SERVICES LTD,2000001318,5300.28,#,DL1 9HN,
Department for Transport,Department for Transport,21/04/2015,Agency Staff Costs,Group Finance,CAPITA BUSINESS SERVICES LTD,2000001318,1452.43,#,DL1 9HN,
Department for Transport,Department for Transport,21/04/2015,Agency Staff Costs,Rail Franchising,CAPITA BUSINESS SERVICES LTD,2000001318,12778.79,#,DL1 9HN,
Department for Transport,Department for Transport,21/04/2015,Agency Staff Costs,Rail Franchising,CAPITA BUSINESS SERVICES LTD,2000001318,3349.92,#,DL1 9HN,
Department for Transport,Department for Transport,21/04/2015,Cap Grt Pri Sec-Cos.,"Policy, Legislation and Funding",Eversheds LLP,2000001353,430636.03,xxxxxx,CF10 5BT,
Department for Transport,Department for Transport,21/04/2015,Car Hire and Leasing,Motoring Services,Saltco Ltd T/A Kelly Executive,2000001350,520,#,SE15 4RF,
Department for Transport,Department for Transport,21/04/2015,Cars Maintenance,Motoring Services,ATS Euromaster Ltd,2000001319,3267.84,#,EN11 1HH,
Department for Transport,Department for Transport,21/04/2015,Childcare Voucher Co,Group Human Resource,COMPUTERSHARE VOUCHER SERVICES,2000001317,29007,#,WS13 8SX,
Department for Transport,Department for Transport,21/04/2015,CurrGrt Las in AEF/A,Rail Strategy & Funding,MERSEY TRAVEL,2000001335,6143564.16,Mersey Grant P 1 Payment FY2015,L3   2AN,
Department for Transport,Department for Transport,21/04/2015,Financial Consultanc,Group Finance,GOVERNMENT ACTUARY'S DEPARTMENT,2000001358,40179.1,#,EC4A 1AB,
Department for Transport,Department for Transport,21/04/2015,IT Ser Running Costs,Motoring Services,ANS Group plc,2000001357,65396.88,#,M15 6SY,
Department for Transport,Department for Transport,21/04/2015,IT Ser Running Costs,Motoring Services,SOFTWARE BOX LTD,2000001330,18540,#,YO61 1ET,
Department for Transport,Department for Transport,21/04/2015,IVR Costs,Motoring Services,Vodafone Ltd (ex C&W W'wide Div.),2000001314,66094.61,UK10/042015/9181,MK3 5JP,
Department for Transport,Department for Transport,21/04/2015,IVR Costs,Motoring Services,Vodafone Ltd (ex C&W W'wide Div.),2000001314,2310.36,Vodafone Monthly Bill UKL0/042015/8297,MK3 5JP,
Department for Transport,Department for Transport,21/04/2015,Legal Consultancy,Rail Franchising,Eversheds LLP,2000001339,54618,#,EC2V 7WS,
Department for Transport,Department for Transport,21/04/2015,Legal Consultancy,Rail Franchising,Field Fisher Waterhouse LLP,2000001352,77382.6,#,EC3N 2AA,
Department for Transport,Department for Transport,21/04/2015,Legal Consultancy,"Policy, Legislation and Funding",xxxxxx,2000001343,10200,#,xxxxxx,
Department for Transport,Department for Transport,21/04/2015,Maintenance Other,Motoring Services,ARVAL,2000001320,868.86,#,SN5 6PE,
Department for Transport,Department for Transport,21/04/2015,Maintenance Other,Motoring Services,ARVAL,2000001320,4828.03,#,SN5 6PE,
Department for Transport,Department for Transport,21/04/2015,Maintenance Other,Motoring Services,ARVAL,2000001320,799.49,#,SN5 6PE,
Department for Transport,Department for Transport,21/04/2015,Non Stock Machine Co,Motoring Services,XMA LIMITED GOSC,2000001344,2378.62,#,NG11 7EP,
Department for Transport,Department for Transport,21/04/2015,Non Stock Machine Co,Motoring Services,XMA LIMITED GOSC,2000001344,9635.95,#,NG11 7EP,
Department for Transport,Department for Transport,21/04/2015,Other Advertising,Local,PENNA COMMUNICATIONS,2000001337,17312.34,#,EC4M 7RD,
Department for Transport,Department for Transport,21/04/2015,Other Professional F,Group Human Resource,COMPUTERSHARE VOUCHER SERVICES,2000001317,696.17,#,WS13 8SX,
Department for Transport,Department for Transport,21/04/2015,Printing,Strategy and Engagement,WILLIAMS LEA LIMITED,2000001341,5381.21,#,NR3 1PD,
Department for Transport,Department for Transport,21/04/2015,Prog&ProjMgmt Consul,Motoring Services,Kier Construction Ltd,2000001354,9992.13,#,ME20 6XS,
Department for Transport,Department for Transport,21/04/2015,Prog&ProjMgmt Consul,Motoring Services,Kier Construction Ltd,2000001354,27752.44,#,ME20 6XS,
Department for Transport,Department for Transport,21/04/2015,Publicity,Group Communications,ABBOTT MEAD VICKERS BBDO LTD,2000001321,1066,#,NW1 5QE,
Department for Transport,Department for Transport,21/04/2015,Research,Major Projects & Growth,ATKINS LTD (TRANSPORT PLANNING),2000001324,7996.16,#,WR5 1TX,
Department for Transport,Department for Transport,21/04/2015,Research,Transport Security Co-ordination and Response,DEFENCE SCIENCE & TECHNOLOGY,2000001326,30445.68,#,PO14 9HL,
Department for Transport,Department for Transport,21/04/2015,Research,Analysis & Strategy,Ecorys UK Ltd,2000001355,24819,#,B1 2RA,
Department for Transport,Department for Transport,21/04/2015,Research,Rail Franchising,LONDON MIDLAND RAILWAY,2000001336,19450,#,B2 4JB,
Department for Transport,Department for Transport,21/04/2015,Services prov by OGD,"Motoring, Freight & London",HM Courts & Tribunals Service,100002822,-51049.2,#,NP20 9FN,
Department for Transport,Department for Transport,21/04/2015,Services prov by OGD,"Motoring, Freight & London",HM Courts & Tribunals Service,100002822,51049.2,#,NP20 9FN,
Department for Transport,Department for Transport,21/04/2015,Support Services,Aviation,TAG FARNBOROUGH AIRPORT LTD,2000001331,30377.99,#,GU14 6XA,
Department for Transport,Department for Transport,21/04/2015,Support Services,Aviation,Civil Aviation Authority,2000001325,22161,#,RH6 0YR,
Department for Transport,Department for Transport,21/04/2015,Support Services,Group Finance,DD ACCRAILWAY PENS TRUSTEE,2000001333,2767,#,DL3 6XR,
Department for Transport,Department for Transport,21/04/2015,Support Services,Group Finance,DD ACCRAILWAY PENS TRUSTEE,2000001333,683.29,#,DL3 6XR,
Department for Transport,Department for Transport,21/04/2015,Support Services,Group Finance,DD ACCRAILWAY PENS TRUSTEE,2000001333,1183.04,#,DL3 6XR,
Department for Transport,Department for Transport,21/04/2015,Telecom Equipment,Motoring Services,Azzuri Communications Ltd,2000001340,1922.4,Azzurri - Polycom IP7000 Soundstation supply 20.3.,BB11 5FH,
Department for Transport,Department for Transport,21/04/2015,Telecom Equipment,Motoring Services,Azzuri Communications Ltd,2000001340,5448,#,BB11 5FH,
Department for Transport,Department for Transport,21/04/2015,Telecom Equipment,Motoring Services,Azzuri Communications Ltd,2000001340,1440,Azzurri - enginner MXE Feb 2015,BB11 5FH,
Department for Transport,Department for Transport,21/04/2015,Telecom Equipment,Motoring Services,Azzuri Communications Ltd,2000001340,2400,Azzurri - DB Lead engineer - 08.04.2015,BB11 5FH,
Department for Transport,Department for Transport,21/04/2015,Telephone charges,Motoring Services,Vodafone Ltd (ex C&W W'wide Div.),2000001314,-775.98,#,MK3 5JP,
Department for Transport,Department for Transport,21/04/2015,Telephone charges,Motoring Services,Vodafone Ltd (ex C&W W'wide Div.),2000001314,-1218.44,MSP access bearer - 17.03.2015,MK3 5JP,
Department for Transport,Department for Transport,21/04/2015,Telephone charges,Motoring Services,Vodafone Ltd (ex C&W W'wide Div.),2000001314,-13619.76,"Vodafone - Disconnect credit, serv/term - 31.3.15",MK3 5JP,
Department for Transport,Department for Transport,21/04/2015,Telephone charges,Motoring Services,Vodafone Ltd (ex C&W W'wide Div.),2000001314,2310.36,DEMON - internet charges - 1.3 to 31.3.15,MK3 5JP,
Department for Transport,Department for Transport,21/04/2015,Telephone Line Rent,Motoring Services,Vodafone Ltd (ex C&W W'wide Div.),2000001314,-7255.79,Part credit re UK10/082014/7702,MK3 5JP,
Department for Transport,Department for Transport,21/04/2015,Training,Motoring Services,SOFTWARE BOX LTD,2000001316,4500,#,YO61 1ET,
Department for Transport,Department for Transport,21/04/2015,Training,Group Human Resource,Capita Business Services Ltd,2000001315,1091.46,#,B1 3RB,
Department for Transport,Department for Transport,21/04/2015,Transport  Consult,Group Human Resource,KIS Solutions Ltd,2000001327,7125,#,GU8 5UA,
Department for Transport,Department for Transport,21/04/2015,Transport  Consult,Rail Commercial & Programme Office,Directly Operated Railways Ltd,2000001338,139008.67,#,EC4A 1BL,
Department for Transport,Department for Transport,21/04/2015,Transport  Consult,Rail Strategy & Funding,GRANT THORNTON UK LLP,2000001334,41815.2,#,NN4 7YE,
Department for Transport,Department for Transport,21/04/2015,Transport  Consult,Aviation,FRAZER-NASH CONSULTANCY LTD,2000001342,4072.37,#,RH4 1HJ,
Department for Transport,Department for Transport,21/04/2015,Transport  Consult,Rail Franchising,PARSONS BRINCKERHOFF LTD,2000001329,16565.64,#,NE4 7YQ,
Department for Transport,Department for Transport,21/04/2015,Travel Expenses UK,Motoring Services,"Transport For London,",2000001351,9225,#,SE10 1AP,
Department for Transport,Department for Transport,21/04/2015,Travel Expenses UK,Motoring Services,"Transport For London,",2000001351,9278.5,#,SE10 1AP,
Department for Transport,Department for Transport,22/04/2015,Agency Staff Costs,Group Assurance,PARITY RESOURCES LTD,2000001501,16071.84,#,SW19 3RU,
Department for Transport,Department for Transport,22/04/2015,Agency Staff Costs,Integrated Delivery,Allen Lane,2000001471,3229.1,#,SW1Y 6RJ,
Department for Transport,Department for Transport,22/04/2015,Agency Staff Costs,Integrated Delivery,Allen Lane,2000001471,3229.1,#,SW1Y 6RJ,
Department for Transport,Department for Transport,22/04/2015,Agency Staff Costs,Local,BROOK STREET (UK) LIMITED,2000001486,517.21,#,AL1 4JB,
Department for Transport,Department for Transport,22/04/2015,Agency Staff Costs,Major Projects & Growth,BROOK STREET (UK) LIMITED,2000001486,729.12,#,AL1 4JB,
Department for Transport,Department for Transport,22/04/2015,Agency Staff Costs,Group Finance,Allen Lane,2000001471,985.54,#,SW1Y 6RJ,
Department for Transport,Department for Transport,22/04/2015,Cap Grt Loc Auth,Local,BATH & NE SOMERSET DC,2000001393,942750,Highway Maintenance Block - 2015/16 Quarter 1,BA1 5AW,
Department for Transport,Department for Transport,22/04/2015,Cap Grt Loc Auth,Local,BOURNEMOUTH BOROUGH COUNCIL,2000001506,363250,Highway Maintenance Block - 2015/16 Quarter 1,BH2 5SL,
Department for Transport,Department for Transport,22/04/2015,Cap Grt Loc Auth,Local,BRISTOL CITY COUNCIL,2000001395,973000,Highway Maintenance Block - 2015/16 Quarter 1,BS99 7BL,
Department for Transport,Department for Transport,22/04/2015,Cap Grt Loc Auth,Local,Centro,2000001505,4073750,Highway Maintenance Block - 2015/16 Quarter 1,B19 3SD,
Department for Transport,Department for Transport,22/04/2015,Cap Grt Loc Auth,Local,CITY OF YORK COUNCIL,2000001398,567500,Highway Maintenance Block - 2015/16 Quarter 1,Y01 7WH,
Department for Transport,Department for Transport,22/04/2015,Cap Grt Loc Auth,Local,CORNWALL COUNTY COUNCIL,2000001448,5671250,Highway Maintenance Block - 2015/16 Quarter 1,TR1 38D,
Department for Transport,Department for Transport,22/04/2015,Cap Grt Loc Auth,Local,DEVON COUNTY COUNCIL,2000001403,10576500,Highway Maintenance Block - 2015/16 Quarter 1,EX2 4QJ,
Department for Transport,Department for Transport,22/04/2015,Cap Grt Loc Auth,Local,DORSET COUNTY COUNCIL,2000001404,3477000,Highway Maintenance Block - 2015/16 Quarter 1,DT1 1XJ,
Department for Transport,Department for Transport,22/04/2015,Cap Grt Loc Auth,Local,EAST RIDING OF YORKSHIRE COUNCIL,2000001489,2761750,Highway Maintenance Block - 2015/16 Quarter 1,HU17 9BA,
Department for Transport,Department for Transport,22/04/2015,Cap Grt Loc Auth,Local,GLOUCESTERSHIRE COUNTY COUNCIL,2000001392,4458250,Highway Maintenance Block - 2015/16 Quarter 1,GL1 2TJ,
Department for Transport,Department for Transport,22/04/2015,Cap Grt Loc Auth,Local,HEREFORDSHIRE COUNCIL,2000001490,2880750,Highway Maintenance Block - 2015/16 Quarter 1,HR4 0XH,
Department for Transport,Department for Transport,22/04/2015,Cap Grt Loc Auth,Local,KINGSTON UPON HULL CITY COUNCIL,2000001491,562750,Highway Maintenance Block - 2015/16 Quarter 1,HU1 2AB,
Department for Transport,Department for Transport,22/04/2015,Cap Grt Loc Auth,Local,North East Lincolnshire Council,2000001493,499000,Highway Maintenance Block - 2015/16 Quarter 1,DN35 8LN,
Department for Transport,Department for Transport,22/04/2015,Cap Grt Loc Auth,Local,North Lincolnshire Council,2000001442,1150250,Highway Maintenance Block - 2015/16 Quarter 1,DN16 1AB,
Department for Transport,Department for Transport,22/04/2015,Cap Grt Loc Auth,Local,North Somerset Council,2000001415,1003000,Highway Maintenance Block - 2015/16 Quarter 1,BS23 1UJ,
Department for Transport,Department for Transport,22/04/2015,Cap Grt Loc Auth,Local,NORTH YORKSHIRE CC,2000001494,7412500,Highway Maintenance Block - 2015/16 Quarter 1,DL7 8AL,
Department for Transport,Department for Transport,22/04/2015,Cap Grt Loc Auth,Local,OXFORDSHIRE CC,2000001417,4173750,Highway Maintenance Block - 2015/16 Quarter 1,OX1 1TH,
Department for Transport,Department for Transport,22/04/2015,Cap Grt Loc Auth,Local,PLYMOUTH CITY COUNCIL,2000001419,581250,Highway Maintenance Block - 2015/16 Quarter 1,PL1 2AA,
Department for Transport,Department for Transport,22/04/2015,Cap Grt Loc Auth,Local,POOLE BC,2000001420,400250,Highway Maintenance Block - 2015/16 Quarter 1,BH15 2RZ,
Department for Transport,Department for Transport,22/04/2015,Cap Grt Loc Auth,Local,Reading Borough Council,2000001421,368000,Highway Maintenance Block - 2015/16 Quarter 1,RG1 2LU,
Department for Transport,Department for Transport,22/04/2015,Cap Grt Loc Auth,Local,Sheffield City Region,2000001498,3142000,Highway Maintenance Block - 2015/16 Quarter 1,S1 4PL,
Department for Transport,Department for Transport,22/04/2015,Cap Grt Loc Auth,Local,SHROPSHIRE COUNTY COUNCIL,2000001497,4124500,Highway Maintenance Block - 2015/16 Quarter 1,SY2 6ND,
Department for Transport,Department for Transport,22/04/2015,Cap Grt Loc Auth,Local,Slough Borough Council,2000001424,226000,Highway Maintenance Block - 2015/16 Quarter 1,SL1 3UF,
Department for Transport,Department for Transport,22/04/2015,Cap Grt Loc Auth,Local,SOMERSET COUNTY COUNCIL,2000001425,5628500,Highway Maintenance Block - 2015/16 Quarter 1,TA1 4DY,
Department for Transport,Department for Transport,22/04/2015,Cap Grt Loc Auth,Local,SOUTH GLOUCESTERSHIRE COUNCIL,2000001426,1270000,Highway Maintenance Block - 2015/16 Quarter 1,BS15 9DW,
Department for Transport,Department for Transport,22/04/2015,Cap Grt Loc Auth,Local,Southampton City Council,2000001450,426000,Highway Maintenance Block - 2015/16 Quarter 1,SO14 7LY,
Department for Transport,Department for Transport,22/04/2015,Cap Grt Loc Auth,Local,Staffordshire County Council,2000001496,5019000,Highway Maintenance Block - 2015/16 Quarter 1,ST16 2DH,
Department for Transport,Department for Transport,22/04/2015,Cap Grt Loc Auth,Local,Stoke-On-Trent City Council,2000001500,595000,Highway Maintenance Block - 2015/16 Quarter 1,ST4 4TS,
Department for Transport,Department for Transport,22/04/2015,Cap Grt Loc Auth,Local,SURREY COUNTY COUNCIL,2000001428,4178500,Highway Maintenance Block - 2015/16 Quarter 1,KT1 2DN,
Department for Transport,Department for Transport,22/04/2015,Cap Grt Loc Auth,Local,SWINDON BC,2000001429,699750,Highway Maintenance Block - 2015/16 Quarter 1,SN1 2JH,
Department for Transport,Department for Transport,22/04/2015,Cap Grt Loc Auth,Local,TELFORD & WREKIN DC,2000001445,863250,Highway Maintenance Block - 2015/16 Quarter 1,TF3 4LF,
Department for Transport,Department for Transport,22/04/2015,Cap Grt Loc Auth,Local,TORBAY BC,2000001431,364500,Highway Maintenance Block - 2015/16 Quarter 1,TQ1 3DS,
Department for Transport,Department for Transport,22/04/2015,Cap Grt Loc Auth,Local,Warwickshire County Council,2000001446,3237750,Highway Maintenance Block - 2015/16 Quarter 1,CV34 4RH,
Department for Transport,Department for Transport,22/04/2015,Cap Grt Loc Auth,Local,WEST BERKSHIRE DC,2000001433,1078500,Highway Maintenance Block - 2015/16 Quarter 1,RG14 2AF,
Department for Transport,Department for Transport,22/04/2015,Cap Grt Loc Auth,Local,West Sussex County Council,2000001434,3430750,Highway Maintenance Block - 2015/16 Quarter 1,PO19 1RG,
Department for Transport,Department for Transport,22/04/2015,Cap Grt Loc Auth,Local,West Yorkshire Combined Authority,2000001520,7303250,Highway Maintenance Block - 2015/16 Quarter 1,LS1 2DE,
Department for Transport,Department for Transport,22/04/2015,Cap Grt Loc Auth,Local,WILTSHIRE COUNCIL,2000001510,4149750,Highway Maintenance Block - 2015/16 Quarter 1,BA14 4DS,
Department for Transport,Department for Transport,22/04/2015,Cap Grt Loc Auth,Local,WINDSOR & MAIDENHEAD,2000001435,544500,Highway Maintenance Block - 2015/16 Quarter 1,SL6 1RF,
Department for Transport,Department for Transport,22/04/2015,Cap Grt Loc Auth,Local,WOKINGHAM DC,2000001436,663750,Highway Maintenance Block - 2015/16 Quarter 1,RG40 1JW,
Department for Transport,Department for Transport,22/04/2015,Cap Grt Loc Auth,Local,WORCESTERSHIRE COUNTY COUNCIL,2000001447,3751750,Highway Maintenance Block - 2015/16 Quarter 1,WR5 2NP,
Department for Transport,Department for Transport,22/04/2015,Cap Grt Loc Auth,Local,BATH & NE SOMERSET DC,2000001393,290750,IT Block - first quarterly payment - 2015/16,BA1 5AW,
Department for Transport,Department for Transport,22/04/2015,Cap Grt Loc Auth,Local,BEDFORD BC,2000001488,288250,IT Block - first quarterly payment - 2015/16,MK40 1SJ,
Department for Transport,Department for Transport,22/04/2015,Cap Grt Loc Auth,Local,BLACKBURN WITH DARWEN BC,2000001440,356000,IT Block - first quarterly payment - 2015/16,BB1 7DY,
Department for Transport,Department for Transport,22/04/2015,Cap Grt Loc Auth,Local,BLACKPOOL COUNCIL,2000001517,430000,IT Block - first quarterly payment - 2015/16,FY3 7HW,
Department for Transport,Department for Transport,22/04/2015,Cap Grt Loc Auth,Local,BOURNEMOUTH BOROUGH COUNCIL,2000001506,432750,IT Block - first quarterly payment - 2015/16,BH2 5SL,
Department for Transport,Department for Transport,22/04/2015,Cap Grt Loc Auth,Local,BRACKNELL FOREST BC,2000001472,180000,IT Block - first quarterly payment - 2015/16,RG12 1AQ,
Department for Transport,Department for Transport,22/04/2015,Cap Grt Loc Auth,Local,Brighton & Hove City Council,2000001394,764750,IT Block - first quarterly payment - 2015/16,BN1 1JE,
Department for Transport,Department for Transport,22/04/2015,Cap Grt Loc Auth,Local,BRISTOL CITY COUNCIL,2000001395,685750,IT Block - first quarterly payment - 2015/16,BS99 7BL,
Department for Transport,Department for Transport,22/04/2015,Cap Grt Loc Auth,Local,BUCKINGHAMSHIRE CC (REVENUE),2000001396,564250,IT Block - first quarterly payment - 2015/16,HP20 1UD,
Department for Transport,Department for Transport,22/04/2015,Cap Grt Loc Auth,Local,CAMBRIDGESHIRE COUNTY COUNCIL,2000001397,797500,IT Block - first quarterly payment - 2015/16,CB3 0AP,
Department for Transport,Department for Transport,22/04/2015,Cap Grt Loc Auth,Local,Central Bedfordshire Council,2000001511,341250,IT Block - first quarterly payment - 2015/16,SG17 5TQ,
Department for Transport,Department for Transport,22/04/2015,Cap Grt Loc Auth,Local,Centro,2000001505,4404500,IT Block - first quarterly payment - 2015/16,B19 3SD,
Department for Transport,Department for Transport,22/04/2015,Cap Grt Loc Auth,Local,CHESHIRE EAST BOROUGH COUNCIL,2000001507,496750,IT Block - first quarterly payment - 2015/16,CW11 1HZ,
Department for Transport,Department for Transport,22/04/2015,Cap Grt Loc Auth,Local,Cheshire West & Chester Council,2000001508,488500,IT Block - first quarterly payment - 2015/16,CH1 1SE,
Department for Transport,Department for Transport,22/04/2015,Cap Grt Loc Auth,Local,CITY OF YORK COUNCIL,2000001398,392500,IT Block - first quarterly payment - 2015/16,Y01 7WH,
Department for Transport,Department for Transport,22/04/2015,Cap Grt Loc Auth,Local,CORNWALL COUNTY COUNCIL,2000001448,1026250,IT Block - first quarterly payment - 2015/16,TR1 38D,
Department for Transport,Department for Transport,22/04/2015,Cap Grt Loc Auth,Local,CUMBRIA COUNTY COUNCIL,2000001399,636500,IT Block - first quarterly payment - 2015/16,CA3 8NA,
Department for Transport,Department for Transport,22/04/2015,Cap Grt Loc Auth,Local,DARLINGTON BC,2000001400,221500,IT Block - first quarterly payment - 2015/16,TS19 1JA,
Department for Transport,Department for Transport,22/04/2015,Cap Grt Loc Auth,Local,Derby City Council,2000001401,452750,IT Block - first quarterly payment - 2015/16,DE1 2FS,
Department for Transport,Department for Transport,22/04/2015,Cap Grt Loc Auth,Local,DERBYSHIRE COUNTY COUNCIL,2000001402,911000,IT Block - first quarterly payment - 2015/16,DE4 3AH,
Department for Transport,Department for Transport,22/04/2015,Cap Grt Loc Auth,Local,DEVON COUNTY COUNCIL,2000001403,900250,IT Block - first quarterly payment - 2015/16,EX2 4QJ,
Department for Transport,Department for Transport,22/04/2015,Cap Grt Loc Auth,Local,DORSET COUNTY COUNCIL,2000001404,522000,IT Block - first quarterly payment - 2015/16,DT1 1XJ,
Department for Transport,Department for Transport,22/04/2015,Cap Grt Loc Auth,Local,EAST RIDING OF YORKSHIRE COUNCIL,2000001489,410000,IT Block - first quarterly payment - 2015/16,HU17 9BA,
Department for Transport,Department for Transport,22/04/2015,Cap Grt Loc Auth,Local,EAST SUSSEX COUNTY COUNCIL,2000001451,729750,IT Block - first quarterly payment - 2015/16,BN7 1UE,
Department for Transport,Department for Transport,22/04/2015,Cap Grt Loc Auth,Local,ESSEX COUNTY COUNCIL,2000001405,1568750,IT Block - first quarterly payment - 2015/16,CM1 1LX,
Department for Transport,Department for Transport,22/04/2015,Cap Grt Loc Auth,Local,GLOUCESTERSHIRE COUNTY COUNCIL,2000001392,715250,IT Block - first quarterly payment - 2015/16,GL1 2TJ,
Department for Transport,Department for Transport,22/04/2015,Cap Grt Loc Auth,Local,GREATER MANCHESTER,2000001512,2350000,IT Block - first quarterly payment - 2015/16,M60 2JR,
Department for Transport,Department for Transport,22/04/2015,Cap Grt Loc Auth,Local,HAMPSHIRE COUNTY COUNCIL,2000001406,1324000,IT Block - first quarterly payment - 2015/16,SO23 8UB,
Department for Transport,Department for Transport,22/04/2015,Cap Grt Loc Auth,Local,HARTLEPOOL BOROUGH COUNCIL,2000001407,179750,IT Block - first quarterly payment - 2015/16,TS24 7BT,
Department for Transport,Department for Transport,22/04/2015,Cap Grt Loc Auth,Local,HEREFORDSHIRE COUNCIL,2000001490,267250,IT Block - first quarterly payment - 2015/16,HR4 0XH,
Department for Transport,Department for Transport,22/04/2015,Cap Grt Loc Auth,Local,Hertfordshire County Council,2000001408,1142000,IT Block - first quarterly payment - 2015/16,SG13 8DN,
Department for Transport,Department for Transport,22/04/2015,Cap Grt Loc Auth,Local,ISLE OF WIGHT COUNCIL,2000001409,354500,IT Block - first quarterly payment - 2015/16,PO30 1UD,
Department for Transport,Department for Transport,22/04/2015,Cap Grt Loc Auth,Local,KENT COUNTY COUNCIL,2000001410,1715250,IT Block - first quarterly payment - 2015/16,ME14 1XQ,
Department for Transport,Department for Transport,22/04/2015,Cap Grt Loc Auth,Local,KINGSTON UPON HULL CITY COUNCIL,2000001491,557500,IT Block - first quarterly payment - 2015/16,HU1 2AB,
Department for Transport,Department for Transport,22/04/2015,Cap Grt Loc Auth,Local,LANCASHIRE COUNTY COUNCIL,2000001411,1513500,IT Block - first quarterly payment - 2015/16,PR1 0LD,
Department for Transport,Department for Transport,22/04/2015,Cap Grt Loc Auth,Local,Leicester City Council,2000001412,639000,IT Block - first quarterly payment - 2015/16,LE1 1FZ,
Department for Transport,Department for Transport,22/04/2015,Cap Grt Loc Auth,Local,LEICESTERSHIRE COUNTY COUNCIL,2000001441,682000,IT Block - first quarterly payment - 2015/16,LE3 8RB,
Department for Transport,Department for Transport,22/04/2015,Cap Grt Loc Auth,Local,Lincolnshire County Council,2000001519,828000,IT Block - first quarterly payment - 2015/16,LN1 1YL,
Department for Transport,Department for Transport,22/04/2015,Cap Grt Loc Auth,Local,Liverpool City Region,2000001503,2517000,IT Block - first quarterly payment - 2015/16,L3 2AN,
Department for Transport,Department for Transport,22/04/2015,Cap Grt Loc Auth,Local,LUTON BOROUGH COUNCIL,2000001413,364250,IT Block - first quarterly payment - 2015/16,LU1 2BQ,
Department for Transport,Department for Transport,22/04/2015,Cap Grt Loc Auth,Local,MEDWAY COUNCIL,2000001449,397250,IT Block - first quarterly payment - 2015/16,ME4 4TR,
Department for Transport,Department for Transport,22/04/2015,Cap Grt Loc Auth,Local,MIDDLESBROUGH BC,2000001391,264250,IT Block - first quarterly payment - 2015/16,TS1 2QQ,
Department for Transport,Department for Transport,22/04/2015,Cap Grt Loc Auth,Local,MILTON KEYNES BC,2000001414,381750,IT Block - first quarterly payment - 2015/16,MK9 3EE,
Department for Transport,Department for Transport,22/04/2015,Cap Grt Loc Auth,Local,Newcastle City Council,2000001492,3487250,IT Block - first quarterly payment - 2015/16,NE99 1RD,
Department for Transport,Department for Transport,22/04/2015,Cap Grt Loc Auth,Local,NORFOLK COUNTY COUNCIL,2000001422,1035250,IT Block - first quarterly payment - 2015/16,NR1 2UG,
Department for Transport,Department for Transport,22/04/2015,Cap Grt Loc Auth,Local,North East Lincolnshire Council,2000001493,369750,IT Block - first quarterly payment - 2015/16,DN35 8LN,
Department for Transport,Department for Transport,22/04/2015,Cap Grt Loc Auth,Local,North Lincolnshire Council,2000001442,289750,IT Block - first quarterly payment - 2015/16,DN16 1AB,
Department for Transport,Department for Transport,22/04/2015,Cap Grt Loc Auth,Local,North Somerset Council,2000001415,243000,IT Block - first quarterly payment - 2015/16,BS23 1UJ,
Department for Transport,Department for Transport,22/04/2015,Cap Grt Loc Auth,Local,NORTH YORKSHIRE CC,2000001494,755750,IT Block - first quarterly payment - 2015/16,DL7 8AL,
Department for Transport,Department for Transport,22/04/2015,Cap Grt Loc Auth,Local,NORTHAMPTONSHIRE CC,2000001416,769500,IT Block - first quarterly payment - 2015/16,NN4 7DB,
Department for Transport,Department for Transport,22/04/2015,Cap Grt Loc Auth,Local,NOTTINGHAM CITY COUNCIL,2000001504,847500,IT Block - first quarterly payment - 2015/16,NG1 5NT,
Department for Transport,Department for Transport,22/04/2015,Cap Grt Loc Auth,Local,NOTTINGHAMSHIRE CC,2000001495,979000,IT Block - first quarterly payment - 2015/16,NG2 7LA,
Department for Transport,Department for Transport,22/04/2015,Cap Grt Loc Auth,Local,OXFORDSHIRE CC,2000001417,922000,IT Block - first quarterly payment - 2015/16,OX1 1TH,
Department for Transport,Department for Transport,22/04/2015,Cap Grt Loc Auth,Local,PETERBOROUGH CITY COUNCIL,2000001418,351750,IT Block - first quarterly payment - 2015/16,PE1 1FF,
Department for Transport,Department for Transport,22/04/2015,Cap Grt Loc Auth,Local,PLYMOUTH CITY COUNCIL,2000001419,486000,IT Block - first quarterly payment - 2015/16,PL1 2AA,
Department for Transport,Department for Transport,22/04/2015,Cap Grt Loc Auth,Local,POOLE BC,2000001420,307500,IT Block - first quarterly payment - 2015/16,BH15 2RZ,
Department for Transport,Department for Transport,22/04/2015,Cap Grt Loc Auth,Local,PORTSMOUTH CITY COUNCIL,2000001443,462750,IT Block - first quarterly payment - 2015/16,PO1 2BG,
Department for Transport,Department for Transport,22/04/2015,Cap Grt Loc Auth,Local,Reading Borough Council,2000001421,395000,IT Block - first quarterly payment - 2015/16,RG1 2LU,
Department for Transport,Department for Transport,22/04/2015,Cap Grt Loc Auth,Local,REDCAR & CLEVELAND BC,2000001444,213250,IT Block - first quarterly payment - 2015/16,TS6 9AR,
Department for Transport,Department for Transport,22/04/2015,Cap Grt Loc Auth,Local,RUTLAND COUNTY COUNCIL,2000001423,114500,IT Block - first quarterly payment - 2015/16,LE15 6HP,
Department for Transport,Department for Transport,22/04/2015,Cap Grt Loc Auth,Local,Sheffield City Region,2000001498,2107000,IT Block - first quarterly payment - 2015/16,S1 4PL,
Department for Transport,Department for Transport,22/04/2015,Cap Grt Loc Auth,Local,SHROPSHIRE COUNTY COUNCIL,2000001497,406500,IT Block - first quarterly payment - 2015/16,SY2 6ND,
Department for Transport,Department for Transport,22/04/2015,Cap Grt Loc Auth,Local,Slough Borough Council,2000001424,337250,IT Block - first quarterly payment - 2015/16,SL1 3UF,
Department for Transport,Department for Transport,22/04/2015,Cap Grt Loc Auth,Local,SOMERSET COUNTY COUNCIL,2000001425,552250,IT Block - first quarterly payment - 2015/16,TA1 4DY,
Department for Transport,Department for Transport,22/04/2015,Cap Grt Loc Auth,Local,SOUTH GLOUCESTERSHIRE COUNCIL,2000001426,319250,IT Block - first quarterly payment - 2015/16,BS15 9DW,
Department for Transport,Department for Transport,22/04/2015,Cap Grt Loc Auth,Local,Southampton City Council,2000001450,531000,IT Block - first quarterly payment - 2015/16,SO14 7LY,
Department for Transport,Department for Transport,22/04/2015,Cap Grt Loc Auth,Local,SOUTHEND-ON-SEA BC,2000001499,350250,IT Block - first quarterly payment - 2015/16,SS2 6AN,
Department for Transport,Department for Transport,22/04/2015,Cap Grt Loc Auth,Local,Staffordshire County Council,2000001496,855750,IT Block - first quarterly payment - 2015/16,ST16 2DH,
Department for Transport,Department for Transport,22/04/2015,Cap Grt Loc Auth,Local,STOCKTON ON TEES BC,2000001427,307750,IT Block - first quarterly payment - 2015/16,TS23 2YS,
Department for Transport,Department for Transport,22/04/2015,Cap Grt Loc Auth,Local,Stoke-On-Trent City Council,2000001500,416500,IT Block - first quarterly payment - 2015/16,ST4 4TS,
Department for Transport,Department for Transport,22/04/2015,Cap Grt Loc Auth,Local,SUFFOLK COUNTY COUNCIL (GRANTS),2000001452,811500,IT Block - first quarterly payment - 2015/16,IP1 2DH,
Department for Transport,Department for Transport,22/04/2015,Cap Grt Loc Auth,Local,SURREY COUNTY COUNCIL,2000001428,1196000,IT Block - first quarterly payment - 2015/16,KT1 2DN,
Department for Transport,Department for Transport,22/04/2015,Cap Grt Loc Auth,Local,SWINDON BC,2000001429,344500,IT Block - first quarterly payment - 2015/16,SN1 2JH,
Department for Transport,Department for Transport,22/04/2015,Cap Grt Loc Auth,Local,TELFORD & WREKIN DC,2000001445,234750,IT Block - first quarterly payment - 2015/16,TF3 4LF,
Department for Transport,Department for Transport,22/04/2015,Cap Grt Loc Auth,Local,THURROCK DC,2000001430,242750,IT Block - first quarterly payment - 2015/16,RM17 6LT,
Department for Transport,Department for Transport,22/04/2015,Cap Grt Loc Auth,Local,TORBAY BC,2000001431,265750,IT Block - first quarterly payment - 2015/16,TQ1 3DS,
Department for Transport,Department for Transport,22/04/2015,Cap Grt Loc Auth,Local,WARRINGTON BC,2000001432,373500,IT Block - first quarterly payment - 2015/16,WA1 1BN,
Department for Transport,Department for Transport,22/04/2015,Cap Grt Loc Auth,Local,Warwickshire County Council,2000001446,659250,IT Block - first quarterly payment - 2015/16,CV34 4RH,
Department for Transport,Department for Transport,22/04/2015,Cap Grt Loc Auth,Local,WEST BERKSHIRE DC,2000001433,227500,IT Block - first quarterly payment - 2015/16,RG14 2AF,
Department for Transport,Department for Transport,22/04/2015,Cap Grt Loc Auth,Local,West Sussex County Council,2000001434,933500,IT Block - first quarterly payment - 2015/16,PO19 1RG,
Department for Transport,Department for Transport,22/04/2015,Cap Grt Loc Auth,Local,West Yorkshire Combined Authority,2000001520,3276000,IT Block - first quarterly payment - 2015/16,LS1 2DE,
Department for Transport,Department for Transport,22/04/2015,Cap Grt Loc Auth,Local,WILTSHIRE COUNCIL,2000001510,545250,IT Block - first quarterly payment - 2015/16,BA14 4DS,
Department for Transport,Department for Transport,22/04/2015,Cap Grt Loc Auth,Local,WINDSOR & MAIDENHEAD,2000001435,212750,IT Block - first quarterly payment - 2015/16,SL6 1RF,
Department for Transport,Department for Transport,22/04/2015,Cap Grt Loc Auth,Local,WOKINGHAM DC,2000001436,183500,IT Block - first quarterly payment - 2015/16,RG40 1JW,
Department for Transport,Department for Transport,22/04/2015,Cap Grt Loc Auth,Local,WORCESTERSHIRE COUNTY COUNCIL,2000001447,601250,IT Block - first quarterly payment - 2015/16,WR5 2NP,
Department for Transport,Department for Transport,22/04/2015,Computer equipment,Air Accident Investigation Branch,UNITY AV LTD,2000001514,1936.56,UNITY NON ETHOS SOLID STATE CONT 19/03,RG17 0QU,
Department for Transport,Department for Transport,22/04/2015,Computer equipment,Air Accident Investigation Branch,UNITY AV LTD,2000001514,1672.08,UNITY NON ETHOS MOVE LFD DISPLAY 17/03,RG17 0QU,
Department for Transport,Department for Transport,22/04/2015,Computer equipment,Air Accident Investigation Branch,UNITY AV LTD,2000001514,1750.24,UNITY NON ETHOS BRIDGIT SERVER PAY 2,RG17 0QU,
Department for Transport,Department for Transport,22/04/2015,Computer equipment,Air Accident Investigation Branch,UNITY AV LTD,2000001514,2560.6,"UNITY NON ETHOS 55"" SCREEN PAY 2 16/02",RG17 0QU,
Department for Transport,Department for Transport,22/04/2015,Computer equipment,Air Accident Investigation Branch,UNITY AV LTD,2000001514,3080.84,"UNITY NON ETHOS 70"" SCREEN PAY 2 16/02",RG17 0QU,
Department for Transport,Department for Transport,22/04/2015,Computer equipment,Motoring Services,Probrand Limited,2000001470,1759.2,USB Keyboard,B1 3BP,
Department for Transport,Department for Transport,22/04/2015,Computer equipment,Motoring Services,Probrand Limited,2000001470,6,USB Keyboards - Shipping,B1 3BP,
Department for Transport,Department for Transport,22/04/2015,Computer equipment,Rail Accident Investigation Branch,JOHN E WRIGHT & CO LTD,2000001478,600,Evolution Quick 3x2 Pop UP Screen,DE1 1DU,
Department for Transport,Department for Transport,22/04/2015,Computer equipment,Rail Accident Investigation Branch,EBuyer (UK) Ltd,2000001524,132,Optional 3 Year on site warranty,DN14 7UW,
Department for Transport,Department for Transport,22/04/2015,Computer equipment,Rail Accident Investigation Branch,EBuyer (UK) Ltd,2000001524,3371.71,#,DN14 7UW,
Department for Transport,Department for Transport,22/04/2015,CurrGrt Las in AEF/A,Local,Bournemouth Borough Council,2000001459,64536,Bournemouth Borough Council,BH2 6DY,
Department for Transport,Department for Transport,22/04/2015,CurrGrt Las in AEF/A,Local,Kent County Council,2000001454,1087788,Kent County Council,ME14 1XQ,
Department for Transport,Department for Transport,22/04/2015,CurrGrt Las in AEF/A,Local,LONDON BOROUGH OF BARNET,2000001453,40628,London Borough of Barnet,N11 1NP,
Department for Transport,Department for Transport,22/04/2015,CurrGrt Las in AEF/A,Local,LONDON BOROUGH OF MERTON,2000001437,41030,London Borough of Merton,SM4 4AX,
Department for Transport,Department for Transport,22/04/2015,CurrGrt Las in AEF/A,Local,North East Lincolnshire Council,2000001458,16785,North East Lincolnshire Council,DN37 9TZ,
Department for Transport,Department for Transport,22/04/2015,CurrGrt Las in AEF/A,Local,Northumberland CC,2000001455,484417,Northumberland County Council,NE61 2EF,
Department for Transport,Department for Transport,22/04/2015,CurrGrt Las in AEF/A,Local,TELFORD & WREKIN DC,2000001438,90742,Telford and Wrekin Council,TF3 4LF,
Department for Transport,Department for Transport,22/04/2015,CurrGrt Las in AEF/A,Local,Wiltshire County Council,2000001457,984479,Wiltshire County Council,BA14 8JN,
Department for Transport,Department for Transport,22/04/2015,Grt Aid to NDPBs,Strategic Roads & Smart Ticketing,RAIL PASSENGER COUNCIL,2000001466,1450000,Transport Focus,M1 1LQ,
Department for Transport,Department for Transport,22/04/2015,IT Consultancy,Marine Accident Investigation Branch,Act Seven Technology Limited,2000001513,5760,#,SO15 0HW,
Department for Transport,Department for Transport,22/04/2015,IT Equip Cap Cost,Motoring Services,INSIGHT DIRECT (UK) LTD,2000001468,22717.53,#,UB8 1PH,
Department for Transport,Department for Transport,22/04/2015,IT Equip Cap Cost,Motoring Services,Probrand Limited,2000001470,5823.3,Thin Client PCs,B1 3BP,
Department for Transport,Department for Transport,22/04/2015,IT Equip Cap Cost,Motoring Services,Probrand Limited,2000001470,6,Thin Client PCs - Shipping,B1 3BP,
Department for Transport,Department for Transport,22/04/2015,IT Ser Running Costs,"Motoring, Freight & London",TRAFFICMASTER PLC,2000001484,53487,#,MK43 0TR,
Department for Transport,Department for Transport,22/04/2015,IT Ser Running Costs,General Counsel's Office,Actica Consulting Limited,2000001509,9180,#,GU1 4AF,
Department for Transport,Department for Transport,22/04/2015,Legal Consultancy,Network Rail Sponsorship,ALLEN & OVERY,2000001502,54137.21,#,E1 6AO,
Department for Transport,Department for Transport,22/04/2015,Legal Consultancy,Network Rail Sponsorship,SIMMONS & SIMMONS,2000001482,4428.6,#,EC2Y 9SS,
